{"text_format":"1","workbook":"xlsx","n_sheets":11,"sheets":["MENU","Antargaz","Primagaz","Butagaz","Totalgaz","Huiles_20180110","Neons_20180105","Pneus_20180108","Registre_janv","Registre_févr","Registre"],"not_rendered":{"charts":0,"images":47,"macros":1,"external_links":0,"defined_names":34,"comments":0,"pivot_tables":0},"unopened":[],"bounds":{"document_bytes":16777216,"sheet_cells":100000,"rows_first":2000,"rows_last":500,"rows_between":2000,"halvings":0,"cell_chars":16384,"cell_head_chars":4096},"cells_cut":0,"cells_raw":0,"read":"whole","date_system":"1900"}

{"sheet":"MENU","index":0,"n_rows":0,"n_cols":0,"rows_kept":0,"cut":false,"hidden":false,"merged":[]}

{"sheet":"Antargaz","index":1,"n_rows":64,"n_cols":11,"rows_kept":64,"cut":false,"hidden":true,"merged":[[12,0,13,11],[44,9,45,9],[44,10,45,10],[15,2,15,3],[15,4,15,6],[17,2,17,4],[21,2,21,4],[21,5,21,7],[23,3,23,7],[25,2,25,4],[25,5,25,10],[28,4,28,6],[30,4,30,6],[35,10,43,10],[32,5,32,6],[44,8,45,8],[63,4,63,7],[63,8,63,11],[51,2,57,2],[58,2,59,2],[58,3,59,3],[35,2,43,2],[44,2,45,2],[64,0,69,3],[64,4,69,7],[44,7,45,7],[44,3,45,3],[44,4,45,4],[44,5,45,5],[46,2,46,9],[64,8,69,11],[58,4,59,4],[58,5,59,5],[58,6,59,6],[51,6,57,6],[60,2,60,5],[63,0,63,3]]}
[]
[]
[]
[]
[]
[]
[]
[]
[]
[]
[]
[]
["FORMULAIRE D'ENLEVEMENT"]
[]
[]
[null,null,"Date de la demande :"]
[]
[null,null,"Demandeur - nom de la déchetterie :",null,null,"NICE OUEST"]
[]
[null,null,"Compte :",70615043]
[]
[null,null,"Nom de la personne à contacter : ",null,null,"Mr Peters ou Mr Quenin"]
[]
[null,null,"Tél : ","06/64/48/10/08 ou 06/65/53/22/23"]
[]
[null,null,"Adresse du site de récupération : ",null,null,"DECHETTERIE DE NICE EST - Angle Bd Jean Baptiste Vérany / Rue Georges Chapel"]
[]
[]
[null,null,"Jours d'ouverture :",null,"L - M - M - J - V - S - D"]
[]
[null,null,"Heures d'ouverture : ",null,"8H30 – 11H45 et 14H30 – 17H"]
[]
[]
[]
[]
[null,null,"Exemples de\nbouteilles\nAntagaz",null,null,null,null,null,null,null,"Total"]
[]
[]
[]
[]
[]
[]
[]
[]
[null,null,"Nombre de\nbouteilles à\nrécupérer",null,null,null,null,null,null,null,{"$f":"D45+E45+F45+G45+H45+I45+J45","v":0}]
[]
[null,null,"Nombre de bouteilles récupérées.\nA remplir par\nle chauffeur"]
[]
[]
[]
[]
[null,null,"Exemples de\nbouteilles\nAntagaz",null,null,null,"Total"]
[]
[]
[]
[]
[]
[]
[null,null,"Nombre de\nbouteilles à\nrécupérer",null,null,null,{"$f":"D59+E59+F59","v":0}]
[]
[null,null,"Nombre de bouteilles récupérées.\nA remplir par\nle chauffeur"]
[]
[]
["Date de reprise",null,null,null,"Nom et signature du Chauffeur",null,null,null,"Nom et signature de la déchetterie"]

{"sheet":"Primagaz","index":2,"n_rows":55,"n_cols":11,"rows_kept":55,"cut":false,"hidden":true,"merged":[[55,0,60,3],[55,4,60,7],[55,8,60,11],[12,0,13,11],[34,10,40,10],[42,2,42,9],[50,2,50,7],[54,0,54,3],[54,4,54,7],[54,8,54,11],[34,7,40,7],[34,8,40,8],[34,9,40,9],[34,2,40,2],[27,4,27,6],[29,4,29,6],[14,1,14,9],[15,2,15,3],[15,4,15,6],[17,2,17,4],[34,3,40,3],[34,4,40,4],[34,5,40,5],[34,6,40,6],[20,2,20,4],[20,5,20,7],[22,3,22,7],[24,2,24,4],[24,5,24,10]]}
[]
[]
[]
[]
[]
[]
[]
[]
[]
[]
[]
[]
["FORMULAIRE D'ENLEVEMENT"]
[]
[]
[null,null,"Date de la demande :"]
[]
[null,null,"Demandeur - nom de la déchetterie :",null,null,"NICE OUEST"]
[]
[]
[null,null,"Nom de la personne à contacter : ",null,null,"Mr Peters ou Mr Quenin"]
[]
[null,null,"Tél : ","06/64/48/10/08 ou 06/65/53/22/23"]
[]
[null,null,"Adresse du site de récupération : ",null,null,"DECHETTERIE DE NICE EST - Angle Bd Jean Baptiste Vérany / Rue Georges Chapel"]
[]
[]
[null,null,"Jours d'ouverture :",null,"L - M - M - J - V - S - D"]
[]
[null,null,"Heures d'ouverture : ",null,"8H30 – 11H45 et 14H30 – 17H"]
[]
[]
[]
[]
[null,null,"Exemples de\nbouteilles\nPrimagaz",null,null,null,null,null,null,null,"Total"]
[]
[]
[]
[]
[]
[]
[null,null,"Nombre de\nbouteilles à\nrécupérer",null,null,null,null,null,null,null,{"$f":"D42+E42+F42+G42+H42+I42+J42","v":0}]
[null,null,"Nombre de bouteilles récupérées.\nA remplir par le chauffeur"]
[]
[]
[]
[]
[]
[null,null,"Exemples de Bouteilles\nPrimagaz",null,null,null,null,null,"Total"]
[null,null,"Nombre de\nbouteilles à\nrécupérer",null,null,null,null,null,{"$f":"D50+E50+F50+G50+H50","v":0}]
[null,null,"Nombre de bouteilles récupérées.\nA remplir par le chauffeur"]
[]
[]
[]
["Date de reprise",null,null,null,"Nom et signature du Chauffeur",null,null,null,"Nom et signature de la déchetterie"]

{"sheet":"Butagaz","index":3,"n_rows":49,"n_cols":9,"rows_kept":49,"cut":false,"hidden":true,"merged":[[12,0,13,11],[22,3,22,7],[24,2,24,4],[24,5,24,10],[27,4,27,6],[15,2,15,3],[15,4,15,6],[17,2,17,4],[20,2,20,4],[20,5,20,7],[34,7,41,7],[44,5,44,6],[48,0,48,3],[48,4,48,7],[29,4,29,6],[48,8,48,11],[49,0,54,3],[49,4,54,7],[49,8,54,11],[43,5,43,7]]}
[]
[]
[]
[]
[]
[]
[]
[]
[]
[]
[]
[]
["FORMULAIRE D'ENLEVEMENT"]
[]
[]
[null,null,"Date de la demande :"]
[]
[null,null,"Demandeur - nom de la déchetterie :",null,null,"NICE OUEST"]
[]
[]
[null,null,"Nom de la personne à contacter : ",null,null,"Mr Peters ou Mr Quenin"]
[]
[null,null,"Tél : ","06/64/48/10/08 ou 06/65/53/22/23"]
[]
[null,null,"Adresse du site de récupération : ",null,null,"DECHETTERIE DE NICE EST - Angle Bd Jean Baptiste Vérany / Rue Georges Chapel"]
[]
[]
[null,null,"Jours d'ouverture :",null,"L - M - M - J - V - S - D"]
[]
[null,null,"Heures d'ouverture : ",null,"8H30 – 11H45 et 14H30 – 17H"]
[]
[]
[]
[null,null,null,null,null,"+ / -","Nbr de bouteilles\nà récupérer","Nbr de bouteilles\nrécupérées.\nA remplir par le chauffeur"]
[null,null,null,null,null,"13 kg \nbutane"]
[null,null,null,null,null,"13 kg \npropane"]
[null,null,null,null,null,"13 kg \ncarburation"]
[null,null,null,null,null,"35 kg \npropane"]
[null,null,null,null,null,"viseo"]
[null,null,null,null,null,"10 kg \nbutane"]
[null,null,null,null,null,"Cube \n6 kg butane"]
[null,null,null,null,null,"Cube \n5 kg propane"]
[null,null,null,null,null,"Total",{"$f":"G35+G36+G37+G38+G39+G40+G41+G42","v":0}]
[null,null,null,null,null,"MERCI de COLLECTER LE RELIQUAT"]
[]
[]
[]
[]
["Date de reprise",null,null,null,"Nom et signature du Chauffeur",null,null,null,"Nom et signature de la déchetterie"]

{"sheet":"Totalgaz","index":4,"n_rows":49,"n_cols":11,"rows_kept":49,"cut":false,"hidden":true,"merged":[[48,0,48,3],[48,4,48,7],[43,2,43,6],[37,2,37,9],[12,0,13,11],[48,8,48,11],[49,0,54,3],[49,4,54,7],[49,8,54,11],[15,2,15,3],[15,4,15,6],[17,2,17,4],[21,2,21,4],[21,5,21,7],[23,3,23,7],[25,2,25,4],[25,5,25,10],[28,4,28,6],[30,4,30,6]]}
[]
[]
[]
[]
[]
[]
[]
[]
[]
[]
[]
[]
["FORMULAIRE D'ENLEVEMENT"]
[]
[]
[null,null,"Date de la demande :"]
[]
[null,null,"Demandeur - nom de la déchetterie :",null,null,"NICE OUEST"]
[]
[null,null,"Compte :",80615450]
[]
[null,null,"Nom de la personne à contacter : ",null,null,"Mr Peters ou Mr Quenin"]
[]
[null,null,"Tél : ","06/64/48/10/08 ou 06/65/53/22/23"]
[]
[null,null,"Adresse du site de récupération : ",null,null,"DECHETTERIE DE NICE EST - Angle Bd Jean Baptiste Vérany / Rue Georges Chapel"]
[]
[]
[null,null,"Jours d'ouverture :",null,"L - M - M - J - V - S - D"]
[]
[null,null,"Heures d'ouverture : ",null,"8H30 – 11H45 et 14H30 – 17H"]
[]
[]
[]
[null,null,"Exemples de\nbouteilles\nTotalgaz"]
[null,null,null,"6kg","10kg","13kg","5kg","13kg","13kg","35kg","Total"]
[null,null,"Nombre de\nbouteilles à\nrécupérer",null,null,null,null,null,null,null,{"$f":"SUM(D37:J37)","v":0}]
[null,null,"Nombre de bouteilles récupérées.\nA remplir par\nle chauffeur"]
[]
[]
[null,null,"Exemples de\nbouteilles\nSogasud\net Repsol",null,null,null,"Autres marques\ndes bouteilles\nrattachées"]
[null,null,null,"12,5kg","11kg","35kg",null,null,null,null,"Total"]
[null,null,"Nombre de\nbouteilles à\nrécupérer",null,null,null,null,null,null,null,{"$f":"D43+E43+F43+H43","v":0}]
[null,null,"Nombre de bouteilles récupérées.\nA remplir par\nle chauffeur"]
[]
[]
[]
[]
["Date de reprise",null,null,null,"Nom et signature du Chauffeur",null,null,null,"Nom et signature de la déchetterie"]

{"sheet":"Huiles_20180110","index":5,"n_rows":64,"n_cols":10,"rows_kept":64,"cut":false,"hidden":true,"merged":[[31,4,31,8],[12,0,13,11],[14,1,14,9],[15,2,15,3],[15,4,15,6],[17,2,17,4],[20,2,20,4],[20,5,20,7],[22,3,22,7],[24,2,24,4],[24,5,24,10],[27,4,27,6],[29,4,29,6],[62,0,62,1],[62,2,62,4],[62,5,62,8],[62,9,62,11],[63,0,68,1],[63,2,68,4],[63,5,68,8],[63,9,68,11]]}
[]
[]
[]
[]
[]
[]
[]
[]
[]
[]
[]
[]
["FORMULAIRE D'ENLEVEMENT"]
[]
[]
[null,null,"Date de la demande :",null,"2018-01-10"]
[]
[null,null,"Demandeur - nom de la déchetterie :",null,null,"NICE OUEST"]
[]
[]
[null,null,"Nom de la personne à contacter : ",null,null,"Mr Peters ou Mr Reynaud"]
[]
[null,null,"Tél : ","06/64/48/10/08 "]
[]
[null,null,"Adresse du site de récupération : ",null,null,"DECHETTERIE DE NICE OUEST- Angle Av Ste Marguerite / Traverse des Arboras"]
[]
[]
[null,null,"Jours d'ouverture :",null,"L - M - M - J - V - S - D"]
[]
[null,null,"Heures d'ouverture : ",null,"8H30 – 11H45 et 14H30 – 17H"]
[]
[null,null,null,null,"HUILES DE VIDANGES"]
[]
[]
[]
[]
[]
[]
[]
[]
[]
[]
[]
[]
[]
[]
[]
[]
[]
[]
[]
[]
[]
[]
[]
[]
[]
[]
[]
[]
[]
[]
["Date de reprise",null,"Nom et signature du Chauffeur",null,null,"Nom et signature de la déchetterie",null,null,null,"N°Fiche Intervention"]
["2018-01-11",null,null,null,null,null,null,null,null,"0088899A"]

{"sheet":"Neons_20180105","index":6,"n_rows":64,"n_cols":10,"rows_kept":64,"cut":false,"hidden":true,"merged":[[31,4,31,8],[12,0,13,11],[14,1,14,9],[15,2,15,3],[15,4,15,6],[17,2,17,4],[20,2,20,4],[20,5,20,7],[22,3,22,7],[24,2,24,4],[24,5,24,10],[27,4,27,6],[29,4,29,6],[63,0,68,1],[63,2,68,4],[63,5,68,8],[63,9,68,11],[52,4,52,8],[53,4,58,8],[62,0,62,1],[62,2,62,4],[62,5,62,8],[62,9,62,11]]}
[]
[]
[]
[]
[]
[]
[]
[]
[]
[]
[]
[]
["FORMULAIRE D'ENLEVEMENT"]
[]
[]
[null,null,"Date de la demande :",null,"2018-01-05"]
[]
[null,null,"Demandeur - nom de la déchetterie :",null,null,"NICE OUEST"]
[]
[]
[null,null,"Nom de la personne à contacter : ",null,null,"Mr Peters ou Mr Reynaud"]
[]
[null,null,"Tél : ","06/64/48/10/08 "]
[]
[null,null,"Adresse du site de récupération : ",null,null,"DECHETTERIE DE NICE OUEST- Angle Av Ste Marguerite / Traverse des Arboras"]
[]
[]
[null,null,"Jours d'ouverture :",null,"L - M - M - J - V - S - D"]
[]
[null,null,"Heures d'ouverture : ",null,"8H30 – 11H45 et 14H30 – 17H"]
[]
[null,null,null,null,"TUBES FLUORESCENTS"]
[]
[]
[]
[]
[]
[]
[]
[]
[]
[]
[]
[]
[]
[]
[]
[]
[]
[]
[]
[]
[null,null,null,null,"NUMERO DU BAC"]
[]
[]
[]
[]
[]
[]
[]
[]
[]
["Date de reprise",null,"Nom et signature du Chauffeur",null,null,"Nom et signature de la déchetterie",null,null,null,"N°Fiche Intervention"]
["2018-01-08",null,null,null,null,"AUDIBERT",null,null,null,"265116E"]

{"sheet":"Pneus_20180108","index":7,"n_rows":63,"n_cols":10,"rows_kept":63,"cut":false,"hidden":true,"merged":[[31,4,31,8],[12,0,13,11],[14,1,14,9],[15,2,15,3],[15,4,15,6],[17,2,17,4],[20,2,20,4],[20,5,20,7],[22,3,22,7],[24,2,24,4],[24,5,24,10],[27,4,27,6],[29,4,29,6],[63,0,68,1],[63,2,68,4],[63,5,68,8],[63,9,68,11],[52,4,52,6],[52,7,52,8],[62,0,62,1],[62,2,62,4],[62,5,62,8],[62,9,62,11]]}
[]
[]
[]
[]
[]
[]
[]
[]
[]
[]
[]
[]
["FORMULAIRE D'ENLEVEMENT"]
[]
[]
[null,null,"Date de la demande :",null,"2018-01-08"]
[]
[null,null,"Demandeur - nom de la déchetterie :",null,null,"NICE OUEST"]
[]
[]
[null,null,"Nom de la personne à contacter : ",null,null,"Mr Peters ou Mr Reynaud"]
[]
[null,null,"Tél : ","06/64/48/10/08 "]
[]
[null,null,"Adresse du site de récupération : ",null,null,"DECHETTERIE DE NICE OUEST- Angle Av Ste Marguerite / Traverse des Arboras"]
[]
[]
[null,null,"Jours d'ouverture :",null,"L - M - M - J - V - S - D"]
[]
[null,null,"Heures d'ouverture : ",null,"8H30 – 11H45 et 14H30 – 17H"]
[]
[null,null,null,null,"PNEUS USAGES"]
[]
[]
[]
[]
[]
[]
[]
[]
[]
[]
[]
[]
[]
[]
[]
[]
[]
[]
[]
[]
[null,null,null,null,"NBR DE PNEUS",null,null,100]
[]
[]
[]
[]
[]
[]
[]
[]
[]
["Date de reprise",null,"Nom et signature du Chauffeur",null,null,"Nom et signature de la déchetterie",null,null,null,"N°Fiche Intervention"]

{"sheet":"Registre_janv","index":8,"n_rows":505,"n_cols":14,"rows_kept":505,"cut":false,"hidden":false,"merged":[[25,11,25,12],[17,11,17,12]]}
["Date d'enlèvement","Nature du déchets","Quantité de déchets\n (en kg)","Unité","Installation de destination \n(nom et adresse)","Transporteur ","Immatriculation","Fiche d'intervention","Signature"]
["2017-01-03","METAUX",null,null,{"$f":"IF(B2=\"TOUT VENANT\",\"Véolia Nice Tri - Parc d'activité logistique\",IF(B2=\"DECHETS VERTS\",\"Orédui Carros Compostage - ZI de la Grave\",IF(B2=\"GRAVATS PROPRES\",\"La Gaude K3 Sita Sud - 5211 Rte de St Jeannet\",IF(B2=\"GRAVATS SALES\",\"Véolia Nice Tri - 20 Ch du Saquier\",IF(B2=\"BOIS\",\"SEAS La Glacière - 1019 Rte de la Grasse\",IF(B2=\"METAUX\",\"PURFER - ZI Carros 15ème Rue - 06517 Carros\",IF(B2=\"BATTERIES\",\"PURFER - ZI Carros 15ème Rue - 06517 Carros\",IF(B2=\"NEON\",\"Sofovar - 126 Av Louis Lépine - 83600 Fréjus\",IF(B2=\"PEINTURES\",\"Orédui - ZI Bois de Grasse - 06310 Grasse\",IF(B2=\"PRODUITS NON IDENTIFIES\",\"Orédui - ZI Bois de Grasse - 06310 Grasse\",IF(B2=\"AEROSOLS\",\"Orédui - ZI Bois de Grasse - 06310 Grasse\",IF(B2=\"FROIDS\",\"SEAS - 1079 Rte de Grasse - 06270 Villeneuve Loubet\",IF(B2=\"HORS FROIDS\",\"SEAS - 1079 Rte de Grasse - 06270 Villeneuve Loubet\",IF(B2=\"PAM\",\"SEAS - 1079 Rte de Grasse - 06270 Villeneuve Loubet\",IF(B2=\"ECRANS\",\"SEAS - 1079 Rte de Grasse - 06270 Villeneuve Loubet\",IF(B2=\"BOX HORS FROIDS\",\"SEAS - 1079 Rte de Grasse - 06270 Villeneuve Loubet\",IF(B2=\"PILES\",\"Corepile\",IF(B2=\"CUMULUS\",\"SEAS - 1079 Rte de Grasse - 06270 Villeneuve Loubet\",IF(B2=\"PNEUS\",\"TFM Pneus - 117 Ch Clausonnes - 06560 Valbonne\",IF(B2=\"HUILES VEGETALES\",\"Orédui - ZI Bois de Grasse - 06310 Grasse\",IF(B2=\"HUILES DE VIDANGE\",\"SERAHU - 68 Ch de la Campanette - 06800 Cagnes sur Mer\")))))))))))))))))))))","v":"PURFER - ZI Carros 15ème Rue - 06517 Carros"},{"$f":"IF(OR(B2=\"TOUT VENANT\",B2=\"DECHETS VERTS\",B2=\"GRAVATS SALES\",B2=\"GRAVATS PROPRES\",B2=\"BOIS\"),\"SUEZ\",IF(OR(B2=\"PNEUS\"),\"TFM\",IF(OR(B2=\"FROIDS\",B2=\"HORS FROIDS\",B2=\"BOX HORS FROIDS\",B2=\"CUMULUS\",B2=\"PAM\",B2=\"ECRANS\"),\"SEAS\",IF(OR(B2=\"METAUX\",B2=\"BATTERIES\"),\"DERICHEBOURG\",IF(OR(B2=\"NEON\"),\"SOFOVAR\",IF(OR(B2=\"PEINTURES\",B2=\"PRODUITS NON IDENTIFIES\",B2=\"AEROSOLS\",B2=\"HUILES VEGETALES\"),\"OREDUI\",IF(OR(B2=\"HUILES DE VIDANGE\"),\"SERAHU\")))))))","v":"DERICHEBOURG"},null,2464]
["2018-01-02","TOUT VENANT",null,null,"Véolia Nice Tri - Parc d'activité logistique","SUEZ",null,"B0300473502"]
["2018-01-02","GRAVATS SALES",null,null,"Véolia Nice Tri - 20 Ch du Saquier","SUEZ",null,"B0300472042"]
["2018-01-02","BOIS",1100,null,"SEAS La Glacière - 1019 Rte de la Grasse","SUEZ",null,"B0300471874"]
["2018-01-02","TOUT VENANT",1720,null,"Véolia Nice Tri - Parc d'activité logistique","SUEZ",null,"B0300472374"]
["2018-01-02","METAUX",null,null,"PURFER - ZI Carros 15ème Rue - 06517 Carros","DERICHEBOURG",null,2461]
["2018-01-02","DECHETS VERTS",1060,null,"Orédui Carros Compostage - ZI de la Grave","SUEZ",null,"B0300474375"]
["2018-01-02","DECHETS VERTS",2900,null,"Orédui Carros Compostage - ZI de la Grave","SUEZ",null,"B0300471805"]
["2018-01-02","DECHETS VERTS",3280,null,"Orédui Carros Compostage - ZI de la Grave","SUEZ",null,"B0300471912"]
["2018-01-02","BOIS",1580,null,"SEAS La Glacière - 1019 Rte de la Grasse","SUEZ",null,"B0300474376"]
["2018-01-02","DECHETS VERTS",1060,null,"Orédui Carros Compostage - ZI de la Grave","SUEZ",null,"B0300474375"]
["2018-01-02","BOIS",2020,null,"SEAS La Glacière - 1019 Rte de la Grasse","SUEZ",null,"B0300472004"]
["2018-01-02","BOIS",1780,null,"SEAS La Glacière - 1019 Rte de la Grasse","SUEZ",null,"B0300471836"]
["2018-01-02","GRAVATS PROPRES",null,null,"La Gaude K3 Sita Sud - 5211 Rte de St Jeannet","SUEZ",null,"B0300473471"]
["2018-01-03","TOUT VENANT",null,null,"Véolia Nice Tri - Parc d'activité logistique","SUEZ",null,"B0300472349"]
["2018-01-03","TOUT VENANT",null,null,"Véolia Nice Tri - Parc d'activité logistique","SUEZ",null,"B0300472476"]
["2018-01-03","TOUT VENANT",null,null,"Véolia Nice Tri - Parc d'activité logistique","SUEZ",null,"B0300472380",null,null,null,"PRESTATIONS JOURNALIERES SUEZ"]
["2018-01-03","TOUT VENANT",null,null,"Véolia Nice Tri - Parc d'activité logistique","SUEZ",null,"B0300474482",null,null,null,"6 TV ","6 ROTATIONS DE CAMION AMPIROLES"]
["2018-01-03","TOUT VENANT",null,null,"Véolia Nice Tri - Parc d'activité logistique","SUEZ",null,"B0300474481",null,null,null,"6 TV ","3 ROTATIONS DE CAMION GRAPPIN","LUNDI 4 ROTATIONS DE GRAPPIN"]
["2018-01-03","TOUT VENANT",null,null,"Véolia Nice Tri - Parc d'activité logistique","SUEZ",null,"B0300474480",null,null,null,"2 GRAVATS SALES","1  MATIN ET 1 APRES MIDI"]
["2018-01-03","TOUT VENANT",null,null,"Véolia Nice Tri - Parc d'activité logistique","SUEZ",null,"B0300474479",null,null,null,"3 GRAVATS PROPRES","3 ROTATIONS DE CAMION AMPIROLES"]
["2018-01-03","GRAVATS SALES",null,null,"Véolia Nice Tri - 20 Ch du Saquier","SUEZ",null,"B0300473737",null,null,null,"2 DECHETS VERTS","2 ROTATIONS DE CAMION AMPIROLES"]
["2018-01-03","GRAVATS PROPRES",null,null,"La Gaude K3 Sita Sud - 5211 Rte de St Jeannet","SUEZ",null,"B0300473508",null,null,null,"2 BOIS","2 ROTATIONS DE CAMION AMPIROLES"]
["2018-01-03","GRAVATS SALES",null,null,"Véolia Nice Tri - 20 Ch du Saquier","SUEZ",null,"B0300472048",null,null,null,"1 METAUX","1 ROTATION DE CAMION GRAPPIN"]
["2018-01-03","GRAVATS PROPRES",null,null,"La Gaude K3 Sita Sud - 5211 Rte de St Jeannet","SUEZ",null,"B0300473539",null,null,null,"Le samedi présence d'un camion minimum jusqu'à 16H"]
["2018-01-03","DECHETS VERTS",980,null,"Orédui Carros Compostage - ZI de la Grave","SUEZ",null,"B0300471918"]
["2018-01-03","TOUT VENANT",1340,null,"Véolia Nice Tri - Parc d'activité logistique","SUEZ",null,"B0300473576"]
["2018-01-03","BOIS",2240,null,"SEAS La Glacière - 1019 Rte de la Grasse","SUEZ",null,"B0300471880"]
["2018-01-03","DECHETS VERTS",640,null,"Orédui Carros Compostage - ZI de la Grave","SUEZ",null,"B0300472125"]
["2018-01-03","BOIS",1320,null,"SEAS La Glacière - 1019 Rte de la Grasse","SUEZ",null,"B0300471842"]
["2018-01-03","BOIS",1660,null,"SEAS La Glacière - 1019 Rte de la Grasse","SUEZ",null,"B0300472010"]
["2018-01-03","BOIS",1960,null,"SEAS La Glacière - 1019 Rte de la Grasse","SUEZ",null,"B0300471811"]
["2018-01-04","METAUX",null,null,"PURFER - ZI Carros 15ème Rue - 06517 Carros","DERICHEBOURG",null,2468]
["2018-01-04","METAUX",null,null,"PURFER - ZI Carros 15ème Rue - 06517 Carros","DERICHEBOURG",null,2470]
["2018-01-04","BOIS",1720,null,"SEAS La Glacière - 1019 Rte de la Grasse","SUEZ",null,"B0300471848"]
["2018-01-04","DECHETS VERTS",1220,null,"Orédui Carros Compostage - ZI de la Grave","SUEZ",null,"B0300471817"]
["2018-01-04","DECHETS VERTS",null,null,"Orédui Carros Compostage - ZI de la Grave","SUEZ",null,"B0300474550"]
["2018-01-04","DECHETS VERTS",1620,null,"Orédui Carros Compostage - ZI de la Grave","SUEZ",null,"B0300471924"]
["2018-01-04","DECHETS VERTS",820,null,"Orédui Carros Compostage - ZI de la Grave","SUEZ",null,"B0300474555"]
["2018-01-04","BOIS",1540,null,"SEAS La Glacière - 1019 Rte de la Grasse","SUEZ",null,"B0300471886"]
["2018-01-04","TOUT VENANT",2340,null,"Véolia Nice Tri - Parc d'activité logistique","SUEZ",null,"B0300473582"]
["2018-01-04","TOUT VENANT",1780,null,"Véolia Nice Tri - Parc d'activité logistique","SUEZ",null,"B0300474515"]
["2018-01-04","TOUT VENANT",960,null,"Véolia Nice Tri - Parc d'activité logistique","SUEZ",null,"B0300474512"]
["2018-01-04","BOIS",2480,null,"SEAS La Glacière - 1019 Rte de la Grasse","SUEZ",null,"B0300472016"]
["2018-01-04","TOUT VENANT",880,null,"Véolia Nice Tri - Parc d'activité logistique","SUEZ",null,"B0300474514"]
["2018-01-04","TOUT VENANT",920,null,"Véolia Nice Tri - Parc d'activité logistique","SUEZ",null,"B0300472482"]
["2018-01-04","TOUT VENANT",1580,null,"Véolia Nice Tri - Parc d'activité logistique","SUEZ",null,"B0300472386"]
["2018-01-04","TOUT VENANT",1560,null,"Véolia Nice Tri - Parc d'activité logistique","SUEZ",null,"B0300472355"]
["2018-01-04","GRAVATS SALES",null,null,"Véolia Nice Tri - 20 Ch du Saquier","SUEZ",null,"B0300472054"]
["2018-01-04","GRAVATS PROPRES",null,null,"La Gaude K3 Sita Sud - 5211 Rte de St Jeannet","SUEZ",null,"B0300473483"]
["2018-01-04","GRAVATS PROPRES",null,null,"La Gaude K3 Sita Sud - 5211 Rte de St Jeannet","SUEZ",null,"B0300473514"]
["2018-01-05","METAUX",null,null,"PURFER - ZI Carros 15ème Rue - 06517 Carros","DERICHEBOURG",null,2474]
["2018-01-05","GRAVATS SALES",null,null,"Véolia Nice Tri - 20 Ch du Saquier","SUEZ",null,"B0300472061"]
["2018-01-05","DECHETS VERTS",null,null,"Orédui Carros Compostage - ZI de la Grave","SUEZ",null,"B0300472132"]
["2018-01-05","BOIS",null,null,"SEAS La Glacière - 1019 Rte de la Grasse","SUEZ",null,"B0300471893"]
["2018-01-05","DECHETS VERTS",null,null,"Orédui Carros Compostage - ZI de la Grave","SUEZ",null,"B0300471824"]
["2018-01-05","BOIS",null,null,"SEAS La Glacière - 1019 Rte de la Grasse","SUEZ",null,"B0300472023"]
["2018-01-05","BOIS",null,null,"SEAS La Glacière - 1019 Rte de la Grasse","SUEZ",null,"B0300471855"]
["2018-01-05","GRAVATS PROPRES",null,null,"La Gaude K3 Sita Sud - 5211 Rte de St Jeannet","SUEZ",null,"B0300473521"]
["2018-01-05","GRAVATS SALES",null,null,"Véolia Nice Tri - 20 Ch du Saquier","SUEZ",null,"B0300473750"]
["2018-01-05","GRAVATS PROPRES",null,null,"La Gaude K3 Sita Sud - 5211 Rte de St Jeannet","SUEZ",null,"B0300473552"]
["2018-01-05","GRAVATS PROPRES",null,null,"La Gaude K3 Sita Sud - 5211 Rte de St Jeannet","SUEZ",null,"B0300473490"]
["2018-01-05","TOUT VENANT",null,null,"Véolia Nice Tri - Parc d'activité logistique","SUEZ",null,"B0300472362"]
["2018-01-05","TOUT VENANT",1820,null,"Véolia Nice Tri - Parc d'activité logistique","SUEZ",null,"B0300472393"]
["2018-01-05","TOUT VENANT",1280,null,{"$f":"IF(B66=\"TOUT VENANT\",\"Véolia Nice Tri - Parc d'activité logistique\",IF(B66=\"DECHETS VERTS\",\"Orédui Carros Compostage - ZI de la Grave\",IF(B66=\"GRAVATS PROPRES\",\"La Gaude K3 Sita Sud - 5211 Rte de St Jeannet\",IF(B66=\"GRAVATS SALES\",\"Véolia Nice Tri - 20 Ch du Saquier\",IF(B66=\"BOIS\",\"SEAS La Glacière - 1019 Rte de la Grasse\",IF(B66=\"METAUX\",\"PURFER - ZI Carros 15ème Rue - 06517 Carros\",IF(B66=\"BATTERIES\",\"PURFER - ZI Carros 15ème Rue - 06517 Carros\",IF(B66=\"NEON\",\"Sofovar - 126 Av Louis Lépine - 83600 Fréjus\",IF(B66=\"PEINTURES\",\"Orédui - ZI Bois de Grasse - 06310 Grasse\",IF(B66=\"PRODUITS NON IDENTIFIES\",\"Orédui - ZI Bois de Grasse - 06310 Grasse\",IF(B66=\"AEROSOLS\",\"Orédui - ZI Bois de Grasse - 06310 Grasse\",IF(B66=\"FROIDS\",\"SEAS - 1079 Rte de Grasse - 06270 Villeneuve Loubet\",IF(B66=\"HORS FROIDS\",\"SEAS - 1079 Rte de Grasse - 06270 Villeneuve Loubet\",IF(B66=\"PAM\",\"SEAS - 1079 Rte de Grasse - 06270 Villeneuve Loubet\",IF(B66=\"ECRANS\",\"SEAS - 1079 Rte de Grasse - 06270 Villeneuve Loubet\",IF(B66=\"BOX HORS FROIDS\",\"SEAS - 1079 Rte de Grasse - 06270 Villeneuve Loubet\",IF(B66=\"PILES\",\"Corepile\",IF(B66=\"CUMULUS\",\"SEAS - 1079 Rte de Grasse - 06270 Villeneuve Loubet\",IF(B66=\"PNEUS\",\"TFM Pneus - 117 Ch Clausonnes - 06560 Valbonne\",IF(B66=\"HUILES VEGETALES\",\"Orédui - ZI Bois de Grasse - 06310 Grasse\",IF(B66=\"HUILES DE VIDANGE\",\"SERAHU - 68 Ch de la Campanette - 06800 Cagnes sur Mer\")))))))))))))))))))))","v":"Véolia Nice Tri - Parc d'activité logistique"},{"$f":"IF(OR(B66=\"TOUT VENANT\",B66=\"DECHETS VERTS\",B66=\"GRAVATS SALES\",B66=\"GRAVATS PROPRES\",B66=\"BOIS\"),\"SUEZ\",IF(OR(B66=\"PNEUS\"),\"TFM\",IF(OR(B66=\"FROIDS\",B66=\"HORS FROIDS\",B66=\"BOX HORS FROIDS\",B66=\"CUMULUS\",B66=\"PAM\",B66=\"ECRANS\"),\"SEAS\",IF(OR(B66=\"METAUX\",B66=\"BATTERIES\"),\"DERICHEBOURG\",IF(OR(B66=\"NEON\"),\"SOFOVAR\",IF(OR(B66=\"PEINTURES\",B66=\"PRODUITS NON IDENTIFIES\",B66=\"AEROSOLS\",B66=\"HUILES VEGETALES\"),\"OREDUI\",IF(OR(B66=\"HUILES DE VIDANGE\"),\"SERAHU\")))))))","v":"SUEZ"},null,"B0300472489"]
["2018-01-05","TOUT VENANT",1260,null,"Véolia Nice Tri - Parc d'activité logistique","SUEZ",null,"B0300474622"]
["2018-01-05","TOUT VENANT",1600,null,"Véolia Nice Tri - Parc d'activité logistique","SUEZ",null,"B0300474623"]
["2018-01-05","TOUT VENANT",3580,null,"Véolia Nice Tri - Parc d'activité logistique","SUEZ",null,"B0300474624"]
["2018-01-06","METAUX",null,null,"PURFER - ZI Carros 15ème Rue - 06517 Carros","DERICHEBOURG",null,2477]
["2018-01-06","TOUT VENANT",2440,null,"Véolia Nice Tri - Parc d'activité logistique","SUEZ",null,"B0300472181"]
["2018-01-06","TOUT VENANT",1040,null,"Véolia Nice Tri - Parc d'activité logistique","SUEZ",null,"B0300474663"]
["2018-01-06","TOUT VENANT",800,null,"Véolia Nice Tri - Parc d'activité logistique","SUEZ",null,"B0300474662"]
["2018-01-06","TOUT VENANT",1400,null,"Véolia Nice Tri - Parc d'activité logistique","SUEZ",null,"B0300474664"]
["2018-01-06","TOUT VENANT",2520,null,"Véolia Nice Tri - Parc d'activité logistique","SUEZ",null,"B0300472167"]
["2018-01-06","TOUT VENANT",1640,null,"Véolia Nice Tri - Parc d'activité logistique","SUEZ",null,"B0300472188"]
["2018-01-06","TOUT VENANT",1560,null,"Véolia Nice Tri - Parc d'activité logistique","SUEZ",null,"B0300472195"]
["2018-01-06","METAUX",null,null,"PURFER - ZI Carros 15ème Rue - 06517 Carros","DERICHEBOURG",null,2478]
["2018-01-06","GRAVATS PROPRES",null,null,"La Gaude K3 Sita Sud - 5211 Rte de St Jeannet","SUEZ",null,"B0300472699"]
["2018-01-06","BOIS",null,null,"SEAS La Glacière - 1019 Rte de la Grasse","SUEZ",null,"B0300472223"]
["2018-01-06","DECHETS VERTS",null,null,"Orédui Carros Compostage - ZI de la Grave","SUEZ",null,"B0300472209"]
["2018-01-06","GRAVATS SALES",null,null,"Véolia Nice Tri - 20 Ch du Saquier","SUEZ",null,"B0300473757"]
["2018-01-08","TOUT VENANT",1880,null,"Véolia Nice Tri - Parc d'activité logistique","SUEZ",null,"B0300474648"]
["2018-01-08","BOIS",1240,null,"SEAS La Glacière - 1019 Rte de la Grasse","SUEZ",null,"B0300471999"]
["2018-01-08","BOIS",1380,null,"SEAS La Glacière - 1019 Rte de la Grasse","SUEZ",null,"B0300471831"]
["2018-01-08","DECHETS VERTS",3220,null,"Orédui Carros Compostage - ZI de la Grave","SUEZ",null,"B0300472120"]
["2018-01-08","BOIS",1780,null,"SEAS La Glacière - 1019 Rte de la Grasse","SUEZ",null,"B0300471869"]
["2018-01-08","TOUT VENANT",1520,null,"Véolia Nice Tri - Parc d'activité logistique","SUEZ",null,"B0300471800"]
["2018-01-08","GRAVATS SALES",null,null,"Véolia Nice Tri - 20 Ch du Saquier","SUEZ",null,"B0300473466"]
["2018-01-08","GRAVATS PROPRES",null,null,"La Gaude K3 Sita Sud - 5211 Rte de St Jeannet","SUEZ",null,"B0300471769"]
["2018-01-08","GRAVATS SALES",null,null,"Véolia Nice Tri - 20 Ch du Saquier","SUEZ",null,"B0300473726"]
["2018-01-08","GRAVATS PROPRES",null,null,"La Gaude K3 Sita Sud - 5211 Rte de St Jeannet","SUEZ",null,"B0300473528"]
["2018-01-08","METAUX",null,null,"PURFER - ZI Carros 15ème Rue - 06517 Carros","DERICHEBOURG",null,2439]
["2018-01-08","GRAVATS PROPRES",null,null,"La Gaude K3 Sita Sud - 5211 Rte de St Jeannet","SUEZ",null,"B0300472037"]
["2018-01-08","TOUT VENANT",1820,null,"Véolia Nice Tri - Parc d'activité logistique","SUEZ",null,"B0300474644"]
["2018-01-08","DECHETS VERTS",1360,null,"Orédui Carros Compostage - ZI de la Grave","SUEZ",null,"B0300474649"]
["2018-01-08","TOUT VENANT",2280,null,"Véolia Nice Tri - Parc d'activité logistique","SUEZ",null,"B0300472465"]
["2018-01-08","TOUT VENANT",null,null,"Véolia Nice Tri - Parc d'activité logistique","SUEZ",null,"B0300473565"]
["2018-01-08","TOUT VENANT",1740,null,"Véolia Nice Tri - Parc d'activité logistique","SUEZ",null,"B0300472369"]
["2018-01-08","TOUT VENANT",1800,null,"Véolia Nice Tri - Parc d'activité logistique","SUEZ",null,"B0300474647"]
["2018-01-08","TOUT VENANT",1400,null,"Véolia Nice Tri - Parc d'activité logistique","SUEZ",null,"B0300474646"]
["2018-01-08","TOUT VENANT",1760,null,"Véolia Nice Tri - Parc d'activité logistique","SUEZ",null,"B0300472338"]
["2018-01-09","DECHETS VERTS",1900,null,"Orédui Carros Compostage - ZI de la Grave","SUEZ",null,"B0300471806"]
["2018-01-09","BOIS",1560,null,"SEAS La Glacière - 1019 Rte de la Grasse","SUEZ",null,"B0300471837"]
["2018-01-09","GRAVATS PROPRES",null,null,"La Gaude K3 Sita Sud - 5211 Rte de St Jeannet","SUEZ",null,"B0300473503"]
["2018-01-09","GRAVATS SALES",null,null,"Véolia Nice Tri - 20 Ch du Saquier","SUEZ",null,"B0300472043"]
["2018-01-09","GRAVATS PROPRES",null,null,"La Gaude K3 Sita Sud - 5211 Rte de St Jeannet","SUEZ",null,"B0300473472"]
["2018-01-09","DECHETS VERTS",600,null,"Orédui Carros Compostage - ZI de la Grave","SUEZ",null,"B0300471913"]
["2018-01-09","METAUX",null,null,"PURFER - ZI Carros 15ème Rue - 06517 Carros","DERICHEBOURG",null,2483]
["2018-01-09","DECHETS VERTS",2860,null,"Orédui Carros Compostage - ZI de la Grave","SUEZ",null,"B0300474720"]
["2018-01-09","TOUT VENANT",null,null,"Véolia Nice Tri - Parc d'activité logistique","SUEZ",null,"B0300472471"]
["2018-01-09","TOUT VENANT",2080,null,"Véolia Nice Tri - Parc d'activité logistique","SUEZ",null,"B0300473571"]
["2018-01-09","TOUT VENANT",1180,null,"Véolia Nice Tri - Parc d'activité logistique","SUEZ",null,"B0300474722"]
["2018-01-09","BOIS",1800,null,"SEAS La Glacière - 1019 Rte de la Grasse","SUEZ",null,"B0300471875"]
["2018-01-09","TOUT VENANT",1640,null,"Véolia Nice Tri - Parc d'activité logistique","SUEZ",null,"B0300474723"]
["2018-01-09","TOUT VENANT",null,null,"Véolia Nice Tri - Parc d'activité logistique","SUEZ",null,"B0300474724"]
["2018-01-09","TOUT VENANT",3260,null,"Véolia Nice Tri - Parc d'activité logistique","SUEZ",null,652]
["2018-01-09","TOUT VENANT",3880,null,"Véolia Nice Tri - Parc d'activité logistique","SUEZ",null,651]
["2018-01-09","TOUT VENANT",3180,null,"Véolia Nice Tri - Parc d'activité logistique","SUEZ",null,653]
["2018-01-10","METAUX",null,null,"PURFER - ZI Carros 15ème Rue - 06517 Carros","DERICHEBOURG",null,2446]
["2018-01-10","BOIS",1360,null,"SEAS La Glacière - 1019 Rte de la Grasse","SUEZ",null,"B0300472011"]
["2018-01-10","DECHETS VERTS",1420,null,"Orédui Carros Compostage - ZI de la Grave","SUEZ",null,"B0300471919"]
["2018-01-10","TOUT VENANT",3920,null,"Véolia Nice Tri - Parc d'activité logistique","SUEZ",null,654]
["2018-01-10","DECHETS VERTS",920,null,"Orédui Carros Compostage - ZI de la Grave","SUEZ",null,"B0300472126"]
["2018-01-10","TOUT VENANT",null,null,"Véolia Nice Tri - Parc d'activité logistique","SUEZ",null,"B0300473577"]
["2018-01-10","TOUT VENANT",1160,null,"Véolia Nice Tri - Parc d'activité logistique","SUEZ",null,"B0300472477"]
["2018-01-10","TOUT VENANT",700,null,"Véolia Nice Tri - Parc d'activité logistique","SUEZ",null,"B0300472381"]
["2018-01-10","BOIS",1520,null,"SEAS La Glacière - 1019 Rte de la Grasse","SUEZ",null,"B0300471843"]
["2018-01-10","GRAVATS PROPRES",null,null,"La Gaude K3 Sita Sud - 5211 Rte de St Jeannet","SUEZ",null,"B0300473540"]
["2018-01-10","GRAVATS SALES",4700,null,{"$f":"IF(B130=\"TOUT VENANT\",\"Véolia Nice Tri - Parc d'activité logistique\",IF(B130=\"DECHETS VERTS\",\"Orédui Carros Compostage - ZI de la Grave\",IF(B130=\"GRAVATS PROPRES\",\"La Gaude K3 Sita Sud - 5211 Rte de St Jeannet\",IF(B130=\"GRAVATS SALES\",\"Véolia Nice Tri - 20 Ch du Saquier\",IF(B130=\"BOIS\",\"SEAS La Glacière - 1019 Rte de la Grasse\",IF(B130=\"METAUX\",\"PURFER - ZI Carros 15ème Rue - 06517 Carros\",IF(B130=\"BATTERIES\",\"PURFER - ZI Carros 15ème Rue - 06517 Carros\",IF(B130=\"NEON\",\"Sofovar - 126 Av Louis Lépine - 83600 Fréjus\",IF(B130=\"PEINTURES\",\"Orédui - ZI Bois de Grasse - 06310 Grasse\",IF(B130=\"PRODUITS NON IDENTIFIES\",\"Orédui - ZI Bois de Grasse - 06310 Grasse\",IF(B130=\"AEROSOLS\",\"Orédui - ZI Bois de Grasse - 06310 Grasse\",IF(B130=\"FROIDS\",\"SEAS - 1079 Rte de Grasse - 06270 Villeneuve Loubet\",IF(B130=\"HORS FROIDS\",\"SEAS - 1079 Rte de Grasse - 06270 Villeneuve Loubet\",IF(B130=\"PAM\",\"SEAS - 1079 Rte de Grasse - 06270 Villeneuve Loubet\",IF(B130=\"ECRANS\",\"SEAS - 1079 Rte de Grasse - 06270 Villeneuve Loubet\",IF(B130=\"BOX HORS FROIDS\",\"SEAS - 1079 Rte de Grasse - 06270 Villeneuve Loubet\",IF(B130=\"PILES\",\"Corepile\",IF(B130=\"CUMULUS\",\"SEAS - 1079 Rte de Grasse - 06270 Villeneuve Loubet\",IF(B130=\"PNEUS\",\"TFM Pneus - 117 Ch Clausonnes - 06560 Valbonne\",IF(B130=\"HUILES VEGETALES\",\"Orédui - ZI Bois de Grasse - 06310 Grasse\",IF(B130=\"HUILES DE VIDANGE\",\"SERAHU - 68 Ch de la Campanette - 06800 Cagnes sur Mer\")))))))))))))))))))))","v":"Véolia Nice Tri - 20 Ch du Saquier"},{"$f":"IF(OR(B130=\"TOUT VENANT\",B130=\"DECHETS VERTS\",B130=\"GRAVATS SALES\",B130=\"GRAVATS PROPRES\",B130=\"BOIS\"),\"SUEZ\",IF(OR(B130=\"PNEUS\"),\"TFM\",IF(OR(B130=\"FROIDS\",B130=\"HORS FROIDS\",B130=\"BOX HORS FROIDS\",B130=\"CUMULUS\",B130=\"PAM\",B130=\"ECRANS\"),\"SEAS\",IF(OR(B130=\"METAUX\",B130=\"BATTERIES\"),\"DERICHEBOURG\",IF(OR(B130=\"NEON\"),\"SOFOVAR\",IF(OR(B130=\"PEINTURES\",B130=\"PRODUITS NON IDENTIFIES\",B130=\"AEROSOLS\",B130=\"HUILES VEGETALES\"),\"OREDUI\",IF(OR(B130=\"HUILES DE VIDANGE\"),\"SERAHU\")))))))","v":"SUEZ"},null,"B0300473738"]
["2018-01-10","GRAVATS PROPRES",3850,null,"La Gaude K3 Sita Sud - 5211 Rte de St Jeannet","SUEZ",null,"B0300473478"]
["2018-01-10","GRAVATS PROPRES",7350,null,"La Gaude K3 Sita Sud - 5211 Rte de St Jeannet","SUEZ",null,"B0300471781"]
["2018-01-10","GRAVATS SALES",5840,null,"Véolia Nice Tri - 20 Ch du Saquier","SUEZ",null,"B0300472049"]
["2018-01-10","TOUT VENANT",null,null,"Véolia Nice Tri - Parc d'activité logistique","SUEZ",null,655]
["2018-01-10","DECHETS VERTS",680,null,"Orédui Carros Compostage - ZI de la Grave","SUEZ",null,"B0300475995"]
["2018-01-10","TOUT VENANT",2160,null,"Véolia Nice Tri - Parc d'activité logistique","SUEZ",null,"B0300475997"]
["2018-01-10","TOUT VENANT",null,null,"Véolia Nice Tri - Parc d'activité logistique","SUEZ",null,"B0300475998"]
["2018-01-10","TOUT VENANT",1360,null,"Véolia Nice Tri - Parc d'activité logistique","SUEZ",null,"B0300472350"]
["2018-01-11","METAUX",null,null,"PURFER - ZI Carros 15ème Rue - 06517 Carros","DERICHEBOURG",null,2450]
["2018-01-11","DECHETS VERTS",1000,null,"Orédui Carros Compostage - ZI de la Grave","SUEZ",null,"B0300471818"]
["2018-01-11","DECHETS VERTS",2520,null,"Orédui Carros Compostage - ZI de la Grave","SUEZ",null,"B0300471925"]
["2018-01-11","TOUT VENANT",2140,null,"Véolia Nice Tri - Parc d'activité logistique","SUEZ",null,"B0300472483"]
["2018-01-11","GRAVATS PROPRES",null,null,"La Gaude K3 Sita Sud - 5211 Rte de St Jeannet","SUEZ",null,"B0300473546"]
["2018-01-11","GRAVATS SALES",null,null,"Véolia Nice Tri - 20 Ch du Saquier","SUEZ",null,"B0300473744"]
["2018-01-11","GRAVATS PROPRES",null,null,"La Gaude K3 Sita Sud - 5211 Rte de St Jeannet","SUEZ",null,"B0300473515"]
["2018-01-11","GRAVATS SALES",null,null,"Véolia Nice Tri - 20 Ch du Saquier","SUEZ",null,"B0300472055"]
["2018-01-11","GRAVATS PROPRES",null,null,"La Gaude K3 Sita Sud - 5211 Rte de St Jeannet","SUEZ",null,"B0300473484"]
["2018-01-11","TOUT VENANT",1440,null,"Véolia Nice Tri - Parc d'activité logistique","SUEZ",null,"B0300472387"]
["2018-01-11","BOIS",1480,null,"SEAS La Glacière - 1019 Rte de la Grasse","SUEZ",null,"B0300471849"]
["2018-01-11","TOUT VENANT",null,null,"Véolia Nice Tri - Parc d'activité logistique","SUEZ",null,"B0300476015"]
["2018-01-11","TOUT VENANT",1700,null,"Véolia Nice Tri - Parc d'activité logistique","SUEZ",null,"B0300476016"]
["2018-01-11","TOUT VENANT",3200,null,"Véolia Nice Tri - Parc d'activité logistique","SUEZ",null,"B0300473583"]
["2018-01-11","DECHETS VERTS",1480,null,"Orédui Carros Compostage - ZI de la Grave","SUEZ",null,"B0300476014"]
["2018-01-11","BOIS",2180,null,"SEAS La Glacière - 1019 Rte de la Grasse","SUEZ",null,"B0300471887"]
["2018-01-11","TOUT VENANT",1580,null,"Véolia Nice Tri - Parc d'activité logistique","SUEZ",null,"B0300476017"]
["2018-01-11","NEON",null,null,"Sofovar - 126 Av Louis Lépine - 83600 Fréjus","SOFOVAR",null,"265116E"]
["2018-01-11","HUILES DE VIDANGE",900,null,"SERAHU - 68 Ch de la Campanette - 06800 Cagnes sur Mer","SERAHU",null,"0088899A"]
["2018-01-12","GRAVATS PROPRES",8850,null,"La Gaude K3 Sita Sud - 5211 Rte de St Jeannet","SUEZ",null,"B0300473491"]
["2018-01-12","GRAVATS SALES",4360,null,"Véolia Nice Tri - 20 Ch du Saquier","SUEZ",null,"B0300472062"]
["2018-01-12","DECHETS VERTS",1140,null,"Orédui Carros Compostage - ZI de la Grave","SUEZ",null,"B0300471825"]
["2018-01-12","BOIS",2420,null,"SEAS La Glacière - 1019 Rte de la Grasse","SUEZ",null,"B0300471856"]
["2018-01-12","TOUT VENANT",1500,null,"Véolia Nice Tri - Parc d'activité logistique","SUEZ",null,"B0300472490"]
["2018-01-12","TOUT VENANT",4100,null,"Véolia Nice Tri - Parc d'activité logistique","SUEZ",null,103251]
["2018-01-12","GRAVATS PROPRES",6150,null,"La Gaude K3 Sita Sud - 5211 Rte de St Jeannet","SUEZ",null,"B0300473522"]
["2018-01-12","DECHETS VERTS",1040,null,"Orédui Carros Compostage - ZI de la Grave","SUEZ",null,"B0300471932"]
["2018-01-12","GRAVATS PROPRES",4560,null,"La Gaude K3 Sita Sud - 5211 Rte de St Jeannet","SUEZ",null,"BAL085"]
["2018-01-12","BOIS",2060,null,"SEAS La Glacière - 1019 Rte de la Grasse","SUEZ",null,"B0300471894"]
["2018-01-12","GRAVATS PROPRES",6400,null,"La Gaude K3 Sita Sud - 5211 Rte de St Jeannet","SUEZ",null,"B0300473553"]
["2018-01-12","TOUT VENANT",3240,null,"Véolia Nice Tri - Parc d'activité logistique","SUEZ",null,103252]
["2018-01-12","DECHETS VERTS",2160,null,"Orédui Carros Compostage - ZI de la Grave","SUEZ",null,"B0300472133"]
["2018-01-12","TOUT VENANT",1820,null,"Véolia Nice Tri - Parc d'activité logistique","SUEZ",null,"B0300473590"]
["2018-01-12","TOUT VENANT",2020,null,"Véolia Nice Tri - Parc d'activité logistique","SUEZ",null,"B0300476072"]
["2018-01-12","BOIS",1880,null,"SEAS La Glacière - 1019 Rte de la Grasse","SUEZ",null,"B0300472024"]
["2018-01-12","TOUT VENANT",2280,null,"Véolia Nice Tri - Parc d'activité logistique","SUEZ",null,"B0300476073"]
["2018-01-12","BOIS",2200,null,"SEAS La Glacière - 1019 Rte de la Grasse","SUEZ",null,"B0300472394"]
["2018-01-12","METAUX",null,null,"PURFER - ZI Carros 15ème Rue - 06517 Carros","DERICHEBOURG",null,2205]
["2018-01-12","TOUT VENANT",1300,null,"Véolia Nice Tri - Parc d'activité logistique","SUEZ",null,"B0300476075"]
["2018-01-12","TOUT VENANT",2400,"","Véolia Nice Tri - Parc d'activité logistique","SUEZ",null,"0103306"]
["2018-01-13","METAUX",null,null,"PURFER - ZI Carros 15ème Rue - 06517 Carros","DERICHEBOURG",null,2209]
["2018-01-13","BOIS",3000,null,"SEAS La Glacière - 1019 Rte de la Grasse","SUEZ",null,"B0300472031"]
["2018-01-13","BOIS",860,null,"SEAS La Glacière - 1019 Rte de la Grasse","SUEZ",null,"B0300471901"]
["2018-01-13","DECHETS VERTS",2400,null,"Orédui Carros Compostage - ZI de la Grave","SUEZ",null,"B0300472140"]
["2018-01-13","BOIS",1440,null,"SEAS La Glacière - 1019 Rte de la Grasse","SUEZ",null,"B0300471863"]
["2018-01-13","TOUT VENANT",2580,null,"Véolia Nice Tri - Parc d'activité logistique","SUEZ",null,"B0300472168"]
["2018-01-13","TOUT VENANT",3020,null,"Véolia Nice Tri - Parc d'activité logistique","SUEZ",null,"B0300476188"]
["2018-01-13","TOUT VENANT",1840,null,"Véolia Nice Tri - Parc d'activité logistique","SUEZ",null,"B0300476189"]
["2018-01-13","TOUT VENANT",1400,null,"Véolia Nice Tri - Parc d'activité logistique","SUEZ",null,"B0300476190"]
["2018-01-13","BOIS",1520,null,"SEAS La Glacière - 1019 Rte de la Grasse","SUEZ",null,"B0300472182"]
["2018-01-13","TOUT VENANT",2340,null,"Véolia Nice Tri - Parc d'activité logistique","SUEZ",null,"B0300472189"]
["2018-01-13","TOUT VENANT",1780,null,"Véolia Nice Tri - Parc d'activité logistique","SUEZ",null,"B0300472196"]
["2018-01-13","GRAVATS PROPRES",6820,null,"La Gaude K3 Sita Sud - 5211 Rte de St Jeannet","SUEZ",null,"B0300472693"]
["2018-01-13","GRAVATS PROPRES",5700,null,"La Gaude K3 Sita Sud - 5211 Rte de St Jeannet","SUEZ",null,"B0300472707"]
["2018-01-13","GRAVATS PROPRES",10340,null,"La Gaude K3 Sita Sud - 5211 Rte de St Jeannet","SUEZ",null,"B0300472700"]
["2018-01-13","GRAVATS SALES",4140,null,{"$f":"IF(B194=\"TOUT VENANT\",\"Véolia Nice Tri - Parc d'activité logistique\",IF(B194=\"DECHETS VERTS\",\"Orédui Carros Compostage - ZI de la Grave\",IF(B194=\"GRAVATS PROPRES\",\"La Gaude K3 Sita Sud - 5211 Rte de St Jeannet\",IF(B194=\"GRAVATS SALES\",\"Véolia Nice Tri - 20 Ch du Saquier\",IF(B194=\"BOIS\",\"SEAS La Glacière - 1019 Rte de la Grasse\",IF(B194=\"METAUX\",\"PURFER - ZI Carros 15ème Rue - 06517 Carros\",IF(B194=\"BATTERIES\",\"PURFER - ZI Carros 15ème Rue - 06517 Carros\",IF(B194=\"NEON\",\"Sofovar - 126 Av Louis Lépine - 83600 Fréjus\",IF(B194=\"PEINTURES\",\"Orédui - ZI Bois de Grasse - 06310 Grasse\",IF(B194=\"PRODUITS NON IDENTIFIES\",\"Orédui - ZI Bois de Grasse - 06310 Grasse\",IF(B194=\"AEROSOLS\",\"Orédui - ZI Bois de Grasse - 06310 Grasse\",IF(B194=\"FROIDS\",\"SEAS - 1079 Rte de Grasse - 06270 Villeneuve Loubet\",IF(B194=\"HORS FROIDS\",\"SEAS - 1079 Rte de Grasse - 06270 Villeneuve Loubet\",IF(B194=\"PAM\",\"SEAS - 1079 Rte de Grasse - 06270 Villeneuve Loubet\",IF(B194=\"ECRANS\",\"SEAS - 1079 Rte de Grasse - 06270 Villeneuve Loubet\",IF(B194=\"BOX HORS FROIDS\",\"SEAS - 1079 Rte de Grasse - 06270 Villeneuve Loubet\",IF(B194=\"PILES\",\"Corepile\",IF(B194=\"CUMULUS\",\"SEAS - 1079 Rte de Grasse - 06270 Villeneuve Loubet\",IF(B194=\"PNEUS\",\"TFM Pneus - 117 Ch Clausonnes - 06560 Valbonne\",IF(B194=\"HUILES VEGETALES\",\"Orédui - ZI Bois de Grasse - 06310 Grasse\",IF(B194=\"HUILES DE VIDANGE\",\"SERAHU - 68 Ch de la Campanette - 06800 Cagnes sur Mer\")))))))))))))))))))))","v":"Véolia Nice Tri - 20 Ch du Saquier"},{"$f":"IF(OR(B194=\"TOUT VENANT\",B194=\"DECHETS VERTS\",B194=\"GRAVATS SALES\",B194=\"GRAVATS PROPRES\",B194=\"BOIS\"),\"SUEZ\",IF(OR(B194=\"PNEUS\"),\"TFM\",IF(OR(B194=\"FROIDS\",B194=\"HORS FROIDS\",B194=\"BOX HORS FROIDS\",B194=\"CUMULUS\",B194=\"PAM\",B194=\"ECRANS\"),\"SEAS\",IF(OR(B194=\"METAUX\",B194=\"BATTERIES\"),\"DERICHEBOURG\",IF(OR(B194=\"NEON\"),\"SOFOVAR\",IF(OR(B194=\"PEINTURES\",B194=\"PRODUITS NON IDENTIFIES\",B194=\"AEROSOLS\",B194=\"HUILES VEGETALES\"),\"OREDUI\",IF(OR(B194=\"HUILES DE VIDANGE\"),\"SERAHU\")))))))","v":"SUEZ"},null,"B0300473758"]
["2018-01-16","GRAVATS SALES",4060,"","Véolia Nice Tri - 20 Ch du Saquier","SUEZ",null,"B0300472044"]
["2018-01-16","DECHETS VERTS",3620,"","Orédui Carros Compostage - ZI de la Grave","SUEZ",null,"B0300471807"]
["2018-01-16","BOIS",3020,"","SEAS La Glacière - 1019 Rte de la Grasse","SUEZ",null,"B0300471838"]
["2018-01-16","METAUX","","","PURFER - ZI Carros 15ème Rue - 06517 Carros","DERICHEBOURG",null,"2214"]
["2018-01-16","PNEUS","","150","TFM Pneus - 117 Ch Clausonnes - 06560 Valbonne","TFM",null,"???"]
["2018-01-16","BOIS",1300,"","SEAS La Glacière - 1019 Rte de la Grasse","SUEZ",null,"B0300472006"]
["2018-01-16","GRAVATS SALES",3980,"","Véolia Nice Tri - 20 Ch du Saquier","SUEZ",null,"B0300473733"]
["2018-01-17","GRAVATS PROPRES",10500,"","La Gaude K3 Sita Sud - 5211 Rte de St Jeannet","SUEZ",null,"B0300473479"]
["2018-01-17","GRAVATS PROPRES",10100,"","La Gaude K3 Sita Sud - 5211 Rte de St Jeannet","SUEZ",null,"B0300473541"]
["2018-01-18","GRAVATS PROPRES",7500,"","La Gaude K3 Sita Sud - 5211 Rte de St Jeannet","SUEZ",null,"B0300473516"]
["2018-01-19","METAUX","","","PURFER - ZI Carros 15ème Rue - 06517 Carros","DERICHEBOURG",null,"227"]
["2018-01-19","TOUT VENANT",1560,"","Véolia Nice Tri - Parc d'activité logistique","SUEZ",null,"0103314"]
["2018-01-19","TOUT VENANT",3360,"","Véolia Nice Tri - Parc d'activité logistique","SUEZ",null,"0103313"]
["2018-01-19","TOUT VENANT",3860,"","Véolia Nice Tri - Parc d'activité logistique","SUEZ",null,"0103312"]
["2018-01-19","GRAVATS SALES",5680,"","Véolia Nice Tri - 20 Ch du Saquier","SUEZ",null,"B0300472063"]
["2018-01-19","GRAVATS PROPRES",4600,"","La Gaude K3 Sita Sud - 5211 Rte de St Jeannet","SUEZ",null,"B0300473523"]
["2018-01-19","GRAVATS PROPRES",9200,"","La Gaude K3 Sita Sud - 5211 Rte de St Jeannet","SUEZ",null,"B0300473492"]
["2018-01-19","GRAVATS PROPRES",7000,"","La Gaude K3 Sita Sud - 5211 Rte de St Jeannet","SUEZ",null,"B0300471795"]
["2018-01-19","BOIS",2720,"","SEAS La Glacière - 1019 Rte de la Grasse","SUEZ",null,"B0300471895"]
["2018-01-19","DECHETS VERTS",1260,"","Orédui Carros Compostage - ZI de la Grave","SUEZ",null,"B0300471933"]
["2018-01-19","DECHETS VERTS",2340,"","Orédui Carros Compostage - ZI de la Grave","SUEZ",null,"B0300471826"]
["2018-01-19","TOUT VENANT",1140,"","Véolia Nice Tri - Parc d'activité logistique","SUEZ",null,"B0300476380"]
["2018-01-19","GRAVATS SALES",5280,"","Véolia Nice Tri - 20 Ch du Saquier","SUEZ",null,"B0300473752"]
["2018-01-19","BOIS",1740,"","SEAS La Glacière - 1019 Rte de la Grasse","SUEZ",null,"B0300472025"]
["2018-01-20","METAUX","","","PURFER - ZI Carros 15ème Rue - 06517 Carros","DERICHEBOURG",null,"2322"]
["2018-01-20","BOIS",1240,"","SEAS La Glacière - 1019 Rte de la Grasse","SUEZ",null,"B0300471864"]
["2018-01-20","TOUT VENANT",1080,"","Véolia Nice Tri - Parc d'activité logistique","SUEZ",null,"B0300472176"]
["2018-01-20","GRAVATS SALES",1760,"","Véolia Nice Tri - 20 Ch du Saquier","SUEZ",null,"B0300473759"]
["2018-01-20","GRAVATS PROPRES",7260,"","La Gaude K3 Sita Sud - 5211 Rte de St Jeannet","SUEZ",null,"B0300472694"]
["2018-01-20","GRAVATS PROPRES","","","La Gaude K3 Sita Sud - 5211 Rte de St Jeannet","SUEZ",null,"B0300472701"]
["2018-01-20","DECHETS VERTS",2280,"","Orédui Carros Compostage - ZI de la Grave","SUEZ",null,"B0300472141"]
["2018-01-20","TOUT VENANT",1480,"","Véolia Nice Tri - Parc d'activité logistique","SUEZ",null,"B0300471902"]
["2018-01-20","TOUT VENANT",1900,"","Véolia Nice Tri - Parc d'activité logistique","SUEZ",null,"B0300472169"]
["2018-01-29","CUMULUS",null,3,"SEAS - 1079 Rte de Grasse - 06270 Villeneuve Loubet","SEAS",null,"ES0001282248001"]
["2018-01-29","BOX HORS FROIDS",null,1,"SEAS - 1079 Rte de Grasse - 06270 Villeneuve Loubet","SEAS",null,"ES0001282248001"]
["01/02/18","GRAVATS PROPRES",10300,"","La Gaude K3 Sita Sud - 5211 Rte de St Jeannet","SUEZ","BAL085","B0300475792"]
["12/01/18","PEINTURES","","3","Orédui - ZI Bois de Grasse - 06310 Grasse","OREDUI",null,"131077-0000200"]
["15/01/18","GRAVATS PROPRES",7800,null,"La Gaude K3 Sita Sud - 5211 Rte de St Jeannet","SUEZ",null,"B0300473467"]
["15/01/18","GRAVATS SALES",4300,null,"Véolia Nice Tri - 20 Ch du Saquier","SUEZ",null,"B0300472038"]
["1918-01-15","TOUT VENANT","",null,"Véolia Nice Tri - Parc d'activité logistique","SUEZ",null,"103301"]
["1918-01-15","METAUX","",null,"PURFER - ZI Carros 15ème Rue - 06517 Carros","DERICHEBOURG",null,"2308"]
["1918-01-15","BOIS",2560,null,"SEAS La Glacière - 1019 Rte de la Grasse","SUEZ",null,"B0300471832"]
["1918-01-15","GRAVATS PROPRES",8250,null,"La Gaude K3 Sita Sud - 5211 Rte de St Jeannet","SUEZ",null,"B0300473498"]
["1918-01-15","TOUT VENANT","",null,"Véolia Nice Tri - Parc d'activité logistique","SUEZ",null,"103302"]
["1918-01-15","TOUT VENANT",1280,null,"Véolia Nice Tri - Parc d'activité logistique","SUEZ",null,"B0300472466"]
["1918-01-15","GRAVATS PROPRES",7300,null,"La Gaude K3 Sita Sud - 5211 Rte de St Jeannet","SUEZ",null,"B0300473529"]
["1918-01-15","DECHETS VERTS",1260,null,"Orédui Carros Compostage - ZI de la Grave","SUEZ",null,"B0300471801"]
["1918-01-15","BOIS",2260,null,"SEAS La Glacière - 1019 Rte de la Grasse","SUEZ",null,"B0300471870"]
["1918-01-15","GRAVATS SALES",1100,null,"Véolia Nice Tri - 20 Ch du Saquier","SUEZ",null,"B0300473727"]
["1918-01-15","BOIS",2620,null,"SEAS La Glacière - 1019 Rte de la Grasse","SUEZ",null,"B0300472000"]
["1918-01-15","TOUT VENANT",1000,null,"Véolia Nice Tri - Parc d'activité logistique","SUEZ",null,"B0300467199"]
["1918-01-15","TOUT VENANT",2540,null,"Véolia Nice Tri - Parc d'activité logistique","SUEZ",null,"B0300473566"]
["1918-01-15","BOIS",2360,null,"SEAS La Glacière - 1019 Rte de la Grasse","SUEZ",null,"B0300472339"]
["1918-01-15","TOUT VENANT",2620,null,"Véolia Nice Tri - Parc d'activité logistique","SUEZ",null,"B0300476200"]
["1918-01-15","PEINTURES","","6","Orédui - ZI Bois de Grasse - 06310 Grasse","OREDUI",null,"131194-0000202"]
["1918-01-16","GRAVATS PROPRES",8100,"","La Gaude K3 Sita Sud - 5211 Rte de St Jeannet","SUEZ",null,"b0300473473"]
["1918-01-16","DECHETS VERTS",1360,"","Orédui Carros Compostage - ZI de la Grave","SUEZ",null,"B0300471914"]
["1918-01-16","GRAVATS PROPRES",5550,"","La Gaude K3 Sita Sud - 5211 Rte de St Jeannet","SUEZ",null,"B0300473504"]
["1918-01-16","TOUT VENANT",4700,"","Véolia Nice Tri - Parc d'activité logistique","SUEZ",null,"0103303"]
["1918-01-16","TOUT VENANT",3980,"","Véolia Nice Tri - Parc d'activité logistique","SUEZ",null,"0103304"]
["1918-01-16","BOIS",2060,"","SEAS La Glacière - 1019 Rte de la Grasse","SUEZ",null,"B0300471876"]
["1918-01-16","GRAVATS PROPRES",5150,"","La Gaude K3 Sita Sud - 5211 Rte de St Jeannet","SUEZ",null,"B0300473535"]
["1918-01-16","DECHETS VERTS",640,"","Orédui Carros Compostage - ZI de la Grave","SUEZ",null,"B0300476253"]
["1918-01-16","DECHETS VERTS",980,"",{"$f":"IF(B258=\"TOUT VENANT\",\"Véolia Nice Tri - Parc d'activité logistique\",IF(B258=\"DECHETS VERTS\",\"Orédui Carros Compostage - ZI de la Grave\",IF(B258=\"GRAVATS PROPRES\",\"La Gaude K3 Sita Sud - 5211 Rte de St Jeannet\",IF(B258=\"GRAVATS SALES\",\"Véolia Nice Tri - 20 Ch du Saquier\",IF(B258=\"BOIS\",\"SEAS La Glacière - 1019 Rte de la Grasse\",IF(B258=\"METAUX\",\"PURFER - ZI Carros 15ème Rue - 06517 Carros\",IF(B258=\"BATTERIES\",\"PURFER - ZI Carros 15ème Rue - 06517 Carros\",IF(B258=\"NEON\",\"Sofovar - 126 Av Louis Lépine - 83600 Fréjus\",IF(B258=\"PEINTURES\",\"Orédui - ZI Bois de Grasse - 06310 Grasse\",IF(B258=\"PRODUITS NON IDENTIFIES\",\"Orédui - ZI Bois de Grasse - 06310 Grasse\",IF(B258=\"AEROSOLS\",\"Orédui - ZI Bois de Grasse - 06310 Grasse\",IF(B258=\"FROIDS\",\"SEAS - 1079 Rte de Grasse - 06270 Villeneuve Loubet\",IF(B258=\"HORS FROIDS\",\"SEAS - 1079 Rte de Grasse - 06270 Villeneuve Loubet\",IF(B258=\"PAM\",\"SEAS - 1079 Rte de Grasse - 06270 Villeneuve Loubet\",IF(B258=\"ECRANS\",\"SEAS - 1079 Rte de Grasse - 06270 Villeneuve Loubet\",IF(B258=\"BOX HORS FROIDS\",\"SEAS - 1079 Rte de Grasse - 06270 Villeneuve Loubet\",IF(B258=\"PILES\",\"Corepile\",IF(B258=\"CUMULUS\",\"SEAS - 1079 Rte de Grasse - 06270 Villeneuve Loubet\",IF(B258=\"PNEUS\",\"TFM Pneus - 117 Ch Clausonnes - 06560 Valbonne\",IF(B258=\"HUILES VEGETALES\",\"Orédui - ZI Bois de Grasse - 06310 Grasse\",IF(B258=\"HUILES DE VIDANGE\",\"SERAHU - 68 Ch de la Campanette - 06800 Cagnes sur Mer\")))))))))))))))))))))","v":"Orédui Carros Compostage - ZI de la Grave"},{"$f":"IF(OR(B258=\"TOUT VENANT\",B258=\"DECHETS VERTS\",B258=\"GRAVATS SALES\",B258=\"GRAVATS PROPRES\",B258=\"BOIS\"),\"SUEZ\",IF(OR(B258=\"PNEUS\"),\"TFM\",IF(OR(B258=\"FROIDS\",B258=\"HORS FROIDS\",B258=\"BOX HORS FROIDS\",B258=\"CUMULUS\",B258=\"PAM\",B258=\"ECRANS\"),\"SEAS\",IF(OR(B258=\"METAUX\",B258=\"BATTERIES\"),\"DERICHEBOURG\",IF(OR(B258=\"NEON\"),\"SOFOVAR\",IF(OR(B258=\"PEINTURES\",B258=\"PRODUITS NON IDENTIFIES\",B258=\"AEROSOLS\",B258=\"HUILES VEGETALES\"),\"OREDUI\",IF(OR(B258=\"HUILES DE VIDANGE\"),\"SERAHU\")))))))","v":"SUEZ"},null,"B0300476254"]
["1918-01-16","BOIS",1080,"","SEAS La Glacière - 1019 Rte de la Grasse","SUEZ",null,"B0300476255"]
["1918-01-16","BOIS",2600,"","SEAS La Glacière - 1019 Rte de la Grasse","SUEZ",null,"B0300476251"]
["1918-01-16","TOUT VENANT",4100,"","Véolia Nice Tri - Parc d'activité logistique","SUEZ",null,"0103305"]
["1918-01-17","GRAVATS SALES",2340,"","Véolia Nice Tri - 20 Ch du Saquier","SUEZ",null,"B0300472050"]
["1918-01-17","DECHETS VERTS",880,"","Orédui Carros Compostage - ZI de la Grave","SUEZ",null,"B0300471813"]
["1918-01-17","GRAVATS PROPRES",9700,"","La Gaude K3 Sita Sud - 5211 Rte de St Jeannet","SUEZ",null,"B0300473510"]
["1918-01-17","HORS FROIDS","","8","SEAS - 1079 Rte de Grasse - 06270 Villeneuve Loubet","SEAS",null,"1274077"]
["1918-01-17","FROIDS","","4","SEAS - 1079 Rte de Grasse - 06270 Villeneuve Loubet","SEAS",null,"1274077"]
["1918-01-17","PAM","","1","SEAS - 1079 Rte de Grasse - 06270 Villeneuve Loubet","SEAS",null,"1274077"]
["1918-01-17","ECRANS","","1","SEAS - 1079 Rte de Grasse - 06270 Villeneuve Loubet","SEAS",null,"1274077"]
["1918-01-17","DECHETS VERTS",1500,"","Orédui Carros Compostage - ZI de la Grave","SUEZ",null,"B0300471920"]
["1918-01-17","METAUX","","","PURFER - ZI Carros 15ème Rue - 06517 Carros","DERICHEBOURG",null,"2219"]
["1918-01-17","BOIS",1560,"","SEAS La Glacière - 1019 Rte de la Grasse","SUEZ",null,"B0300471844"]
["1918-01-17","BOIS",1900,"","SEAS La Glacière - 1019 Rte de la Grasse","SUEZ",null,"B0300471882"]
["1918-01-17","GRAVATS PROPRES",3150,"","La Gaude K3 Sita Sud - 5211 Rte de St Jeannet","SUEZ",null,"B0300471782"]
["1918-01-17","GRAVATS SALES",3480,"","Véolia Nice Tri - 20 Ch du Saquier","SUEZ",null,"B0300473739"]
["1918-01-17","BOIS",1700,"","SEAS La Glacière - 1019 Rte de la Grasse","SUEZ",null,"B0300472012"]
["1918-01-17","TOUT VENANT",1360,"","Véolia Nice Tri - Parc d'activité logistique","SUEZ",null,"B0300476310"]
["1918-01-17","TOUT VENANT",3040,"","Véolia Nice Tri - Parc d'activité logistique","SUEZ",null,"B0300472382"]
["1918-01-17","TOUT VENANT",4480,"","Véolia Nice Tri - Parc d'activité logistique","SUEZ",null,"0103309"]
["1918-01-17","TOUT VENANT",2300,"","Véolia Nice Tri - Parc d'activité logistique","SUEZ",null,"0103308"]
["1918-01-17","TOUT VENANT",3020,"","Véolia Nice Tri - Parc d'activité logistique","SUEZ",null,"0103307"]
["1918-01-18","GRAVATS PROPRES",7950,"","La Gaude K3 Sita Sud - 5211 Rte de St Jeannet","SUEZ",null,"B0300473485"]
["1918-01-18","GRAVATS SALES",2560,"","Véolia Nice Tri - 20 Ch du Saquier","SUEZ",null,"B0300472056"]
["1918-01-18","DECHETS VERTS",1200,"","Orédui Carros Compostage - ZI de la Grave","SUEZ",null,"B0300471819"]
["1918-01-18","TOUT VENANT",4340,"","Véolia Nice Tri - Parc d'activité logistique","SUEZ",null,"0103310"]
["1918-01-18","DECHETS VERTS",3060,"","Orédui Carros Compostage - ZI de la Grave","SUEZ",null,"B0300471926"]
["1918-01-18","TOUT VENANT",4240,"","Véolia Nice Tri - Parc d'activité logistique","SUEZ",null,"0103311"]
["1918-01-18","GRAVATS PROPRES",7850,"","La Gaude K3 Sita Sud - 5211 Rte de St Jeannet","SUEZ",null,"B0300473547"]
["1918-01-18","GRAVATS SALES",5160,"","Véolia Nice Tri - 20 Ch du Saquier","SUEZ",null,"B0300473745"]
["1918-01-18","BOIS",2500,"","SEAS La Glacière - 1019 Rte de la Grasse","SUEZ",null,"B0300471850"]
["1918-01-18","DECHETS VERTS",2020,"","Orédui Carros Compostage - ZI de la Grave","SUEZ",null,"B0300476354"]
["1918-01-18","TOUT VENANT",1920,"","Véolia Nice Tri - Parc d'activité logistique","SUEZ",null,"B0300473584"]
["1918-01-18","TOUT VENANT",2540,"","Véolia Nice Tri - Parc d'activité logistique","SUEZ",null,"B0300472484"]
["1918-01-18","BOIS",2540,"","SEAS La Glacière - 1019 Rte de la Grasse","SUEZ",null,"B0300471888"]
["1918-01-18","BOIS",3180,"","SEAS La Glacière - 1019 Rte de la Grasse","SUEZ",null,"B0300472018"]
["1918-01-18","TOUT VENANT","","","Véolia Nice Tri - Parc d'activité logistique","SUEZ",null,"B0300476356"]
["1918-01-18","METAUX","","","PURFER - ZI Carros 15ème Rue - 06517 Carros","DERICHEBOURG",null,"2223"]
["1918-01-19","BOIS",2260,"","SEAS La Glacière - 1019 Rte de la Grasse","SUEZ",null,"B0300471857"]
["1918-01-19","PEINTURES","","3","Orédui - ZI Bois de Grasse - 06310 Grasse","OREDUI",null,"131103-0000202"]
["1918-01-19","FROIDS","","6","SEAS - 1079 Rte de Grasse - 06270 Villeneuve Loubet","SEAS",null,"ES0001276054001"]
["1918-01-19","HORS FROIDS","","4","SEAS - 1079 Rte de Grasse - 06270 Villeneuve Loubet","SEAS",null,"ES0001276054002"]
["1918-01-19","PAM","","2","SEAS - 1079 Rte de Grasse - 06270 Villeneuve Loubet","SEAS",null,"ES0001276054002"]
["1918-01-19","TOUT VENANT",4500,"","Véolia Nice Tri - Parc d'activité logistique","SUEZ",null,"0103315"]
["1918-01-20","BOIS",1400,"","SEAS La Glacière - 1019 Rte de la Grasse","SUEZ",null,"B0300472032"]
["1918-01-20","TOUT VENANT",2500,"","Véolia Nice Tri - Parc d'activité logistique","SUEZ",null,"B0300472190"]
["1918-01-20","TOUT VENANT",640,"","Véolia Nice Tri - Parc d'activité logistique","SUEZ",null,"B0300476437"]
["1918-01-20","TOUT VENANT",2900,"","Véolia Nice Tri - Parc d'activité logistique","SUEZ",null,"B0300476436"]
["1918-01-20","TOUT VENANT",3120,"","Véolia Nice Tri - Parc d'activité logistique","SUEZ",null,"B0300472197"]
["1918-01-20","TOUT VENANT","","","Véolia Nice Tri - Parc d'activité logistique","SUEZ",null,"B0300476438"]
["1918-01-20","GRAVATS PROPRES","","","La Gaude K3 Sita Sud - 5211 Rte de St Jeannet","SUEZ",null,"B0300472708"]
["1918-01-20","GRAVATS PROPRES",10550,"","La Gaude K3 Sita Sud - 5211 Rte de St Jeannet","SUEZ",null,"B0300473468"]
["1918-01-22","DECHETS VERTS",860,"","Orédui Carros Compostage - ZI de la Grave","SUEZ",null,"B0300471802"]
["1918-01-22","DECHETS VERTS",3000,"","Orédui Carros Compostage - ZI de la Grave","SUEZ",null,"B0300471909"]
["1918-01-22","GRAVATS PROPRES",5650,"","La Gaude K3 Sita Sud - 5211 Rte de St Jeannet","SUEZ",null,"B0300473499"]
["1918-01-22","METAUX","","","PURFER - ZI Carros 15ème Rue - 06517 Carros","DERICHEBOURG",null,"2232"]
["1918-01-22","BOIS",3560,"","SEAS La Glacière - 1019 Rte de la Grasse","SUEZ",null,"B0300471833"]
["1918-01-22","TOUT VENANT",3540,"","Véolia Nice Tri - Parc d'activité logistique","SUEZ",null,"0103317"]
["1918-01-22","TOUT VENANT",3740,"","Véolia Nice Tri - Parc d'activité logistique","SUEZ",null,"0103316"]
["1918-01-22","GRAVATS SALES",6480,"","Véolia Nice Tri - 20 Ch du Saquier","SUEZ",null,"B0300472039"]
["1918-01-22","GRAVATS PROPRES",10800,"","La Gaude K3 Sita Sud - 5211 Rte de St Jeannet","SUEZ",null,"B0300473530"]
["1918-01-22","TOUT VENANT","","","Véolia Nice Tri - Parc d'activité logistique","SUEZ",null,"B0300472371"]
["1918-01-22","TOUT VENANT",400,"","Véolia Nice Tri - Parc d'activité logistique","SUEZ",null,"431529"]
["1918-01-22","BOIS",3440,"",{"$f":"IF(B322=\"TOUT VENANT\",\"Véolia Nice Tri - Parc d'activité logistique\",IF(B322=\"DECHETS VERTS\",\"Orédui Carros Compostage - ZI de la Grave\",IF(B322=\"GRAVATS PROPRES\",\"La Gaude K3 Sita Sud - 5211 Rte de St Jeannet\",IF(B322=\"GRAVATS SALES\",\"Véolia Nice Tri - 20 Ch du Saquier\",IF(B322=\"BOIS\",\"SEAS La Glacière - 1019 Rte de la Grasse\",IF(B322=\"METAUX\",\"PURFER - ZI Carros 15ème Rue - 06517 Carros\",IF(B322=\"BATTERIES\",\"PURFER - ZI Carros 15ème Rue - 06517 Carros\",IF(B322=\"NEON\",\"Sofovar - 126 Av Louis Lépine - 83600 Fréjus\",IF(B322=\"PEINTURES\",\"Orédui - ZI Bois de Grasse - 06310 Grasse\",IF(B322=\"PRODUITS NON IDENTIFIES\",\"Orédui - ZI Bois de Grasse - 06310 Grasse\",IF(B322=\"AEROSOLS\",\"Orédui - ZI Bois de Grasse - 06310 Grasse\",IF(B322=\"FROIDS\",\"SEAS - 1079 Rte de Grasse - 06270 Villeneuve Loubet\",IF(B322=\"HORS FROIDS\",\"SEAS - 1079 Rte de Grasse - 06270 Villeneuve Loubet\",IF(B322=\"PAM\",\"SEAS - 1079 Rte de Grasse - 06270 Villeneuve Loubet\",IF(B322=\"ECRANS\",\"SEAS - 1079 Rte de Grasse - 06270 Villeneuve Loubet\",IF(B322=\"BOX HORS FROIDS\",\"SEAS - 1079 Rte de Grasse - 06270 Villeneuve Loubet\",IF(B322=\"PILES\",\"Corepile\",IF(B322=\"CUMULUS\",\"SEAS - 1079 Rte de Grasse - 06270 Villeneuve Loubet\",IF(B322=\"PNEUS\",\"TFM Pneus - 117 Ch Clausonnes - 06560 Valbonne\",IF(B322=\"HUILES VEGETALES\",\"Orédui - ZI Bois de Grasse - 06310 Grasse\",IF(B322=\"HUILES DE VIDANGE\",\"SERAHU - 68 Ch de la Campanette - 06800 Cagnes sur Mer\")))))))))))))))))))))","v":"SEAS La Glacière - 1019 Rte de la Grasse"},{"$f":"IF(OR(B322=\"TOUT VENANT\",B322=\"DECHETS VERTS\",B322=\"GRAVATS SALES\",B322=\"GRAVATS PROPRES\",B322=\"BOIS\"),\"SUEZ\",IF(OR(B322=\"PNEUS\"),\"TFM\",IF(OR(B322=\"FROIDS\",B322=\"HORS FROIDS\",B322=\"BOX HORS FROIDS\",B322=\"CUMULUS\",B322=\"PAM\",B322=\"ECRANS\"),\"SEAS\",IF(OR(B322=\"METAUX\",B322=\"BATTERIES\"),\"DERICHEBOURG\",IF(OR(B322=\"NEON\"),\"SOFOVAR\",IF(OR(B322=\"PEINTURES\",B322=\"PRODUITS NON IDENTIFIES\",B322=\"AEROSOLS\",B322=\"HUILES VEGETALES\"),\"OREDUI\",IF(OR(B322=\"HUILES DE VIDANGE\"),\"SERAHU\")))))))","v":"SUEZ"},null,"B0300471871"]
["1918-01-22","HORS FROIDS","","24","SEAS - 1079 Rte de Grasse - 06270 Villeneuve Loubet","SEAS",null,"ES0001277229001"]
["1918-01-22","FROIDS","","12","SEAS - 1079 Rte de Grasse - 06270 Villeneuve Loubet","SEAS",null,"ES0001277229002"]
["1918-01-22","PAM","","6","SEAS - 1079 Rte de Grasse - 06270 Villeneuve Loubet","SEAS",null,"ES0001277229002"]
["1918-01-22","GRAVATS SALES",2220,"","Véolia Nice Tri - 20 Ch du Saquier","SUEZ",null,"B0300473728"]
["1918-01-22","TOUT VENANT",1420,"","Véolia Nice Tri - Parc d'activité logistique","SUEZ",null,"B0300473567"]
["1918-01-22","TOUT VENANT",1840,"","Véolia Nice Tri - Parc d'activité logistique","SUEZ",null,"B0300476444"]
["1918-01-22","BOIS",2260,"","SEAS La Glacière - 1019 Rte de la Grasse","SUEZ",null,"B0300472001"]
["1918-01-22","TOUT VENANT",2020,"","Véolia Nice Tri - Parc d'activité logistique","SUEZ",null,"B0300476447"]
["1918-01-23","GRAVATS PROPRES",11250,"","La Gaude K3 Sita Sud - 5211 Rte de St Jeannet","SUEZ","BAL085","B0300473474"]
["1918-01-23","GRAVATS SALES",3700,"","Véolia Nice Tri - 20 Ch du Saquier","SUEZ",null,"B0300472045"]
["1918-01-23","GRAVATS SALES",3700,"","Véolia Nice Tri - 20 Ch du Saquier","SUEZ","BAL085","B0300472045"]
["1918-01-23","GRAVATS PROPRES",9350,"","La Gaude K3 Sita Sud - 5211 Rte de St Jeannet","SUEZ","BAL085","B0300473505"]
["1918-01-23","GRAVATS SALES",4660,"","Véolia Nice Tri - 20 Ch du Saquier","SUEZ","BAL085","B0300473734"]
["1918-01-23","METAUX","","","PURFER - ZI Carros 15ème Rue - 06517 Carros","DERICHEBOURG",null,"2235"]
["1918-01-23","GRAVATS PROPRES",9200,"","La Gaude K3 Sita Sud - 5211 Rte de St Jeannet","SUEZ","BAL085","B0300473536"]
["1918-01-23","GRAVATS SALES",5320,"","Véolia Nice Tri - 20 Ch du Saquier","SUEZ","BAL085","B0300471777"]
["1918-01-23","TOUT VENANT",1140,"","Véolia Nice Tri - Parc d'activité logistique","SUEZ","BA0871","B0300476514"]
["1918-01-23","TOUT VENANT",1740,"","Véolia Nice Tri - Parc d'activité logistique","SUEZ","BA0871","B0300473573"]
["1918-01-23","TOUT VENANT",2380,"","Véolia Nice Tri - Parc d'activité logistique","SUEZ","BA0870","B0300472473"]
["1918-01-23","DECHETS VERTS",2420,"","Orédui Carros Compostage - ZI de la Grave","SUEZ","BA0870","B0300471808"]
["1918-01-23","DECHETS VERTS",1920,"","Orédui Carros Compostage - ZI de la Grave","SUEZ","BA0870","B0300471915"]
["1918-01-23","BOIS",2260,"","SEAS La Glacière - 1019 Rte de la Grasse","SUEZ","BA0870","B0300471839"]
["1918-01-23","BOIS",2560,"","SEAS La Glacière - 1019 Rte de la Grasse","SUEZ","BA0870","B0300471877"]
["1918-01-23","TOUT VENANT",2800,"","Véolia Nice Tri - Parc d'activité logistique","SUEZ","BA0870","B0300472346"]
["1918-01-23","DECHETS VERTS",1620,"","Orédui Carros Compostage - ZI de la Grave","SUEZ","BA0870","B0300476517"]
["1918-01-23","BOIS",2380,"","SEAS La Glacière - 1019 Rte de la Grasse","SUEZ","BA0870","B0300472007"]
["1918-01-23","TOUT VENANT",3740,"","Véolia Nice Tri - Parc d'activité logistique","SUEZ","CY860PA","0561"]
["1918-01-23","TOUT VENANT",5580,"","Véolia Nice Tri - Parc d'activité logistique","SUEZ","CY860PA","0559"]
["1918-01-24","DECHETS VERTS",3800,"","Orédui Carros Compostage - ZI de la Grave","SUEZ","BA0874","B0300471814"]
["1918-01-24","PEINTURES","","4","Orédui - ZI Bois de Grasse - 06310 Grasse","OREDUI",4084,"131380-0000202"]
["1918-01-24","HORS FROIDS","","10","SEAS - 1079 Rte de Grasse - 06270 Villeneuve Loubet","SEAS","EJ-541-YH","ES0001279385002"]
["1918-01-24","FROIDS","","5","SEAS - 1079 Rte de Grasse - 06270 Villeneuve Loubet","SEAS","EJ-541-YH","ES0001279385002"]
["1918-01-24","PAM","","2","SEAS - 1079 Rte de Grasse - 06270 Villeneuve Loubet","SEAS","EJ-541-YH","ES0001279385002"]
["1918-01-24","ECRANS","","3","SEAS - 1079 Rte de Grasse - 06270 Villeneuve Loubet","SEAS","EJ-541-YH","ES0001279385002"]
["1918-01-24","BOIS",2300,"","SEAS La Glacière - 1019 Rte de la Grasse","SUEZ","BA0874","B0300471845"]
["1918-01-24","GRAVATS SALES",4420,"","Véolia Nice Tri - 20 Ch du Saquier","SUEZ","BA0985","B0300472051"]
["1918-01-24","GRAVATS PROPRES",5100,"","La Gaude K3 Sita Sud - 5211 Rte de St Jeannet","SUEZ","BA0985","B0300471783"]
["1918-01-24","GRAVATS PROPRES",8800,"","La Gaude K3 Sita Sud - 5211 Rte de St Jeannet","SUEZ","BA0985","B0300473542"]
["1918-01-24","GRAVATS PROPRES",9250,"","La Gaude K3 Sita Sud - 5211 Rte de St Jeannet","SUEZ","BA0985","B0300473511"]
["1918-01-24","GRAVATS PROPRES",8250,"","La Gaude K3 Sita Sud - 5211 Rte de St Jeannet","SUEZ","BA0985","B0300473480"]
["1918-01-24","DECHETS VERTS",420,"","Orédui Carros Compostage - ZI de la Grave","SUEZ","BA0870","B0300476561"]
["1918-01-24","TOUT VENANT",1720,"","Véolia Nice Tri - Parc d'activité logistique","SUEZ","BA0870","B0300476562"]
["1918-01-24","TOUT VENANT",1100,"","Véolia Nice Tri - Parc d'activité logistique","SUEZ","BA0870","B0300473579"]
["1918-01-24","GRAVATS SALES",5400,"","Véolia Nice Tri - 20 Ch du Saquier","SUEZ","BA0985","B0300473740"]
["1918-01-24","AEROSOLS","","1","Orédui - ZI Bois de Grasse - 06310 Grasse","OREDUI",null,"131380-0000202"]
["1918-01-24","PRODUITS NON IDENTIFIES","","1","Orédui - ZI Bois de Grasse - 06310 Grasse","OREDUI",null,"131380-0000202"]
["1918-01-24","TOUT VENANT",3140,"","Véolia Nice Tri - Parc d'activité logistique","SUEZ","CV108JH","0519"]
["1918-01-24","TOUT VENANT","","","Véolia Nice Tri - Parc d'activité logistique","SUEZ","CY860PA","0564"]
["1918-01-24","TOUT VENANT","","","Véolia Nice Tri - Parc d'activité logistique","SUEZ","CY860PA","0563"]
["1918-01-24","TOUT VENANT",4120,"","Véolia Nice Tri - Parc d'activité logistique","SUEZ","CY860PA","0562"]
["1918-01-24","METAUX","","","PURFER - ZI Carros 15ème Rue - 06517 Carros","DERICHEBOURG","BF837EE","2241"]
["1918-01-25","DECHETS VERTS",860,"","Orédui Carros Compostage - ZI de la Grave","SUEZ","BA0874","B0300471820"]
["1918-01-25","METAUX","","","PURFER - ZI Carros 15ème Rue - 06517 Carros","DERICHEBOURG","BF837EE","2243"]
["1918-01-25","TOUT VENANT",3460,"","Véolia Nice Tri - Parc d'activité logistique","SUEZ","CY860PA","0566"]
["1918-01-25","TOUT VENANT",2300,"","Véolia Nice Tri - Parc d'activité logistique","SUEZ","CY860PA","0565"]
["1918-01-25","BOIS",1860,"","SEAS La Glacière - 1019 Rte de la Grasse","SUEZ","BA0874","B0300471851"]
["1918-01-25","GRAVATS PROPRES",9150,"","La Gaude K3 Sita Sud - 5211 Rte de St Jeannet","SUEZ","BA0984","B0300471789"]
["1918-01-25","TOUT VENANT",2980,"","Véolia Nice Tri - Parc d'activité logistique","SUEZ","BA0874","B0300472389"]
["1918-01-25","GRAVATS PROPRES",4600,"","La Gaude K3 Sita Sud - 5211 Rte de St Jeannet","SUEZ","BA0984","B0300473548"]
["1918-01-25","GRAVATS PROPRES",6650,"","La Gaude K3 Sita Sud - 5211 Rte de St Jeannet","SUEZ","BA0984","B0300473486"]
["1918-01-25","TOUT VENANT",2080,"","Véolia Nice Tri - Parc d'activité logistique","SUEZ","BA0874","B0300472358"]
["1918-01-25","GRAVATS SALES",1280,"","Véolia Nice Tri - 20 Ch du Saquier","SUEZ","BA0984","B0300472057"]
["1918-01-25","DECHETS VERTS",740,"","Orédui Carros Compostage - ZI de la Grave","SUEZ","BA0984","B0300473517"]
["1918-01-25","TOUT VENANT","","",{"$f":"IF(B386=\"TOUT VENANT\",\"Véolia Nice Tri - Parc d'activité logistique\",IF(B386=\"DECHETS VERTS\",\"Orédui Carros Compostage - ZI de la Grave\",IF(B386=\"GRAVATS PROPRES\",\"La Gaude K3 Sita Sud - 5211 Rte de St Jeannet\",IF(B386=\"GRAVATS SALES\",\"Véolia Nice Tri - 20 Ch du Saquier\",IF(B386=\"BOIS\",\"SEAS La Glacière - 1019 Rte de la Grasse\",IF(B386=\"METAUX\",\"PURFER - ZI Carros 15ème Rue - 06517 Carros\",IF(B386=\"BATTERIES\",\"PURFER - ZI Carros 15ème Rue - 06517 Carros\",IF(B386=\"NEON\",\"Sofovar - 126 Av Louis Lépine - 83600 Fréjus\",IF(B386=\"PEINTURES\",\"Orédui - ZI Bois de Grasse - 06310 Grasse\",IF(B386=\"PRODUITS NON IDENTIFIES\",\"Orédui - ZI Bois de Grasse - 06310 Grasse\",IF(B386=\"AEROSOLS\",\"Orédui - ZI Bois de Grasse - 06310 Grasse\",IF(B386=\"FROIDS\",\"SEAS - 1079 Rte de Grasse - 06270 Villeneuve Loubet\",IF(B386=\"HORS FROIDS\",\"SEAS - 1079 Rte de Grasse - 06270 Villeneuve Loubet\",IF(B386=\"PAM\",\"SEAS - 1079 Rte de Grasse - 06270 Villeneuve Loubet\",IF(B386=\"ECRANS\",\"SEAS - 1079 Rte de Grasse - 06270 Villeneuve Loubet\",IF(B386=\"BOX HORS FROIDS\",\"SEAS - 1079 Rte de Grasse - 06270 Villeneuve Loubet\",IF(B386=\"PILES\",\"Corepile\",IF(B386=\"CUMULUS\",\"SEAS - 1079 Rte de Grasse - 06270 Villeneuve Loubet\",IF(B386=\"PNEUS\",\"TFM Pneus - 117 Ch Clausonnes - 06560 Valbonne\",IF(B386=\"HUILES VEGETALES\",\"Orédui - ZI Bois de Grasse - 06310 Grasse\",IF(B386=\"HUILES DE VIDANGE\",\"SERAHU - 68 Ch de la Campanette - 06800 Cagnes sur Mer\")))))))))))))))))))))","v":"Véolia Nice Tri - Parc d'activité logistique"},{"$f":"IF(OR(B386=\"TOUT VENANT\",B386=\"DECHETS VERTS\",B386=\"GRAVATS SALES\",B386=\"GRAVATS PROPRES\",B386=\"BOIS\"),\"SUEZ\",IF(OR(B386=\"PNEUS\"),\"TFM\",IF(OR(B386=\"FROIDS\",B386=\"HORS FROIDS\",B386=\"BOX HORS FROIDS\",B386=\"CUMULUS\",B386=\"PAM\",B386=\"ECRANS\"),\"SEAS\",IF(OR(B386=\"METAUX\",B386=\"BATTERIES\"),\"DERICHEBOURG\",IF(OR(B386=\"NEON\"),\"SOFOVAR\",IF(OR(B386=\"PEINTURES\",B386=\"PRODUITS NON IDENTIFIES\",B386=\"AEROSOLS\",B386=\"HUILES VEGETALES\"),\"OREDUI\",IF(OR(B386=\"HUILES DE VIDANGE\"),\"SERAHU\")))))))","v":"SUEZ"},"CV108JH","0523"]
["1918-01-25","TOUT VENANT",4100,"","Véolia Nice Tri - Parc d'activité logistique","SUEZ","CY860PA","0567"]
["1918-01-25","BOIS",3400,"","SEAS La Glacière - 1019 Rte de la Grasse","SUEZ","BA0874","B0300472019"]
["1918-01-25","BOIS",2900,"","SEAS La Glacière - 1019 Rte de la Grasse","SUEZ","BA0874","B0300471889"]
["1918-01-25","TOUT VENANT",2000,"","Véolia Nice Tri - Parc d'activité logistique","SUEZ","BA0872","B0300476605"]
["1918-01-25","TOUT VENANT",2340,"","Véolia Nice Tri - Parc d'activité logistique","SUEZ","BA0872","B0300476607"]
["1918-01-25","TOUT VENANT",2580,"","Véolia Nice Tri - Parc d'activité logistique","SUEZ","BA0872","B0300476604"]
["1918-01-25","TOUT VENANT",1460,"","Véolia Nice Tri - Parc d'activité logistique","SUEZ","BA0872","B0300472485"]
["1918-01-25","GRAVATS SALES",2160,"","Véolia Nice Tri - 20 Ch du Saquier","SUEZ","BA0984","B0300473746"]
["1918-01-25","TOUT VENANT",1460,"","Véolia Nice Tri - Parc d'activité logistique","SUEZ","BA0872","B0300476608"]
["1918-01-26","TOUT VENANT",1800,"","Véolia Nice Tri - Parc d'activité logistique","SUEZ","BA0869","B0300472492"]
["1918-01-26","DECHETS VERTS",2960,"","Orédui Carros Compostage - ZI de la Grave","SUEZ","BA0869","B0300473592"]
["1918-01-26","GRAVATS PROPRES",8850,"","La Gaude K3 Sita Sud - 5211 Rte de St Jeannet","SUEZ","BAL085","B0300473493"]
["1918-01-26","BOIS",3760,"","SEAS La Glacière - 1019 Rte de la Grasse","SUEZ","BA0874","B0300471858"]
["1918-01-26","TOUT VENANT",2980,"","Véolia Nice Tri - Parc d'activité logistique","SUEZ","CY860PA","0568"]
["1918-01-26","PEINTURES","","5","Orédui - ZI Bois de Grasse - 06310 Grasse","OREDUI",4084,"131475-0000202"]
["1918-01-26","DECHETS VERTS",2180,"","Orédui Carros Compostage - ZI de la Grave","SUEZ","BA0874","B0300471827"]
["1918-01-26","GRAVATS SALES",3220,"","Véolia Nice Tri - 20 Ch du Saquier","SUEZ","BAL085","B0300472064"]
["1918-01-26","TOUT VENANT",2080,"","Véolia Nice Tri - Parc d'activité logistique","SUEZ","BA0869","B0300476662"]
["1918-01-26","TOUT VENANT",1480,"","Véolia Nice Tri - Parc d'activité logistique","SUEZ","BA0874","B0300472396"]
["1918-01-26","TOUT VENANT","","","Véolia Nice Tri - Parc d'activité logistique","SUEZ","BF837EE","2248"]
["1918-01-26","TOUT VENANT",2820,"","Véolia Nice Tri - Parc d'activité logistique","SUEZ","CY860PA","0569"]
["1918-01-26","TOUT VENANT","","","Véolia Nice Tri - Parc d'activité logistique","SUEZ","CV108JH","0527"]
["1918-01-26","TOUT VENANT",2720,"","Véolia Nice Tri - Parc d'activité logistique","SUEZ","BA0869","B0300476663"]
["1918-01-26","TOUT VENANT",1140,"","Véolia Nice Tri - Parc d'activité logistique","SUEZ","BA0869","B0300476664"]
["1918-01-26","TOUT VENANT","","","Véolia Nice Tri - Parc d'activité logistique","SUEZ","CY860PA","0570"]
["1918-01-26","BOIS",1540,"","SEAS La Glacière - 1019 Rte de la Grasse","SUEZ","BA0874","B0300471896"]
["1918-01-26","BOIS",1800,"","SEAS La Glacière - 1019 Rte de la Grasse","SUEZ","BA0869","B0300476665"]
["1918-01-26","FROIDS","","17","SEAS - 1079 Rte de Grasse - 06270 Villeneuve Loubet","SEAS","DG948QC","1281316"]
["1918-01-26","PAM","","6","SEAS - 1079 Rte de Grasse - 06270 Villeneuve Loubet","SEAS","DG948QC","1281316"]
["1918-01-26","ECRANS","","1","SEAS - 1079 Rte de Grasse - 06270 Villeneuve Loubet","SEAS","DG948QC","1281316"]
["1918-01-26","HORS FROIDS","","22","SEAS - 1079 Rte de Grasse - 06270 Villeneuve Loubet","SEAS","DG948QC","1281316"]
["1918-01-26","BOIS",2880,"","SEAS La Glacière - 1019 Rte de la Grasse","SUEZ","BA0874","B0300472026"]
["1918-01-26","GRAVATS PROPRES",11650,"","La Gaude K3 Sita Sud - 5211 Rte de St Jeannet","SUEZ","BAL085","B0300471796"]
["1918-01-26","GRAVATS PROPRES",8600,"","La Gaude K3 Sita Sud - 5211 Rte de St Jeannet","SUEZ","BAL085","B0300473555"]
["1918-01-27","GRAVATS PROPRES",7640,"","La Gaude K3 Sita Sud - 5211 Rte de St Jeannet","SUEZ","BAL085","B0300472695"]
["1918-01-27","DECHETS VERTS",1600,"","Orédui Carros Compostage - ZI de la Grave","SUEZ","BA0870","B0300472212"]
["1918-01-27","DECHETS VERTS",2800,"","Orédui Carros Compostage - ZI de la Grave","SUEZ","BA0870","B0300472205"]
["1918-01-27","GRAVATS SALES",6420,"","Véolia Nice Tri - 20 Ch du Saquier","SUEZ","BAL085","B0300473760"]
["1918-01-27","METAUX","","","PURFER - ZI Carros 15ème Rue - 06517 Carros","DERICHEBOURG","CY860PA","0571"]
["1918-01-27","GRAVATS PROPRES",6420,"","La Gaude K3 Sita Sud - 5211 Rte de St Jeannet","SUEZ","B0300476608","B0300472709"]
["1918-01-27","GRAVATS PROPRES",8880,"","La Gaude K3 Sita Sud - 5211 Rte de St Jeannet","SUEZ","BAL085","B0300472702"]
["1918-01-27","TOUT VENANT",2600,"","Véolia Nice Tri - Parc d'activité logistique","SUEZ","BA0870","B0300472177"]
["1918-01-27","TOUT VENANT",1340,"","Véolia Nice Tri - Parc d'activité logistique","SUEZ",null,"B0300427170"]
["1918-01-27","TOUT VENANT",1220,"","Véolia Nice Tri - Parc d'activité logistique","SUEZ","BA0870","B0300471903"]
["1918-01-27","TOUT VENANT",1140,"","Véolia Nice Tri - Parc d'activité logistique","SUEZ","BA0986","B0300476700"]
["1918-01-27","TOUT VENANT",1280,"","Véolia Nice Tri - Parc d'activité logistique","SUEZ","BA0986","B0300476699"]
["1918-01-27","TOUT VENANT",3320,"","Véolia Nice Tri - Parc d'activité logistique","SUEZ","BA0986","B0300472184"]
["1918-01-27","TOUT VENANT",1320,"","Véolia Nice Tri - Parc d'activité logistique","SUEZ","BA0986","B0300472191"]
["1918-01-27","TOUT VENANT",820,"","Véolia Nice Tri - Parc d'activité logistique","SUEZ","BA0986","B0300472198"]
["1918-01-27","TOUT VENANT",2100,"","Véolia Nice Tri - Parc d'activité logistique","SUEZ","BA0986","B0300476698"]
["1918-01-27","TOUT VENANT",2470,"","Véolia Nice Tri - Parc d'activité logistique","SUEZ","BA0986","B0300476701"]
["1918-01-27","BOIS",2380,"","SEAS La Glacière - 1019 Rte de la Grasse","SUEZ","BA0870","B0300471865"]
["1918-01-29","HORS FROIDS","","16","SEAS - 1079 Rte de Grasse - 06270 Villeneuve Loubet","SEAS",null,"ES0001282248001"]
["1918-01-29","PAM","","2","SEAS - 1079 Rte de Grasse - 06270 Villeneuve Loubet","SEAS",null,"ES0001282248001"]
["1918-01-29","ECRANS","","1","SEAS - 1079 Rte de Grasse - 06270 Villeneuve Loubet","SEAS",null,"ES0001282248001"]
["1918-01-29","FROIDS","","10","SEAS - 1079 Rte de Grasse - 06270 Villeneuve Loubet","SEAS",null,"ES0001282248001"]
["1918-01-29","TOUT VENANT",980,"","Véolia Nice Tri - Parc d'activité logistique","SUEZ","BA0874","B0300475286"]
["1918-01-29","GRAVATS SALES",6120,"","Véolia Nice Tri - 20 Ch du Saquier","SUEZ","BA0865","B0300474920"]
["1918-01-29","GRAVATS PROPRES",9250,"","La Gaude K3 Sita Sud - 5211 Rte de St Jeannet","SUEZ","BA0865","B0300475780"]
["1918-01-29","TOUT VENANT",8040,"","Véolia Nice Tri - Parc d'activité logistique","SUEZ","CY860PA","2336"]
["1918-01-29","DECHETS VERTS",1300,"","Orédui Carros Compostage - ZI de la Grave","SUEZ","BA0874","B0300474779"]
["1918-01-29","METAUX","","","PURFER - ZI Carros 15ème Rue - 06517 Carros","DERICHEBOURG","BF837EE","0803"]
["1918-01-29","GRAVATS PROPRES",4100,"","La Gaude K3 Sita Sud - 5211 Rte de St Jeannet","SUEZ","BA0865","B0300475800"]
["1918-01-29","GRAVATS PROPRES",3760,"",{"$f":"IF(B450=\"TOUT VENANT\",\"Véolia Nice Tri - Parc d'activité logistique\",IF(B450=\"DECHETS VERTS\",\"Orédui Carros Compostage - ZI de la Grave\",IF(B450=\"GRAVATS PROPRES\",\"La Gaude K3 Sita Sud - 5211 Rte de St Jeannet\",IF(B450=\"GRAVATS SALES\",\"Véolia Nice Tri - 20 Ch du Saquier\",IF(B450=\"BOIS\",\"SEAS La Glacière - 1019 Rte de la Grasse\",IF(B450=\"METAUX\",\"PURFER - ZI Carros 15ème Rue - 06517 Carros\",IF(B450=\"BATTERIES\",\"PURFER - ZI Carros 15ème Rue - 06517 Carros\",IF(B450=\"NEON\",\"Sofovar - 126 Av Louis Lépine - 83600 Fréjus\",IF(B450=\"PEINTURES\",\"Orédui - ZI Bois de Grasse - 06310 Grasse\",IF(B450=\"PRODUITS NON IDENTIFIES\",\"Orédui - ZI Bois de Grasse - 06310 Grasse\",IF(B450=\"AEROSOLS\",\"Orédui - ZI Bois de Grasse - 06310 Grasse\",IF(B450=\"FROIDS\",\"SEAS - 1079 Rte de Grasse - 06270 Villeneuve Loubet\",IF(B450=\"HORS FROIDS\",\"SEAS - 1079 Rte de Grasse - 06270 Villeneuve Loubet\",IF(B450=\"PAM\",\"SEAS - 1079 Rte de Grasse - 06270 Villeneuve Loubet\",IF(B450=\"ECRANS\",\"SEAS - 1079 Rte de Grasse - 06270 Villeneuve Loubet\",IF(B450=\"BOX HORS FROIDS\",\"SEAS - 1079 Rte de Grasse - 06270 Villeneuve Loubet\",IF(B450=\"PILES\",\"Corepile\",IF(B450=\"CUMULUS\",\"SEAS - 1079 Rte de Grasse - 06270 Villeneuve Loubet\",IF(B450=\"PNEUS\",\"TFM Pneus - 117 Ch Clausonnes - 06560 Valbonne\",IF(B450=\"HUILES VEGETALES\",\"Orédui - ZI Bois de Grasse - 06310 Grasse\",IF(B450=\"HUILES DE VIDANGE\",\"SERAHU - 68 Ch de la Campanette - 06800 Cagnes sur Mer\")))))))))))))))))))))","v":"La Gaude K3 Sita Sud - 5211 Rte de St Jeannet"},{"$f":"IF(OR(B450=\"TOUT VENANT\",B450=\"DECHETS VERTS\",B450=\"GRAVATS SALES\",B450=\"GRAVATS PROPRES\",B450=\"BOIS\"),\"SUEZ\",IF(OR(B450=\"PNEUS\"),\"TFM\",IF(OR(B450=\"FROIDS\",B450=\"HORS FROIDS\",B450=\"BOX HORS FROIDS\",B450=\"CUMULUS\",B450=\"PAM\",B450=\"ECRANS\"),\"SEAS\",IF(OR(B450=\"METAUX\",B450=\"BATTERIES\"),\"DERICHEBOURG\",IF(OR(B450=\"NEON\"),\"SOFOVAR\",IF(OR(B450=\"PEINTURES\",B450=\"PRODUITS NON IDENTIFIES\",B450=\"AEROSOLS\",B450=\"HUILES VEGETALES\"),\"OREDUI\",IF(OR(B450=\"HUILES DE VIDANGE\"),\"SERAHU\")))))))","v":"SUEZ"},"BA0865","B0300474759"]
["1918-01-29","TOUT VENANT",1280,"","Véolia Nice Tri - Parc d'activité logistique","SUEZ","BA0986","B0300476708"]
["1918-01-29","TOUT VENANT",2000,"","Véolia Nice Tri - Parc d'activité logistique","SUEZ","BA0986","B0300475361"]
["1918-01-29","TOUT VENANT",4360,"","Véolia Nice Tri - Parc d'activité logistique","SUEZ","CY860PA","0573"]
["1918-01-29","BOIS",3440,"","SEAS La Glacière - 1019 Rte de la Grasse","SUEZ","BA0874","B0300474822"]
["1918-01-29","BOIS",2480,"","SEAS La Glacière - 1019 Rte de la Grasse","SUEZ","BA0874","B0300474799"]
["1918-01-29","DECHETS VERTS",2140,"","Orédui Carros Compostage - ZI de la Grave","SUEZ","BA0874","B0300474845"]
["1918-01-29","TOUT VENANT",3020,"","Véolia Nice Tri - Parc d'activité logistique","SUEZ","CY860PA","0574"]
["1918-01-29","BOIS",2680,"","SEAS La Glacière - 1019 Rte de la Grasse","SUEZ","BA0874","B0300474897"]
["1918-01-30","GRAVATS SALES",3700,"","Véolia Nice Tri - 20 Ch du Saquier","SUEZ","BAL085","B0300474924"]
["1918-01-30","GRAVATS PROPRES",9450,"","La Gaude K3 Sita Sud - 5211 Rte de St Jeannet","SUEZ","BAL085","B0300475784"]
["1918-01-30","TOUT VENANT",2300,"","Véolia Nice Tri - Parc d'activité logistique","SUEZ","CY860PA","0575"]
["1918-01-30","HUILES DE VIDANGE",900,"","SERAHU - 68 Ch de la Campanette - 06800 Cagnes sur Mer","SERAHU","CN458D","0090221"]
["1918-01-30","DECHETS VERTS",980,"","Orédui Carros Compostage - ZI de la Grave","SUEZ","BA0874","B0300474783"]
["1918-01-30","GRAVATS PROPRES",10550,"","La Gaude K3 Sita Sud - 5211 Rte de St Jeannet","SUEZ","BAL085","B0300475804"]
["1918-01-30","DECHETS VERTS",1460,"","Orédui Carros Compostage - ZI de la Grave","SUEZ","BA0874","B0300474849"]
["1918-01-30","GRAVATS PROPRES",6000,"","La Gaude K3 Sita Sud - 5211 Rte de St Jeannet","SUEZ","BAL085","B0300475824"]
["1918-01-30","TOUT VENANT",1760,"","Véolia Nice Tri - Parc d'activité logistique","SUEZ","BA0874","B0300475365"]
["1918-01-30","GRAVATS PROPRES",5700,"","La Gaude K3 Sita Sud - 5211 Rte de St Jeannet","SUEZ","BA0865","B0300474763"]
["1918-01-30","BOIS",2180,"","SEAS La Glacière - 1019 Rte de la Grasse","SUEZ","BA0874","B0300474803"]
["1918-01-30","TOUT VENANT",2640,"","Véolia Nice Tri - Parc d'activité logistique","SUEZ","BA0874","B0300475290"]
["1918-01-30","BOIS",2640,"","SEAS La Glacière - 1019 Rte de la Grasse","SUEZ","BA0874","B0300474826"]
["1918-01-30","TOUT VENANT",2640,"","Véolia Nice Tri - Parc d'activité logistique","SUEZ","CY860PA","0578"]
["1918-01-30","TOUT VENANT",4000,"","Véolia Nice Tri - Parc d'activité logistique","SUEZ","CY860PA","0577"]
["1918-01-30","GRAVATS SALES",5820,"","Véolia Nice Tri - 20 Ch du Saquier","SUEZ","BA0865","B0300475952"]
["1918-01-30","TOUT VENANT",1440,"","Véolia Nice Tri - Parc d'activité logistique","SUEZ","BA0874","B0300474901"]
["1918-01-30","TOUT VENANT","","","Véolia Nice Tri - Parc d'activité logistique","SUEZ","CY860PA","2337"]
["1918-01-30","METAUX","","","PURFER - ZI Carros 15ème Rue - 06517 Carros","DERICHEBOURG","BF837EE","0808"]
["1918-01-31","TOUT VENANT","","","Véolia Nice Tri - Parc d'activité logistique","SUEZ","","0579"]
["1918-01-31","DECHETS VERTS",2780,"","Orédui Carros Compostage - ZI de la Grave","SUEZ","","B0300474787"]
["1918-01-31","GRAVATS SALES",5520,"","Véolia Nice Tri - 20 Ch du Saquier","SUEZ","","B0300474928"]
["1918-01-31","GRAVATS PROPRES",10750,"","La Gaude K3 Sita Sud - 5211 Rte de St Jeannet","SUEZ","","B0300475788"]
["1918-01-31","NEON","","1","Sofovar - 126 Av Louis Lépine - 83600 Fréjus","SOFOVAR","","268099E"]
["1918-01-31","DECHETS VERTS",3200,"","Orédui Carros Compostage - ZI de la Grave","SUEZ","BA0874","B0300474853"]
["1918-01-31","GRAVATS PROPRES",8900,"","La Gaude K3 Sita Sud - 5211 Rte de St Jeannet","SUEZ","BAL085","B0300475808"]
["1918-01-31","TOUT VENANT","","","Véolia Nice Tri - Parc d'activité logistique","SUEZ","CY860PA","0580"]
["1918-01-31","HORS FROIDS","","6","SEAS - 1079 Rte de Grasse - 06270 Villeneuve Loubet","SEAS","","ES0001284678001"]
["1918-01-31","FROIDS","","6","SEAS - 1079 Rte de Grasse - 06270 Villeneuve Loubet","SEAS","","ES0001284678001"]
["1918-01-31","PAM","","2","SEAS - 1079 Rte de Grasse - 06270 Villeneuve Loubet","SEAS","","ES0001284678001"]
["1918-01-31","PEINTURES","","4","Orédui - ZI Bois de Grasse - 06310 Grasse","OREDUI","4084","131552-0000202"]
["1918-01-31","PRODUITS NON IDENTIFIES","","3","Orédui - ZI Bois de Grasse - 06310 Grasse","OREDUI","4084","131552-0000202"]
["1918-01-31","TOUT VENANT",1280,"","Véolia Nice Tri - Parc d'activité logistique","SUEZ","BAL086","B0300476953"]
["1918-01-31","BOIS",2300,"","SEAS La Glacière - 1019 Rte de la Grasse","SUEZ","BAL086","B0300476952"]
["1918-01-31","TOUT VENANT",3120,"","Véolia Nice Tri - Parc d'activité logistique","SUEZ","BAL086","B0300476954"]
["1918-01-31","TOUT VENANT",1580,"","Véolia Nice Tri - Parc d'activité logistique","SUEZ","BAL086","B0300475369"]
["1918-01-31","TOUT VENANT",2340,"","Véolia Nice Tri - Parc d'activité logistique","SUEZ","BAL086","B0300475852"]
["1918-01-31","GRAVATS SALES",5380,"","Véolia Nice Tri - 20 Ch du Saquier","SUEZ","BAL085","B0300475956"]
["1918-01-31","BOIS",2780,"","SEAS La Glacière - 1019 Rte de la Grasse","SUEZ","BAO874","B0300474830"]
["1918-01-31","BOIS",2580,"","SEAS La Glacière - 1019 Rte de la Grasse","SUEZ","BAO874","B0300474807"]
["1918-01-31","GRAVATS PROPRES",8400,"","La Gaude K3 Sita Sud - 5211 Rte de St Jeannet","SUEZ","BAL085","B0300475828"]
["1918-01-31","TOUT VENANT","","","Véolia Nice Tri - Parc d'activité logistique","SUEZ","CY860PA","0582"]
["1918-01-31","TOUT VENANT","","","Véolia Nice Tri - Parc d'activité logistique","SUEZ","CY860PA","0581"]
["1918-01-31","METAUX","","","PURFER - ZI Carros 15ème Rue - 06517 Carros","DERICHEBOURG","BF837EE","0812"]
["1918-01-31","TOUT VENANT",1660,"","Véolia Nice Tri - Parc d'activité logistique","SUEZ","BA0874","B0300475294"]
["1918-01-31","TOUT VENANT","","","Véolia Nice Tri - Parc d'activité logistique","SUEZ","BA0874","B0300475134"]
["1918-01-31","GRAVATS PROPRES","","","La Gaude K3 Sita Sud - 5211 Rte de St Jeannet","SUEZ","BA0868","B0300474767"]

{"sheet":"Registre_févr","index":9,"n_rows":1000,"n_cols":14,"rows_kept":1000,"cut":false,"hidden":false,"merged":[[16,11,16,12],[24,11,24,12]]}
["Date d'enlèvement","Nature du déchets","Quantité de déchets\n (en kg)","Unité","Installation de destination \n(nom et adresse)","Transporteur ","Immatriculation","Fiche d'intervention","Signature"]
["01/02/18","GRAVATS SALES","3000","",{"$f":"IF(B2=\"TOUT VENANT\",\"Véolia Nice Tri - Parc d'activité logistique\",IF(B2=\"DECHETS VERTS\",\"Orédui Carros Compostage - ZI de la Grave\",IF(B2=\"GRAVATS PROPRES\",\"La Gaude K3 Sita Sud - 5211 Rte de St Jeannet\",IF(B2=\"GRAVATS SALES\",\"Véolia Nice Tri - 20 Ch du Saquier\",IF(B2=\"BOIS\",\"SEAS La Glacière - 1019 Rte de la Grasse\",IF(B2=\"METAUX\",\"PURFER - ZI Carros 15ème Rue - 06517 Carros\",IF(B2=\"BATTERIES\",\"PURFER - ZI Carros 15ème Rue - 06517 Carros\",IF(B2=\"NEON\",\"Sofovar - 126 Av Louis Lépine - 83600 Fréjus\",IF(B2=\"PEINTURES\",\"Orédui - ZI Bois de Grasse - 06310 Grasse\",IF(B2=\"PRODUITS NON IDENTIFIES\",\"Orédui - ZI Bois de Grasse - 06310 Grasse\",IF(B2=\"AEROSOLS\",\"Orédui - ZI Bois de Grasse - 06310 Grasse\",IF(B2=\"FROIDS\",\"SEAS - 1079 Rte de Grasse - 06270 Villeneuve Loubet\",IF(B2=\"HORS FROIDS\",\"SEAS - 1079 Rte de Grasse - 06270 Villeneuve Loubet\",IF(B2=\"PAM\",\"SEAS - 1079 Rte de Grasse - 06270 Villeneuve Loubet\",IF(B2=\"ECRANS\",\"SEAS - 1079 Rte de Grasse - 06270 Villeneuve Loubet\",IF(B2=\"BOX HORS FROIDS\",\"SEAS - 1079 Rte de Grasse - 06270 Villeneuve Loubet\",IF(B2=\"PILES\",\"Corepile\",IF(B2=\"CUMULUS\",\"SEAS - 1079 Rte de Grasse - 06270 Villeneuve Loubet\",IF(B2=\"PNEUS\",\"TFM Pneus - 117 Ch Clausonnes - 06560 Valbonne\",IF(B2=\"HUILES VEGETALES\",\"Orédui - ZI Bois de Grasse - 06310 Grasse\",IF(B2=\"HUILES DE VIDANGE\",\"SERAHU - 68 Ch de la Campanette - 06800 Cagnes sur Mer\")))))))))))))))))))))","v":"Véolia Nice Tri - 20 Ch du Saquier"},{"$f":"IF(OR(B2=\"TOUT VENANT\",B2=\"DECHETS VERTS\",B2=\"GRAVATS SALES\",B2=\"GRAVATS PROPRES\",B2=\"BOIS\"),\"SUEZ\",IF(OR(B2=\"PNEUS\"),\"TFM\",IF(OR(B2=\"FROIDS\",B2=\"HORS FROIDS\",B2=\"BOX HORS FROIDS\",B2=\"CUMULUS\",B2=\"PAM\",B2=\"ECRANS\"),\"SEAS\",IF(OR(B2=\"METAUX\",B2=\"BATTERIES\"),\"DERICHEBOURG\",IF(OR(B2=\"NEON\"),\"SOFOVAR\",IF(OR(B2=\"PEINTURES\",B2=\"PRODUITS NON IDENTIFIES\",B2=\"AEROSOLS\",B2=\"HUILES VEGETALES\"),\"OREDUI\",IF(OR(B2=\"HUILES DE VIDANGE\"),\"SERAHU\")))))))","v":"SUEZ"},"BAL085","B0300474932"]
["01/02/18","TOUT VENANT","","","Véolia Nice Tri - Parc d'activité logistique","SUEZ","CY860PA","0583"]
["01/02/18","GRAVATS PROPRES","10650","","La Gaude K3 Sita Sud - 5211 Rte de St Jeannet","SUEZ","BAL085","B0300475812"]
["01/02/18","TOUT VENANT","","","Véolia Nice Tri - Parc d'activité logistique","SUEZ","CY860PA","0584"]
["01/02/18","METAUX","","","PURFER - ZI Carros 15ème Rue - 06517 Carros","DERICHEBOURG","BF837EE","0815"]
["01/02/18","GRAVATS SALES","5820","","Véolia Nice Tri - 20 Ch du Saquier","SUEZ","BAL085","B0300475960"]
["01/02/18","GRAVATS PROPRES","6400","","La Gaude K3 Sita Sud - 5211 Rte de St Jeannet","SUEZ","BAL085","B0300475832"]
["01/02/18","BOIS","2340","","SEAS La Glacière - 1019 Rte de la Grasse","SUEZ","BA0872","B0300474909"]
["01/02/18","TOUT VENANT","2060","","Véolia Nice Tri - Parc d'activité logistique","SUEZ","BA0872","B0300475856"]
["01/02/18","TOUT VENANT","1640","","Véolia Nice Tri - Parc d'activité logistique","SUEZ","BA0872","B0300475373"]
["01/02/18","TOUT VENANT","2160","","Véolia Nice Tri - Parc d'activité logistique","SUEZ","BA0872","B0300475298"]
["01/02/18","BOIS","2980","","SEAS La Glacière - 1019 Rte de la Grasse","SUEZ","BA0872","B0300474834"]
["01/02/18","TOUT VENANT","1660","","Véolia Nice Tri - Parc d'activité logistique","SUEZ","BA0872","B0300475138"]
["01/02/18","DECHETS VERTS","1980","","Orédui Carros Compostage - ZI de la Grave","SUEZ","BA0872","B0300474857"]
["01/02/18","DECHETS VERTS","3080","","Orédui Carros Compostage - ZI de la Grave","SUEZ","BA0872","B0300474791"]
["01/02/18","BOIS","2040","","SEAS La Glacière - 1019 Rte de la Grasse","SUEZ","BA0872","B0300474811",null,null,null,"PRESTATIONS JOURNALIERES SUEZ"]
["01/02/18","TOUT VENANT","","","Véolia Nice Tri - Parc d'activité logistique","SUEZ","CY860PA","0585",null,null,null,"6 TV ","6 ROTATIONS DE CAMION AMPIROLES"]
["01/02/18","TOUT VENANT","","","Véolia Nice Tri - Parc d'activité logistique","SUEZ","CY860PA","0586",null,null,null,"6 TV ","3 ROTATIONS DE CAMION GRAPPIN","LUNDI 4 ROTATIONS DE GRAPPIN"]
["02/02/18","PEINTURES","","5",{"$f":"IF(B20=\"TOUT VENANT\",\"Véolia Nice Tri - Parc d'activité logistique\",IF(B20=\"DECHETS VERTS\",\"Orédui Carros Compostage - ZI de la Grave\",IF(B20=\"GRAVATS PROPRES\",\"La Gaude K3 Sita Sud - 5211 Rte de St Jeannet\",IF(B20=\"GRAVATS SALES\",\"Véolia Nice Tri - 20 Ch du Saquier\",IF(B20=\"BOIS\",\"SEAS La Glacière - 1019 Rte de la Grasse\",IF(B20=\"METAUX\",\"PURFER - ZI Carros 15ème Rue - 06517 Carros\",IF(B20=\"BATTERIES\",\"PURFER - ZI Carros 15ème Rue - 06517 Carros\",IF(B20=\"NEON\",\"Sofovar - 126 Av Louis Lépine - 83600 Fréjus\",IF(B20=\"PEINTURES\",\"Orédui - ZI Bois de Grasse - 06310 Grasse\",IF(B20=\"PRODUITS NON IDENTIFIES\",\"Orédui - ZI Bois de Grasse - 06310 Grasse\",IF(B20=\"AEROSOLS\",\"Orédui - ZI Bois de Grasse - 06310 Grasse\",IF(B20=\"FROIDS\",\"SEAS - 1079 Rte de Grasse - 06270 Villeneuve Loubet\",IF(B20=\"HORS FROIDS\",\"SEAS - 1079 Rte de Grasse - 06270 Villeneuve Loubet\",IF(B20=\"PAM\",\"SEAS - 1079 Rte de Grasse - 06270 Villeneuve Loubet\",IF(B20=\"ECRANS\",\"SEAS - 1079 Rte de Grasse - 06270 Villeneuve Loubet\",IF(B20=\"BOX HORS FROIDS\",\"SEAS - 1079 Rte de Grasse - 06270 Villeneuve Loubet\",IF(B20=\"PILES\",\"Corepile\",IF(B20=\"CUMULUS\",\"SEAS - 1079 Rte de Grasse - 06270 Villeneuve Loubet\",IF(B20=\"PNEUS\",\"TFM Pneus - 117 Ch Clausonnes - 06560 Valbonne\",IF(B20=\"HUILES VEGETALES\",\"Orédui - ZI Bois de Grasse - 06310 Grasse\",IF(B20=\"HUILES DE VIDANGE\",\"SERAHU - 68 Ch de la Campanette - 06800 Cagnes sur Mer\")))))))))))))))))))))","v":"Orédui - ZI Bois de Grasse - 06310 Grasse"},{"$f":"IF(OR(B20=\"TOUT VENANT\",B20=\"DECHETS VERTS\",B20=\"GRAVATS SALES\",B20=\"GRAVATS PROPRES\",B20=\"BOIS\"),\"SUEZ\",IF(OR(B20=\"PNEUS\"),\"TFM\",IF(OR(B20=\"FROIDS\",B20=\"HORS FROIDS\",B20=\"BOX HORS FROIDS\",B20=\"CUMULUS\",B20=\"PAM\",B20=\"ECRANS\"),\"SEAS\",IF(OR(B20=\"METAUX\",B20=\"BATTERIES\"),\"DERICHEBOURG\",IF(OR(B20=\"NEON\"),\"SOFOVAR\",IF(OR(B20=\"PEINTURES\",B20=\"PRODUITS NON IDENTIFIES\",B20=\"AEROSOLS\",B20=\"HUILES VEGETALES\"),\"OREDUI\",IF(OR(B20=\"HUILES DE VIDANGE\"),\"SERAHU\")))))))","v":"OREDUI"},"4084","131627-0000202",null,null,null,"2 GRAVATS SALES","1  MATIN ET 1 APRES MIDI"]
["02/02/18","TOUT VENANT","","","Véolia Nice Tri - Parc d'activité logistique","SUEZ","CY860BA","0587",null,null,null,"3 GRAVATS PROPRES","3 ROTATIONS DE CAMION AMPIROLES"]
["02/02/18","GRAVATS SALES","6800","","Véolia Nice Tri - 20 Ch du Saquier","SUEZ","BAL085","B0300474936",null,null,null,"2 DECHETS VERTS","2 ROTATIONS DE CAMION AMPIROLES"]
["02/02/18","GRAVATS PROPRES","9900","","La Gaude K3 Sita Sud - 5211 Rte de St Jeannet","SUEZ","BAL085","B0300475796",null,null,null,"2 BOIS","2 ROTATIONS DE CAMION AMPIROLES"]
["02/02/18","GRAVATS PROPRES","7050","","La Gaude K3 Sita Sud - 5211 Rte de St Jeannet","SUEZ","BAL085","B0300475816",null,null,null,"1 METAUX","1 ROTATION DE CAMION GRAPPIN"]
["02/02/18","TOUT VENANT","3580","","Véolia Nice Tri - Parc d'activité logistique","SUEZ","BG045EP","0103321",null,null,null,"Le samedi présence d'un camion minimum jusqu'à 16H"]
[null,null,null,null,false,false]
[null,null,null,null,false,false]
[null,null,null,null,false,false]
[null,null,null,null,false,false]
[null,null,null,null,false,false]
[null,null,null,null,false,false]
[null,null,null,null,false,false]
[null,null,null,null,false,false]
[null,null,null,null,false,false]
[null,null,null,null,false,false]
[null,null,null,null,false,false]
[null,null,null,null,false,false]
[null,null,null,null,false,false]
[null,null,null,null,false,false]
[null,null,null,null,false,false]
[null,null,null,null,false,false]
[null,null,null,null,false,false]
[null,null,null,null,false,false]
[null,null,null,null,false,false]
[null,null,null,null,false,false]
[null,null,null,null,false,false]
[null,null,null,null,false,false]
[null,null,null,null,false,false]
[null,null,null,null,false,false]
[null,null,null,null,false,false]
[null,null,null,null,false,false]
[null,null,null,null,false,false]
[null,null,null,null,false,false]
[null,null,null,null,false,false]
[null,null,null,null,false,false]
[null,null,null,null,false,false]
[null,null,null,null,false,false]
[null,null,null,null,false,false]
[null,null,null,null,false,false]
[null,null,null,null,false,false]
[null,null,null,null,false,false]
[null,null,null,null,false,false]
[null,null,null,null,false,false]
[null,null,null,null,false,false]
[null,null,null,null,false,false]
[null,null,null,null,{"$f":"IF(B66=\"TOUT VENANT\",\"Véolia Nice Tri - Parc d'activité logistique\",IF(B66=\"DECHETS VERTS\",\"Orédui Carros Compostage - ZI de la Grave\",IF(B66=\"GRAVATS PROPRES\",\"La Gaude K3 Sita Sud - 5211 Rte de St Jeannet\",IF(B66=\"GRAVATS SALES\",\"Véolia Nice Tri - 20 Ch du Saquier\",IF(B66=\"BOIS\",\"SEAS La Glacière - 1019 Rte de la Grasse\",IF(B66=\"METAUX\",\"PURFER - ZI Carros 15ème Rue - 06517 Carros\",IF(B66=\"BATTERIES\",\"PURFER - ZI Carros 15ème Rue - 06517 Carros\",IF(B66=\"NEON\",\"Sofovar - 126 Av Louis Lépine - 83600 Fréjus\",IF(B66=\"PEINTURES\",\"Orédui - ZI Bois de Grasse - 06310 Grasse\",IF(B66=\"PRODUITS NON IDENTIFIES\",\"Orédui - ZI Bois de Grasse - 06310 Grasse\",IF(B66=\"AEROSOLS\",\"Orédui - ZI Bois de Grasse - 06310 Grasse\",IF(B66=\"FROIDS\",\"SEAS - 1079 Rte de Grasse - 06270 Villeneuve Loubet\",IF(B66=\"HORS FROIDS\",\"SEAS - 1079 Rte de Grasse - 06270 Villeneuve Loubet\",IF(B66=\"PAM\",\"SEAS - 1079 Rte de Grasse - 06270 Villeneuve Loubet\",IF(B66=\"ECRANS\",\"SEAS - 1079 Rte de Grasse - 06270 Villeneuve Loubet\",IF(B66=\"BOX HORS FROIDS\",\"SEAS - 1079 Rte de Grasse - 06270 Villeneuve Loubet\",IF(B66=\"PILES\",\"Corepile\",IF(B66=\"CUMULUS\",\"SEAS - 1079 Rte de Grasse - 06270 Villeneuve Loubet\",IF(B66=\"PNEUS\",\"TFM Pneus - 117 Ch Clausonnes - 06560 Valbonne\",IF(B66=\"HUILES VEGETALES\",\"Orédui - ZI Bois de Grasse - 06310 Grasse\",IF(B66=\"HUILES DE VIDANGE\",\"SERAHU - 68 Ch de la Campanette - 06800 Cagnes sur Mer\")))))))))))))))))))))","v":false},{"$f":"IF(OR(B66=\"TOUT VENANT\",B66=\"DECHETS VERTS\",B66=\"GRAVATS SALES\",B66=\"GRAVATS PROPRES\",B66=\"BOIS\"),\"SUEZ\",IF(OR(B66=\"PNEUS\"),\"TFM\",IF(OR(B66=\"FROIDS\",B66=\"HORS FROIDS\",B66=\"BOX HORS FROIDS\",B66=\"CUMULUS\",B66=\"PAM\",B66=\"ECRANS\"),\"SEAS\",IF(OR(B66=\"METAUX\",B66=\"BATTERIES\"),\"DERICHEBOURG\",IF(OR(B66=\"NEON\"),\"SOFOVAR\",IF(OR(B66=\"PEINTURES\",B66=\"PRODUITS NON IDENTIFIES\",B66=\"AEROSOLS\",B66=\"HUILES VEGETALES\"),\"OREDUI\",IF(OR(B66=\"HUILES DE VIDANGE\"),\"SERAHU\")))))))","v":false}]
[null,null,null,null,false,false]
[null,null,null,null,false,false]
[null,null,null,null,false,false]
[null,null,null,null,false,false]
[null,null,null,null,false,false]
[null,null,null,null,false,false]
[null,null,null,null,false,false]
[null,null,null,null,false,false]
[null,null,null,null,false,false]
[null,null,null,null,false,false]
[null,null,null,null,false,false]
[null,null,null,null,false,false]
[null,null,null,null,false,false]
[null,null,null,null,false,false]
[null,null,null,null,false,false]
[null,null,null,null,false,false]
[null,null,null,null,false,false]
[null,null,null,null,false,false]
[null,null,null,null,false,false]
[null,null,null,null,false,false]
[null,null,null,null,false,false]
[null,null,null,null,false,false]
[null,null,null,null,false,false]
[null,null,null,null,false,false]
[null,null,null,null,false,false]
[null,null,null,null,false,false]
[null,null,null,null,false,false]
[null,null,null,null,false,false]
[null,null,null,null,false,false]
[null,null,null,null,false,false]
[null,null,null,null,false,false]
[null,null,null,null,false,false]
[null,null,null,null,false,false]
[null,null,null,null,false,false]
[null,null,null,null,false,false]
[null,null,null,null,false,false]
[null,null,null,null,false,false]
[null,null,null,null,false,false]
[null,null,null,null,false,false]
[null,null,null,null,false,false]
[null,null,null,null,false,false]
[null,null,null,null,false,false]
[null,null,null,null,false,false]
[null,null,null,null,false,false]
[null,null,null,null,false,false]
[null,null,null,null,false,false]
[null,null,null,null,false,false]
[null,null,null,null,false,false]
[null,null,null,null,false,false]
[null,null,null,null,false,false]
[null,null,null,null,false,false]
[null,null,null,null,false,false]
[null,null,null,null,false,false]
[null,null,null,null,false,false]
[null,null,null,null,false,false]
[null,null,null,null,false,false]
[null,null,null,null,false,false]
[null,null,null,null,false,false]
[null,null,null,null,false,false]
[null,null,null,null,false,false]
[null,null,null,null,false,false]
[null,null,null,null,false,false]
[null,null,null,null,false,false]
[null,null,null,null,{"$f":"IF(B130=\"TOUT VENANT\",\"Véolia Nice Tri - Parc d'activité logistique\",IF(B130=\"DECHETS VERTS\",\"Orédui Carros Compostage - ZI de la Grave\",IF(B130=\"GRAVATS PROPRES\",\"La Gaude K3 Sita Sud - 5211 Rte de St Jeannet\",IF(B130=\"GRAVATS SALES\",\"Véolia Nice Tri - 20 Ch du Saquier\",IF(B130=\"BOIS\",\"SEAS La Glacière - 1019 Rte de la Grasse\",IF(B130=\"METAUX\",\"PURFER - ZI Carros 15ème Rue - 06517 Carros\",IF(B130=\"BATTERIES\",\"PURFER - ZI Carros 15ème Rue - 06517 Carros\",IF(B130=\"NEON\",\"Sofovar - 126 Av Louis Lépine - 83600 Fréjus\",IF(B130=\"PEINTURES\",\"Orédui - ZI Bois de Grasse - 06310 Grasse\",IF(B130=\"PRODUITS NON IDENTIFIES\",\"Orédui - ZI Bois de Grasse - 06310 Grasse\",IF(B130=\"AEROSOLS\",\"Orédui - ZI Bois de Grasse - 06310 Grasse\",IF(B130=\"FROIDS\",\"SEAS - 1079 Rte de Grasse - 06270 Villeneuve Loubet\",IF(B130=\"HORS FROIDS\",\"SEAS - 1079 Rte de Grasse - 06270 Villeneuve Loubet\",IF(B130=\"PAM\",\"SEAS - 1079 Rte de Grasse - 06270 Villeneuve Loubet\",IF(B130=\"ECRANS\",\"SEAS - 1079 Rte de Grasse - 06270 Villeneuve Loubet\",IF(B130=\"BOX HORS FROIDS\",\"SEAS - 1079 Rte de Grasse - 06270 Villeneuve Loubet\",IF(B130=\"PILES\",\"Corepile\",IF(B130=\"CUMULUS\",\"SEAS - 1079 Rte de Grasse - 06270 Villeneuve Loubet\",IF(B130=\"PNEUS\",\"TFM Pneus - 117 Ch Clausonnes - 06560 Valbonne\",IF(B130=\"HUILES VEGETALES\",\"Orédui - ZI Bois de Grasse - 06310 Grasse\",IF(B130=\"HUILES DE VIDANGE\",\"SERAHU - 68 Ch de la Campanette - 06800 Cagnes sur Mer\")))))))))))))))))))))","v":false},{"$f":"IF(OR(B130=\"TOUT VENANT\",B130=\"DECHETS VERTS\",B130=\"GRAVATS SALES\",B130=\"GRAVATS PROPRES\",B130=\"BOIS\"),\"SUEZ\",IF(OR(B130=\"PNEUS\"),\"TFM\",IF(OR(B130=\"FROIDS\",B130=\"HORS FROIDS\",B130=\"BOX HORS FROIDS\",B130=\"CUMULUS\",B130=\"PAM\",B130=\"ECRANS\"),\"SEAS\",IF(OR(B130=\"METAUX\",B130=\"BATTERIES\"),\"DERICHEBOURG\",IF(OR(B130=\"NEON\"),\"SOFOVAR\",IF(OR(B130=\"PEINTURES\",B130=\"PRODUITS NON IDENTIFIES\",B130=\"AEROSOLS\",B130=\"HUILES VEGETALES\"),\"OREDUI\",IF(OR(B130=\"HUILES DE VIDANGE\"),\"SERAHU\")))))))","v":false}]
[null,null,null,null,false,false]
[null,null,null,null,false,false]
[null,null,null,null,false,false]
[null,null,null,null,false,false]
[null,null,null,null,false,false]
[null,null,null,null,false,false]
[null,null,null,null,false,false]
[null,null,null,null,false,false]
[null,null,null,null,false,false]
[null,null,null,null,false,false]
[null,null,null,null,false,false]
[null,null,null,null,false,false]
[null,null,null,null,false,false]
[null,null,null,null,false,false]
[null,null,null,null,false,false]
[null,null,null,null,false,false]
[null,null,null,null,false,false]
[null,null,null,null,false,false]
[null,null,null,null,false,false]
[null,null,null,null,false,false]
[null,null,null,null,false,false]
[null,null,null,null,false,false]
[null,null,null,null,false,false]
[null,null,null,null,false,false]
[null,null,null,null,false,false]
[null,null,null,null,false,false]
[null,null,null,null,false,false]
[null,null,null,null,false,false]
[null,null,null,null,false,false]
[null,null,null,null,false,false]
[null,null,null,null,false,false]
[null,null,null,null,false,false]
[null,null,null,null,false,false]
[null,null,null,null,false,false]
[null,null,null,null,false,false]
[null,null,null,null,false,false]
[null,null,null,null,false,false]
[null,null,null,null,false,false]
[null,null,null,null,false,false]
[null,null,null,null,false,false]
[null,null,null,null,false,false]
[null,null,null,null,false,false]
[null,null,null,null,false,false]
[null,null,null,null,false,false]
[null,null,null,null,false,false]
[null,null,null,null,false,false]
[null,null,null,null,false,false]
[null,null,null,null,false,false]
[null,null,null,null,false,false]
[null,null,null,null,false,false]
[null,null,null,null,false,false]
[null,null,null,null,false,false]
[null,null,null,null,false,false]
[null,null,null,null,false,false]
[null,null,null,null,false,false]
[null,null,null,null,false,false]
[null,null,null,null,false,false]
[null,null,null,null,false,false]
[null,null,null,null,false,false]
[null,null,null,null,false,false]
[null,null,null,null,false,false]
[null,null,null,null,false,false]
[null,null,null,null,false,false]
[null,null,null,null,{"$f":"IF(B194=\"TOUT VENANT\",\"Véolia Nice Tri - Parc d'activité logistique\",IF(B194=\"DECHETS VERTS\",\"Orédui Carros Compostage - ZI de la Grave\",IF(B194=\"GRAVATS PROPRES\",\"La Gaude K3 Sita Sud - 5211 Rte de St Jeannet\",IF(B194=\"GRAVATS SALES\",\"Véolia Nice Tri - 20 Ch du Saquier\",IF(B194=\"BOIS\",\"SEAS La Glacière - 1019 Rte de la Grasse\",IF(B194=\"METAUX\",\"PURFER - ZI Carros 15ème Rue - 06517 Carros\",IF(B194=\"BATTERIES\",\"PURFER - ZI Carros 15ème Rue - 06517 Carros\",IF(B194=\"NEON\",\"Sofovar - 126 Av Louis Lépine - 83600 Fréjus\",IF(B194=\"PEINTURES\",\"Orédui - ZI Bois de Grasse - 06310 Grasse\",IF(B194=\"PRODUITS NON IDENTIFIES\",\"Orédui - ZI Bois de Grasse - 06310 Grasse\",IF(B194=\"AEROSOLS\",\"Orédui - ZI Bois de Grasse - 06310 Grasse\",IF(B194=\"FROIDS\",\"SEAS - 1079 Rte de Grasse - 06270 Villeneuve Loubet\",IF(B194=\"HORS FROIDS\",\"SEAS - 1079 Rte de Grasse - 06270 Villeneuve Loubet\",IF(B194=\"PAM\",\"SEAS - 1079 Rte de Grasse - 06270 Villeneuve Loubet\",IF(B194=\"ECRANS\",\"SEAS - 1079 Rte de Grasse - 06270 Villeneuve Loubet\",IF(B194=\"BOX HORS FROIDS\",\"SEAS - 1079 Rte de Grasse - 06270 Villeneuve Loubet\",IF(B194=\"PILES\",\"Corepile\",IF(B194=\"CUMULUS\",\"SEAS - 1079 Rte de Grasse - 06270 Villeneuve Loubet\",IF(B194=\"PNEUS\",\"TFM Pneus - 117 Ch Clausonnes - 06560 Valbonne\",IF(B194=\"HUILES VEGETALES\",\"Orédui - ZI Bois de Grasse - 06310 Grasse\",IF(B194=\"HUILES DE VIDANGE\",\"SERAHU - 68 Ch de la Campanette - 06800 Cagnes sur Mer\")))))))))))))))))))))","v":false},{"$f":"IF(OR(B194=\"TOUT VENANT\",B194=\"DECHETS VERTS\",B194=\"GRAVATS SALES\",B194=\"GRAVATS PROPRES\",B194=\"BOIS\"),\"SUEZ\",IF(OR(B194=\"PNEUS\"),\"TFM\",IF(OR(B194=\"FROIDS\",B194=\"HORS FROIDS\",B194=\"BOX HORS FROIDS\",B194=\"CUMULUS\",B194=\"PAM\",B194=\"ECRANS\"),\"SEAS\",IF(OR(B194=\"METAUX\",B194=\"BATTERIES\"),\"DERICHEBOURG\",IF(OR(B194=\"NEON\"),\"SOFOVAR\",IF(OR(B194=\"PEINTURES\",B194=\"PRODUITS NON IDENTIFIES\",B194=\"AEROSOLS\",B194=\"HUILES VEGETALES\"),\"OREDUI\",IF(OR(B194=\"HUILES DE VIDANGE\"),\"SERAHU\")))))))","v":false}]
[null,null,null,null,false,false]
[null,null,null,null,false,false]
[null,null,null,null,false,false]
[null,null,null,null,false,false]
[null,null,null,null,false,false]
[null,null,null,null,false,false]
[null,null,null,null,false,false]
[null,null,null,null,false,false]
[null,null,null,null,false,false]
[null,null,null,null,false,false]
[null,null,null,null,false,false]
[null,null,null,null,false,false]
[null,null,null,null,false,false]
[null,null,null,null,false,false]
[null,null,null,null,false,false]
[null,null,null,null,false,false]
[null,null,null,null,false,false]
[null,null,null,null,false,false]
[null,null,null,null,false,false]
[null,null,null,null,false,false]
[null,null,null,null,false,false]
[null,null,null,null,false,false]
[null,null,null,null,false,false]
[null,null,null,null,false,false]
[null,null,null,null,false,false]
[null,null,null,null,false,false]
[null,null,null,null,false,false]
[null,null,null,null,false,false]
[null,null,null,null,false,false]
[null,null,null,null,false,false]
[null,null,null,null,false,false]
[null,null,null,null,false,false]
[null,null,null,null,false,false]
[null,null,null,null,false,false]
[null,null,null,null,false,false]
[null,null,null,null,false,false]
[null,null,null,null,false,false]
[null,null,null,null,false,false]
[null,null,null,null,false,false]
[null,null,null,null,false,false]
[null,null,null,null,false,false]
[null,null,null,null,false,false]
[null,null,null,null,false,false]
[null,null,null,null,false,false]
[null,null,null,null,false,false]
[null,null,null,null,false,false]
[null,null,null,null,false,false]
[null,null,null,null,false,false]
[null,null,null,null,false,false]
[null,null,null,null,false,false]
[null,null,null,null,false,false]
[null,null,null,null,false,false]
[null,null,null,null,false,false]
[null,null,null,null,false,false]
[null,null,null,null,false,false]
[null,null,null,null,false,false]
[null,null,null,null,false,false]
[null,null,null,null,false,false]
[null,null,null,null,false,false]
[null,null,null,null,false,false]
[null,null,null,null,false,false]
[null,null,null,null,false,false]
[null,null,null,null,false,false]
[null,null,null,null,{"$f":"IF(B258=\"TOUT VENANT\",\"Véolia Nice Tri - Parc d'activité logistique\",IF(B258=\"DECHETS VERTS\",\"Orédui Carros Compostage - ZI de la Grave\",IF(B258=\"GRAVATS PROPRES\",\"La Gaude K3 Sita Sud - 5211 Rte de St Jeannet\",IF(B258=\"GRAVATS SALES\",\"Véolia Nice Tri - 20 Ch du Saquier\",IF(B258=\"BOIS\",\"SEAS La Glacière - 1019 Rte de la Grasse\",IF(B258=\"METAUX\",\"PURFER - ZI Carros 15ème Rue - 06517 Carros\",IF(B258=\"BATTERIES\",\"PURFER - ZI Carros 15ème Rue - 06517 Carros\",IF(B258=\"NEON\",\"Sofovar - 126 Av Louis Lépine - 83600 Fréjus\",IF(B258=\"PEINTURES\",\"Orédui - ZI Bois de Grasse - 06310 Grasse\",IF(B258=\"PRODUITS NON IDENTIFIES\",\"Orédui - ZI Bois de Grasse - 06310 Grasse\",IF(B258=\"AEROSOLS\",\"Orédui - ZI Bois de Grasse - 06310 Grasse\",IF(B258=\"FROIDS\",\"SEAS - 1079 Rte de Grasse - 06270 Villeneuve Loubet\",IF(B258=\"HORS FROIDS\",\"SEAS - 1079 Rte de Grasse - 06270 Villeneuve Loubet\",IF(B258=\"PAM\",\"SEAS - 1079 Rte de Grasse - 06270 Villeneuve Loubet\",IF(B258=\"ECRANS\",\"SEAS - 1079 Rte de Grasse - 06270 Villeneuve Loubet\",IF(B258=\"BOX HORS FROIDS\",\"SEAS - 1079 Rte de Grasse - 06270 Villeneuve Loubet\",IF(B258=\"PILES\",\"Corepile\",IF(B258=\"CUMULUS\",\"SEAS - 1079 Rte de Grasse - 06270 Villeneuve Loubet\",IF(B258=\"PNEUS\",\"TFM Pneus - 117 Ch Clausonnes - 06560 Valbonne\",IF(B258=\"HUILES VEGETALES\",\"Orédui - ZI Bois de Grasse - 06310 Grasse\",IF(B258=\"HUILES DE VIDANGE\",\"SERAHU - 68 Ch de la Campanette - 06800 Cagnes sur Mer\")))))))))))))))))))))","v":false},{"$f":"IF(OR(B258=\"TOUT VENANT\",B258=\"DECHETS VERTS\",B258=\"GRAVATS SALES\",B258=\"GRAVATS PROPRES\",B258=\"BOIS\"),\"SUEZ\",IF(OR(B258=\"PNEUS\"),\"TFM\",IF(OR(B258=\"FROIDS\",B258=\"HORS FROIDS\",B258=\"BOX HORS FROIDS\",B258=\"CUMULUS\",B258=\"PAM\",B258=\"ECRANS\"),\"SEAS\",IF(OR(B258=\"METAUX\",B258=\"BATTERIES\"),\"DERICHEBOURG\",IF(OR(B258=\"NEON\"),\"SOFOVAR\",IF(OR(B258=\"PEINTURES\",B258=\"PRODUITS NON IDENTIFIES\",B258=\"AEROSOLS\",B258=\"HUILES VEGETALES\"),\"OREDUI\",IF(OR(B258=\"HUILES DE VIDANGE\"),\"SERAHU\")))))))","v":false}]
[null,null,null,null,false,false]
[null,null,null,null,false,false]
[null,null,null,null,false,false]
[null,null,null,null,false,false]
[null,null,null,null,false,false]
[null,null,null,null,false,false]
[null,null,null,null,false,false]
[null,null,null,null,false,false]
[null,null,null,null,false,false]
[null,null,null,null,false,false]
[null,null,null,null,false,false]
[null,null,null,null,false,false]
[null,null,null,null,false,false]
[null,null,null,null,false,false]
[null,null,null,null,false,false]
[null,null,null,null,false,false]
[null,null,null,null,false,false]
[null,null,null,null,false,false]
[null,null,null,null,false,false]
[null,null,null,null,false,false]
[null,null,null,null,false,false]
[null,null,null,null,false,false]
[null,null,null,null,false,false]
[null,null,null,null,false,false]
[null,null,null,null,false,false]
[null,null,null,null,false,false]
[null,null,null,null,false,false]
[null,null,null,null,false,false]
[null,null,null,null,false,false]
[null,null,null,null,false,false]
[null,null,null,null,false,false]
[null,null,null,null,false,false]
[null,null,null,null,false,false]
[null,null,null,null,false,false]
[null,null,null,null,false,false]
[null,null,null,null,false,false]
[null,null,null,null,false,false]
[null,null,null,null,false,false]
[null,null,null,null,false,false]
[null,null,null,null,false,false]
[null,null,null,null,false,false]
[null,null,null,null,false,false]
[null,null,null,null,false,false]
[null,null,null,null,false,false]
[null,null,null,null,false,false]
[null,null,null,null,false,false]
[null,null,null,null,false,false]
[null,null,null,null,false,false]
[null,null,null,null,false,false]
[null,null,null,null,false,false]
[null,null,null,null,false,false]
[null,null,null,null,false,false]
[null,null,null,null,false,false]
[null,null,null,null,false,false]
[null,null,null,null,false,false]
[null,null,null,null,false,false]
[null,null,null,null,false,false]
[null,null,null,null,false,false]
[null,null,null,null,false,false]
[null,null,null,null,false,false]
[null,null,null,null,false,false]
[null,null,null,null,false,false]
[null,null,null,null,false,false]
[null,null,null,null,{"$f":"IF(B322=\"TOUT VENANT\",\"Véolia Nice Tri - Parc d'activité logistique\",IF(B322=\"DECHETS VERTS\",\"Orédui Carros Compostage - ZI de la Grave\",IF(B322=\"GRAVATS PROPRES\",\"La Gaude K3 Sita Sud - 5211 Rte de St Jeannet\",IF(B322=\"GRAVATS SALES\",\"Véolia Nice Tri - 20 Ch du Saquier\",IF(B322=\"BOIS\",\"SEAS La Glacière - 1019 Rte de la Grasse\",IF(B322=\"METAUX\",\"PURFER - ZI Carros 15ème Rue - 06517 Carros\",IF(B322=\"BATTERIES\",\"PURFER - ZI Carros 15ème Rue - 06517 Carros\",IF(B322=\"NEON\",\"Sofovar - 126 Av Louis Lépine - 83600 Fréjus\",IF(B322=\"PEINTURES\",\"Orédui - ZI Bois de Grasse - 06310 Grasse\",IF(B322=\"PRODUITS NON IDENTIFIES\",\"Orédui - ZI Bois de Grasse - 06310 Grasse\",IF(B322=\"AEROSOLS\",\"Orédui - ZI Bois de Grasse - 06310 Grasse\",IF(B322=\"FROIDS\",\"SEAS - 1079 Rte de Grasse - 06270 Villeneuve Loubet\",IF(B322=\"HORS FROIDS\",\"SEAS - 1079 Rte de Grasse - 06270 Villeneuve Loubet\",IF(B322=\"PAM\",\"SEAS - 1079 Rte de Grasse - 06270 Villeneuve Loubet\",IF(B322=\"ECRANS\",\"SEAS - 1079 Rte de Grasse - 06270 Villeneuve Loubet\",IF(B322=\"BOX HORS FROIDS\",\"SEAS - 1079 Rte de Grasse - 06270 Villeneuve Loubet\",IF(B322=\"PILES\",\"Corepile\",IF(B322=\"CUMULUS\",\"SEAS - 1079 Rte de Grasse - 06270 Villeneuve Loubet\",IF(B322=\"PNEUS\",\"TFM Pneus - 117 Ch Clausonnes - 06560 Valbonne\",IF(B322=\"HUILES VEGETALES\",\"Orédui - ZI Bois de Grasse - 06310 Grasse\",IF(B322=\"HUILES DE VIDANGE\",\"SERAHU - 68 Ch de la Campanette - 06800 Cagnes sur Mer\")))))))))))))))))))))","v":false},{"$f":"IF(OR(B322=\"TOUT VENANT\",B322=\"DECHETS VERTS\",B322=\"GRAVATS SALES\",B322=\"GRAVATS PROPRES\",B322=\"BOIS\"),\"SUEZ\",IF(OR(B322=\"PNEUS\"),\"TFM\",IF(OR(B322=\"FROIDS\",B322=\"HORS FROIDS\",B322=\"BOX HORS FROIDS\",B322=\"CUMULUS\",B322=\"PAM\",B322=\"ECRANS\"),\"SEAS\",IF(OR(B322=\"METAUX\",B322=\"BATTERIES\"),\"DERICHEBOURG\",IF(OR(B322=\"NEON\"),\"SOFOVAR\",IF(OR(B322=\"PEINTURES\",B322=\"PRODUITS NON IDENTIFIES\",B322=\"AEROSOLS\",B322=\"HUILES VEGETALES\"),\"OREDUI\",IF(OR(B322=\"HUILES DE VIDANGE\"),\"SERAHU\")))))))","v":false}]
[null,null,null,null,false,false]
[null,null,null,null,false,false]
[null,null,null,null,false,false]
[null,null,null,null,false,false]
[null,null,null,null,false,false]
[null,null,null,null,false,false]
[null,null,null,null,false,false]
[null,null,null,null,false,false]
[null,null,null,null,false,false]
[null,null,null,null,false,false]
[null,null,null,null,false,false]
[null,null,null,null,false,false]
[null,null,null,null,false,false]
[null,null,null,null,false,false]
[null,null,null,null,false,false]
[null,null,null,null,false,false]
[null,null,null,null,false,false]
[null,null,null,null,false,false]
[null,null,null,null,false,false]
[null,null,null,null,false,false]
[null,null,null,null,false,false]
[null,null,null,null,false,false]
[null,null,null,null,false,false]
[null,null,null,null,false,false]
[null,null,null,null,false,false]
[null,null,null,null,false,false]
[null,null,null,null,false,false]
[null,null,null,null,false,false]
[null,null,null,null,false,false]
[null,null,null,null,false,false]
[null,null,null,null,false,false]
[null,null,null,null,false,false]
[null,null,null,null,false,false]
[null,null,null,null,false,false]
[null,null,null,null,false,false]
[null,null,null,null,false,false]
[null,null,null,null,false,false]
[null,null,null,null,false,false]
[null,null,null,null,false,false]
[null,null,null,null,false,false]
[null,null,null,null,false,false]
[null,null,null,null,false,false]
[null,null,null,null,false,false]
[null,null,null,null,false,false]
[null,null,null,null,false,false]
[null,null,null,null,false,false]
[null,null,null,null,false,false]
[null,null,null,null,false,false]
[null,null,null,null,false,false]
[null,null,null,null,false,false]
[null,null,null,null,false,false]
[null,null,null,null,false,false]
[null,null,null,null,false,false]
[null,null,null,null,false,false]
[null,null,null,null,false,false]
[null,null,null,null,false,false]
[null,null,null,null,false,false]
[null,null,null,null,false,false]
[null,null,null,null,false,false]
[null,null,null,null,false,false]
[null,null,null,null,false,false]
[null,null,null,null,false,false]
[null,null,null,null,false,false]
[null,null,null,null,{"$f":"IF(B386=\"TOUT VENANT\",\"Véolia Nice Tri - Parc d'activité logistique\",IF(B386=\"DECHETS VERTS\",\"Orédui Carros Compostage - ZI de la Grave\",IF(B386=\"GRAVATS PROPRES\",\"La Gaude K3 Sita Sud - 5211 Rte de St Jeannet\",IF(B386=\"GRAVATS SALES\",\"Véolia Nice Tri - 20 Ch du Saquier\",IF(B386=\"BOIS\",\"SEAS La Glacière - 1019 Rte de la Grasse\",IF(B386=\"METAUX\",\"PURFER - ZI Carros 15ème Rue - 06517 Carros\",IF(B386=\"BATTERIES\",\"PURFER - ZI Carros 15ème Rue - 06517 Carros\",IF(B386=\"NEON\",\"Sofovar - 126 Av Louis Lépine - 83600 Fréjus\",IF(B386=\"PEINTURES\",\"Orédui - ZI Bois de Grasse - 06310 Grasse\",IF(B386=\"PRODUITS NON IDENTIFIES\",\"Orédui - ZI Bois de Grasse - 06310 Grasse\",IF(B386=\"AEROSOLS\",\"Orédui - ZI Bois de Grasse - 06310 Grasse\",IF(B386=\"FROIDS\",\"SEAS - 1079 Rte de Grasse - 06270 Villeneuve Loubet\",IF(B386=\"HORS FROIDS\",\"SEAS - 1079 Rte de Grasse - 06270 Villeneuve Loubet\",IF(B386=\"PAM\",\"SEAS - 1079 Rte de Grasse - 06270 Villeneuve Loubet\",IF(B386=\"ECRANS\",\"SEAS - 1079 Rte de Grasse - 06270 Villeneuve Loubet\",IF(B386=\"BOX HORS FROIDS\",\"SEAS - 1079 Rte de Grasse - 06270 Villeneuve Loubet\",IF(B386=\"PILES\",\"Corepile\",IF(B386=\"CUMULUS\",\"SEAS - 1079 Rte de Grasse - 06270 Villeneuve Loubet\",IF(B386=\"PNEUS\",\"TFM Pneus - 117 Ch Clausonnes - 06560 Valbonne\",IF(B386=\"HUILES VEGETALES\",\"Orédui - ZI Bois de Grasse - 06310 Grasse\",IF(B386=\"HUILES DE VIDANGE\",\"SERAHU - 68 Ch de la Campanette - 06800 Cagnes sur Mer\")))))))))))))))))))))","v":false},{"$f":"IF(OR(B386=\"TOUT VENANT\",B386=\"DECHETS VERTS\",B386=\"GRAVATS SALES\",B386=\"GRAVATS PROPRES\",B386=\"BOIS\"),\"SUEZ\",IF(OR(B386=\"PNEUS\"),\"TFM\",IF(OR(B386=\"FROIDS\",B386=\"HORS FROIDS\",B386=\"BOX HORS FROIDS\",B386=\"CUMULUS\",B386=\"PAM\",B386=\"ECRANS\"),\"SEAS\",IF(OR(B386=\"METAUX\",B386=\"BATTERIES\"),\"DERICHEBOURG\",IF(OR(B386=\"NEON\"),\"SOFOVAR\",IF(OR(B386=\"PEINTURES\",B386=\"PRODUITS NON IDENTIFIES\",B386=\"AEROSOLS\",B386=\"HUILES VEGETALES\"),\"OREDUI\",IF(OR(B386=\"HUILES DE VIDANGE\"),\"SERAHU\")))))))","v":false}]
[null,null,null,null,false,false]
[null,null,null,null,false,false]
[null,null,null,null,false,false]
[null,null,null,null,false,false]
[null,null,null,null,false,false]
[null,null,null,null,false,false]
[null,null,null,null,false,false]
[null,null,null,null,false,false]
[null,null,null,null,false,false]
[null,null,null,null,false,false]
[null,null,null,null,false,false]
[null,null,null,null,false,false]
[null,null,null,null,false,false]
[null,null,null,null,false,false]
[null,null,null,null,false,false]
[null,null,null,null,false,false]
[null,null,null,null,false,false]
[null,null,null,null,false,false]
[null,null,null,null,false,false]
[null,null,null,null,false,false]
[null,null,null,null,false,false]
[null,null,null,null,false,false]
[null,null,null,null,false,false]
[null,null,null,null,false,false]
[null,null,null,null,false,false]
[null,null,null,null,false,false]
[null,null,null,null,false,false]
[null,null,null,null,false,false]
[null,null,null,null,false,false]
[null,null,null,null,false,false]
[null,null,null,null,false,false]
[null,null,null,null,false,false]
[null,null,null,null,false,false]
[null,null,null,null,false,false]
[null,null,null,null,false,false]
[null,null,null,null,false,false]
[null,null,null,null,false,false]
[null,null,null,null,false,false]
[null,null,null,null,false,false]
[null,null,null,null,false,false]
[null,null,null,null,false,false]
[null,null,null,null,false,false]
[null,null,null,null,false,false]
[null,null,null,null,false,false]
[null,null,null,null,false,false]
[null,null,null,null,false,false]
[null,null,null,null,false,false]
[null,null,null,null,false,false]
[null,null,null,null,false,false]
[null,null,null,null,false,false]
[null,null,null,null,false,false]
[null,null,null,null,false,false]
[null,null,null,null,false,false]
[null,null,null,null,false,false]
[null,null,null,null,false,false]
[null,null,null,null,false,false]
[null,null,null,null,false,false]
[null,null,null,null,false,false]
[null,null,null,null,false,false]
[null,null,null,null,false,false]
[null,null,null,null,false,false]
[null,null,null,null,false,false]
[null,null,null,null,false,false]
[null,null,null,null,{"$f":"IF(B450=\"TOUT VENANT\",\"Véolia Nice Tri - Parc d'activité logistique\",IF(B450=\"DECHETS VERTS\",\"Orédui Carros Compostage - ZI de la Grave\",IF(B450=\"GRAVATS PROPRES\",\"La Gaude K3 Sita Sud - 5211 Rte de St Jeannet\",IF(B450=\"GRAVATS SALES\",\"Véolia Nice Tri - 20 Ch du Saquier\",IF(B450=\"BOIS\",\"SEAS La Glacière - 1019 Rte de la Grasse\",IF(B450=\"METAUX\",\"PURFER - ZI Carros 15ème Rue - 06517 Carros\",IF(B450=\"BATTERIES\",\"PURFER - ZI Carros 15ème Rue - 06517 Carros\",IF(B450=\"NEON\",\"Sofovar - 126 Av Louis Lépine - 83600 Fréjus\",IF(B450=\"PEINTURES\",\"Orédui - ZI Bois de Grasse - 06310 Grasse\",IF(B450=\"PRODUITS NON IDENTIFIES\",\"Orédui - ZI Bois de Grasse - 06310 Grasse\",IF(B450=\"AEROSOLS\",\"Orédui - ZI Bois de Grasse - 06310 Grasse\",IF(B450=\"FROIDS\",\"SEAS - 1079 Rte de Grasse - 06270 Villeneuve Loubet\",IF(B450=\"HORS FROIDS\",\"SEAS - 1079 Rte de Grasse - 06270 Villeneuve Loubet\",IF(B450=\"PAM\",\"SEAS - 1079 Rte de Grasse - 06270 Villeneuve Loubet\",IF(B450=\"ECRANS\",\"SEAS - 1079 Rte de Grasse - 06270 Villeneuve Loubet\",IF(B450=\"BOX HORS FROIDS\",\"SEAS - 1079 Rte de Grasse - 06270 Villeneuve Loubet\",IF(B450=\"PILES\",\"Corepile\",IF(B450=\"CUMULUS\",\"SEAS - 1079 Rte de Grasse - 06270 Villeneuve Loubet\",IF(B450=\"PNEUS\",\"TFM Pneus - 117 Ch Clausonnes - 06560 Valbonne\",IF(B450=\"HUILES VEGETALES\",\"Orédui - ZI Bois de Grasse - 06310 Grasse\",IF(B450=\"HUILES DE VIDANGE\",\"SERAHU - 68 Ch de la Campanette - 06800 Cagnes sur Mer\")))))))))))))))))))))","v":false},{"$f":"IF(OR(B450=\"TOUT VENANT\",B450=\"DECHETS VERTS\",B450=\"GRAVATS SALES\",B450=\"GRAVATS PROPRES\",B450=\"BOIS\"),\"SUEZ\",IF(OR(B450=\"PNEUS\"),\"TFM\",IF(OR(B450=\"FROIDS\",B450=\"HORS FROIDS\",B450=\"BOX HORS FROIDS\",B450=\"CUMULUS\",B450=\"PAM\",B450=\"ECRANS\"),\"SEAS\",IF(OR(B450=\"METAUX\",B450=\"BATTERIES\"),\"DERICHEBOURG\",IF(OR(B450=\"NEON\"),\"SOFOVAR\",IF(OR(B450=\"PEINTURES\",B450=\"PRODUITS NON IDENTIFIES\",B450=\"AEROSOLS\",B450=\"HUILES VEGETALES\"),\"OREDUI\",IF(OR(B450=\"HUILES DE VIDANGE\"),\"SERAHU\")))))))","v":false}]
[null,null,null,null,false,false]
[null,null,null,null,false,false]
[null,null,null,null,false,false]
[null,null,null,null,false,false]
[null,null,null,null,false,false]
[null,null,null,null,false,false]
[null,null,null,null,false,false]
[null,null,null,null,false,false]
[null,null,null,null,false,false]
[null,null,null,null,false,false]
[null,null,null,null,false,false]
[null,null,null,null,false,false]
[null,null,null,null,false,false]
[null,null,null,null,false,false]
[null,null,null,null,false,false]
[null,null,null,null,false,false]
[null,null,null,null,false,false]
[null,null,null,null,false,false]
[null,null,null,null,false,false]
[null,null,null,null,false,false]
[null,null,null,null,false,false]
[null,null,null,null,false,false]
[null,null,null,null,false,false]
[null,null,null,null,false,false]
[null,null,null,null,false,false]
[null,null,null,null,false,false]
[null,null,null,null,false,false]
[null,null,null,null,false,false]
[null,null,null,null,false,false]
[null,null,null,null,false,false]
[null,null,null,null,false,false]
[null,null,null,null,false,false]
[null,null,null,null,false,false]
[null,null,null,null,false,false]
[null,null,null,null,false,false]
[null,null,null,null,false,false]
[null,null,null,null,false,false]
[null,null,null,null,false,false]
[null,null,null,null,false,false]
[null,null,null,null,false,false]
[null,null,null,null,false,false]
[null,null,null,null,false,false]
[null,null,null,null,false,false]
[null,null,null,null,false,false]
[null,null,null,null,false,false]
[null,null,null,null,false,false]
[null,null,null,null,false,false]
[null,null,null,null,false,false]
[null,null,null,null,false,false]
[null,null,null,null,false,false]
[null,null,null,null,false,false]
[null,null,null,null,false,false]
[null,null,null,null,false,false]
[null,null,null,null,false,false]
[null,null,null,null,false,false]
[null,null,null,null,false,false]
[null,null,null,null,false,false]
[null,null,null,null,false,false]
[null,null,null,null,false,false]
[null,null,null,null,false,false]
[null,null,null,null,false,false]
[null,null,null,null,false,false]
[null,null,null,null,false,false]
[null,null,null,null,{"$f":"IF(B514=\"TOUT VENANT\",\"Véolia Nice Tri - Parc d'activité logistique\",IF(B514=\"DECHETS VERTS\",\"Orédui Carros Compostage - ZI de la Grave\",IF(B514=\"GRAVATS PROPRES\",\"La Gaude K3 Sita Sud - 5211 Rte de St Jeannet\",IF(B514=\"GRAVATS SALES\",\"Véolia Nice Tri - 20 Ch du Saquier\",IF(B514=\"BOIS\",\"SEAS La Glacière - 1019 Rte de la Grasse\",IF(B514=\"METAUX\",\"PURFER - ZI Carros 15ème Rue - 06517 Carros\",IF(B514=\"BATTERIES\",\"PURFER - ZI Carros 15ème Rue - 06517 Carros\",IF(B514=\"NEON\",\"Sofovar - 126 Av Louis Lépine - 83600 Fréjus\",IF(B514=\"PEINTURES\",\"Orédui - ZI Bois de Grasse - 06310 Grasse\",IF(B514=\"PRODUITS NON IDENTIFIES\",\"Orédui - ZI Bois de Grasse - 06310 Grasse\",IF(B514=\"AEROSOLS\",\"Orédui - ZI Bois de Grasse - 06310 Grasse\",IF(B514=\"FROIDS\",\"SEAS - 1079 Rte de Grasse - 06270 Villeneuve Loubet\",IF(B514=\"HORS FROIDS\",\"SEAS - 1079 Rte de Grasse - 06270 Villeneuve Loubet\",IF(B514=\"PAM\",\"SEAS - 1079 Rte de Grasse - 06270 Villeneuve Loubet\",IF(B514=\"ECRANS\",\"SEAS - 1079 Rte de Grasse - 06270 Villeneuve Loubet\",IF(B514=\"BOX HORS FROIDS\",\"SEAS - 1079 Rte de Grasse - 06270 Villeneuve Loubet\",IF(B514=\"PILES\",\"Corepile\",IF(B514=\"CUMULUS\",\"SEAS - 1079 Rte de Grasse - 06270 Villeneuve Loubet\",IF(B514=\"PNEUS\",\"TFM Pneus - 117 Ch Clausonnes - 06560 Valbonne\",IF(B514=\"HUILES VEGETALES\",\"Orédui - ZI Bois de Grasse - 06310 Grasse\",IF(B514=\"HUILES DE VIDANGE\",\"SERAHU - 68 Ch de la Campanette - 06800 Cagnes sur Mer\")))))))))))))))))))))","v":false},{"$f":"IF(OR(B514=\"TOUT VENANT\",B514=\"DECHETS VERTS\",B514=\"GRAVATS SALES\",B514=\"GRAVATS PROPRES\",B514=\"BOIS\"),\"SUEZ\",IF(OR(B514=\"PNEUS\"),\"TFM\",IF(OR(B514=\"FROIDS\",B514=\"HORS FROIDS\",B514=\"BOX HORS FROIDS\",B514=\"CUMULUS\",B514=\"PAM\",B514=\"ECRANS\"),\"SEAS\",IF(OR(B514=\"METAUX\",B514=\"BATTERIES\"),\"DERICHEBOURG\",IF(OR(B514=\"NEON\"),\"SOFOVAR\",IF(OR(B514=\"PEINTURES\",B514=\"PRODUITS NON IDENTIFIES\",B514=\"AEROSOLS\",B514=\"HUILES VEGETALES\"),\"OREDUI\",IF(OR(B514=\"HUILES DE VIDANGE\"),\"SERAHU\")))))))","v":false}]
[null,null,null,null,false,false]
[null,null,null,null,false,false]
[null,null,null,null,false,false]
[null,null,null,null,false,false]
[null,null,null,null,false,false]
[null,null,null,null,false,false]
[null,null,null,null,false,false]
[null,null,null,null,false,false]
[null,null,null,null,false,false]
[null,null,null,null,false,false]
[null,null,null,null,false,false]
[null,null,null,null,false,false]
[null,null,null,null,false,false]
[null,null,null,null,false,false]
[null,null,null,null,false,false]
[null,null,null,null,false,false]
[null,null,null,null,false,false]
[null,null,null,null,false,false]
[null,null,null,null,false,false]
[null,null,null,null,false,false]
[null,null,null,null,false,false]
[null,null,null,null,false,false]
[null,null,null,null,false,false]
[null,null,null,null,false,false]
[null,null,null,null,false,false]
[null,null,null,null,false,false]
[null,null,null,null,false,false]
[null,null,null,null,false,false]
[null,null,null,null,false,false]
[null,null,null,null,false,false]
[null,null,null,null,false,false]
[null,null,null,null,false,false]
[null,null,null,null,false,false]
[null,null,null,null,false,false]
[null,null,null,null,false,false]
[null,null,null,null,false,false]
[null,null,null,null,false,false]
[null,null,null,null,false,false]
[null,null,null,null,false,false]
[null,null,null,null,false,false]
[null,null,null,null,false,false]
[null,null,null,null,false,false]
[null,null,null,null,false,false]
[null,null,null,null,false,false]
[null,null,null,null,false,false]
[null,null,null,null,false,false]
[null,null,null,null,false,false]
[null,null,null,null,false,false]
[null,null,null,null,false,false]
[null,null,null,null,false,false]
[null,null,null,null,false,false]
[null,null,null,null,false,false]
[null,null,null,null,false,false]
[null,null,null,null,false,false]
[null,null,null,null,false,false]
[null,null,null,null,false,false]
[null,null,null,null,false,false]
[null,null,null,null,false,false]
[null,null,null,null,false,false]
[null,null,null,null,false,false]
[null,null,null,null,false,false]
[null,null,null,null,false,false]
[null,null,null,null,false,false]
[null,null,null,null,{"$f":"IF(B578=\"TOUT VENANT\",\"Véolia Nice Tri - Parc d'activité logistique\",IF(B578=\"DECHETS VERTS\",\"Orédui Carros Compostage - ZI de la Grave\",IF(B578=\"GRAVATS PROPRES\",\"La Gaude K3 Sita Sud - 5211 Rte de St Jeannet\",IF(B578=\"GRAVATS SALES\",\"Véolia Nice Tri - 20 Ch du Saquier\",IF(B578=\"BOIS\",\"SEAS La Glacière - 1019 Rte de la Grasse\",IF(B578=\"METAUX\",\"PURFER - ZI Carros 15ème Rue - 06517 Carros\",IF(B578=\"BATTERIES\",\"PURFER - ZI Carros 15ème Rue - 06517 Carros\",IF(B578=\"NEON\",\"Sofovar - 126 Av Louis Lépine - 83600 Fréjus\",IF(B578=\"PEINTURES\",\"Orédui - ZI Bois de Grasse - 06310 Grasse\",IF(B578=\"PRODUITS NON IDENTIFIES\",\"Orédui - ZI Bois de Grasse - 06310 Grasse\",IF(B578=\"AEROSOLS\",\"Orédui - ZI Bois de Grasse - 06310 Grasse\",IF(B578=\"FROIDS\",\"SEAS - 1079 Rte de Grasse - 06270 Villeneuve Loubet\",IF(B578=\"HORS FROIDS\",\"SEAS - 1079 Rte de Grasse - 06270 Villeneuve Loubet\",IF(B578=\"PAM\",\"SEAS - 1079 Rte de Grasse - 06270 Villeneuve Loubet\",IF(B578=\"ECRANS\",\"SEAS - 1079 Rte de Grasse - 06270 Villeneuve Loubet\",IF(B578=\"BOX HORS FROIDS\",\"SEAS - 1079 Rte de Grasse - 06270 Villeneuve Loubet\",IF(B578=\"PILES\",\"Corepile\",IF(B578=\"CUMULUS\",\"SEAS - 1079 Rte de Grasse - 06270 Villeneuve Loubet\",IF(B578=\"PNEUS\",\"TFM Pneus - 117 Ch Clausonnes - 06560 Valbonne\",IF(B578=\"HUILES VEGETALES\",\"Orédui - ZI Bois de Grasse - 06310 Grasse\",IF(B578=\"HUILES DE VIDANGE\",\"SERAHU - 68 Ch de la Campanette - 06800 Cagnes sur Mer\")))))))))))))))))))))","v":false},{"$f":"IF(OR(B578=\"TOUT VENANT\",B578=\"DECHETS VERTS\",B578=\"GRAVATS SALES\",B578=\"GRAVATS PROPRES\",B578=\"BOIS\"),\"SUEZ\",IF(OR(B578=\"PNEUS\"),\"TFM\",IF(OR(B578=\"FROIDS\",B578=\"HORS FROIDS\",B578=\"BOX HORS FROIDS\",B578=\"CUMULUS\",B578=\"PAM\",B578=\"ECRANS\"),\"SEAS\",IF(OR(B578=\"METAUX\",B578=\"BATTERIES\"),\"DERICHEBOURG\",IF(OR(B578=\"NEON\"),\"SOFOVAR\",IF(OR(B578=\"PEINTURES\",B578=\"PRODUITS NON IDENTIFIES\",B578=\"AEROSOLS\",B578=\"HUILES VEGETALES\"),\"OREDUI\",IF(OR(B578=\"HUILES DE VIDANGE\"),\"SERAHU\")))))))","v":false}]
[null,null,null,null,false,false]
[null,null,null,null,false,false]
[null,null,null,null,false,false]
[null,null,null,null,false,false]
[null,null,null,null,false,false]
[null,null,null,null,false,false]
[null,null,null,null,false,false]
[null,null,null,null,false,false]
[null,null,null,null,false,false]
[null,null,null,null,false,false]
[null,null,null,null,false,false]
[null,null,null,null,false,false]
[null,null,null,null,false,false]
[null,null,null,null,false,false]
[null,null,null,null,false,false]
[null,null,null,null,false,false]
[null,null,null,null,false,false]
[null,null,null,null,false,false]
[null,null,null,null,false,false]
[null,null,null,null,false,false]
[null,null,null,null,false,false]
[null,null,null,null,false,false]
[null,null,null,null,false,false]
[null,null,null,null,false,false]
[null,null,null,null,false,false]
[null,null,null,null,false,false]
[null,null,null,null,false,false]
[null,null,null,null,false,false]
[null,null,null,null,false,false]
[null,null,null,null,false,false]
[null,null,null,null,false,false]
[null,null,null,null,false,false]
[null,null,null,null,false,false]
[null,null,null,null,false,false]
[null,null,null,null,false,false]
[null,null,null,null,false,false]
[null,null,null,null,false,false]
[null,null,null,null,false,false]
[null,null,null,null,false,false]
[null,null,null,null,false,false]
[null,null,null,null,false,false]
[null,null,null,null,false,false]
[null,null,null,null,false,false]
[null,null,null,null,false,false]
[null,null,null,null,false,false]
[null,null,null,null,false,false]
[null,null,null,null,false,false]
[null,null,null,null,false,false]
[null,null,null,null,false,false]
[null,null,null,null,false,false]
[null,null,null,null,false,false]
[null,null,null,null,false,false]
[null,null,null,null,false,false]
[null,null,null,null,false,false]
[null,null,null,null,false,false]
[null,null,null,null,false,false]
[null,null,null,null,false,false]
[null,null,null,null,false,false]
[null,null,null,null,false,false]
[null,null,null,null,false,false]
[null,null,null,null,false,false]
[null,null,null,null,false,false]
[null,null,null,null,false,false]
[null,null,null,null,{"$f":"IF(B642=\"TOUT VENANT\",\"Véolia Nice Tri - Parc d'activité logistique\",IF(B642=\"DECHETS VERTS\",\"Orédui Carros Compostage - ZI de la Grave\",IF(B642=\"GRAVATS PROPRES\",\"La Gaude K3 Sita Sud - 5211 Rte de St Jeannet\",IF(B642=\"GRAVATS SALES\",\"Véolia Nice Tri - 20 Ch du Saquier\",IF(B642=\"BOIS\",\"SEAS La Glacière - 1019 Rte de la Grasse\",IF(B642=\"METAUX\",\"PURFER - ZI Carros 15ème Rue - 06517 Carros\",IF(B642=\"BATTERIES\",\"PURFER - ZI Carros 15ème Rue - 06517 Carros\",IF(B642=\"NEON\",\"Sofovar - 126 Av Louis Lépine - 83600 Fréjus\",IF(B642=\"PEINTURES\",\"Orédui - ZI Bois de Grasse - 06310 Grasse\",IF(B642=\"PRODUITS NON IDENTIFIES\",\"Orédui - ZI Bois de Grasse - 06310 Grasse\",IF(B642=\"AEROSOLS\",\"Orédui - ZI Bois de Grasse - 06310 Grasse\",IF(B642=\"FROIDS\",\"SEAS - 1079 Rte de Grasse - 06270 Villeneuve Loubet\",IF(B642=\"HORS FROIDS\",\"SEAS - 1079 Rte de Grasse - 06270 Villeneuve Loubet\",IF(B642=\"PAM\",\"SEAS - 1079 Rte de Grasse - 06270 Villeneuve Loubet\",IF(B642=\"ECRANS\",\"SEAS - 1079 Rte de Grasse - 06270 Villeneuve Loubet\",IF(B642=\"BOX HORS FROIDS\",\"SEAS - 1079 Rte de Grasse - 06270 Villeneuve Loubet\",IF(B642=\"PILES\",\"Corepile\",IF(B642=\"CUMULUS\",\"SEAS - 1079 Rte de Grasse - 06270 Villeneuve Loubet\",IF(B642=\"PNEUS\",\"TFM Pneus - 117 Ch Clausonnes - 06560 Valbonne\",IF(B642=\"HUILES VEGETALES\",\"Orédui - ZI Bois de Grasse - 06310 Grasse\",IF(B642=\"HUILES DE VIDANGE\",\"SERAHU - 68 Ch de la Campanette - 06800 Cagnes sur Mer\")))))))))))))))))))))","v":false},{"$f":"IF(OR(B642=\"TOUT VENANT\",B642=\"DECHETS VERTS\",B642=\"GRAVATS SALES\",B642=\"GRAVATS PROPRES\",B642=\"BOIS\"),\"SUEZ\",IF(OR(B642=\"PNEUS\"),\"TFM\",IF(OR(B642=\"FROIDS\",B642=\"HORS FROIDS\",B642=\"BOX HORS FROIDS\",B642=\"CUMULUS\",B642=\"PAM\",B642=\"ECRANS\"),\"SEAS\",IF(OR(B642=\"METAUX\",B642=\"BATTERIES\"),\"DERICHEBOURG\",IF(OR(B642=\"NEON\"),\"SOFOVAR\",IF(OR(B642=\"PEINTURES\",B642=\"PRODUITS NON IDENTIFIES\",B642=\"AEROSOLS\",B642=\"HUILES VEGETALES\"),\"OREDUI\",IF(OR(B642=\"HUILES DE VIDANGE\"),\"SERAHU\")))))))","v":false}]
[null,null,null,null,false,false]
[null,null,null,null,false,false]
[null,null,null,null,false,false]
[null,null,null,null,false,false]
[null,null,null,null,false,false]
[null,null,null,null,false,false]
[null,null,null,null,false,false]
[null,null,null,null,false,false]
[null,null,null,null,false,false]
[null,null,null,null,false,false]
[null,null,null,null,false,false]
[null,null,null,null,false,false]
[null,null,null,null,false,false]
[null,null,null,null,false,false]
[null,null,null,null,false,false]
[null,null,null,null,false,false]
[null,null,null,null,false,false]
[null,null,null,null,false,false]
[null,null,null,null,false,false]
[null,null,null,null,false,false]
[null,null,null,null,false,false]
[null,null,null,null,false,false]
[null,null,null,null,false,false]
[null,null,null,null,false,false]
[null,null,null,null,false,false]
[null,null,null,null,false,false]
[null,null,null,null,false,false]
[null,null,null,null,false,false]
[null,null,null,null,false,false]
[null,null,null,null,false,false]
[null,null,null,null,false,false]
[null,null,null,null,false,false]
[null,null,null,null,false,false]
[null,null,null,null,false,false]
[null,null,null,null,false,false]
[null,null,null,null,false,false]
[null,null,null,null,false,false]
[null,null,null,null,false,false]
[null,null,null,null,false,false]
[null,null,null,null,false,false]
[null,null,null,null,false,false]
[null,null,null,null,false,false]
[null,null,null,null,false,false]
[null,null,null,null,false,false]
[null,null,null,null,false,false]
[null,null,null,null,false,false]
[null,null,null,null,false,false]
[null,null,null,null,false,false]
[null,null,null,null,false,false]
[null,null,null,null,false,false]
[null,null,null,null,false,false]
[null,null,null,null,false,false]
[null,null,null,null,false,false]
[null,null,null,null,false,false]
[null,null,null,null,false,false]
[null,null,null,null,false,false]
[null,null,null,null,false,false]
[null,null,null,null,false,false]
[null,null,null,null,false,false]
[null,null,null,null,false,false]
[null,null,null,null,false,false]
[null,null,null,null,false,false]
[null,null,null,null,false,false]
[null,null,null,null,{"$f":"IF(B706=\"TOUT VENANT\",\"Véolia Nice Tri - Parc d'activité logistique\",IF(B706=\"DECHETS VERTS\",\"Orédui Carros Compostage - ZI de la Grave\",IF(B706=\"GRAVATS PROPRES\",\"La Gaude K3 Sita Sud - 5211 Rte de St Jeannet\",IF(B706=\"GRAVATS SALES\",\"Véolia Nice Tri - 20 Ch du Saquier\",IF(B706=\"BOIS\",\"SEAS La Glacière - 1019 Rte de la Grasse\",IF(B706=\"METAUX\",\"PURFER - ZI Carros 15ème Rue - 06517 Carros\",IF(B706=\"BATTERIES\",\"PURFER - ZI Carros 15ème Rue - 06517 Carros\",IF(B706=\"NEON\",\"Sofovar - 126 Av Louis Lépine - 83600 Fréjus\",IF(B706=\"PEINTURES\",\"Orédui - ZI Bois de Grasse - 06310 Grasse\",IF(B706=\"PRODUITS NON IDENTIFIES\",\"Orédui - ZI Bois de Grasse - 06310 Grasse\",IF(B706=\"AEROSOLS\",\"Orédui - ZI Bois de Grasse - 06310 Grasse\",IF(B706=\"FROIDS\",\"SEAS - 1079 Rte de Grasse - 06270 Villeneuve Loubet\",IF(B706=\"HORS FROIDS\",\"SEAS - 1079 Rte de Grasse - 06270 Villeneuve Loubet\",IF(B706=\"PAM\",\"SEAS - 1079 Rte de Grasse - 06270 Villeneuve Loubet\",IF(B706=\"ECRANS\",\"SEAS - 1079 Rte de Grasse - 06270 Villeneuve Loubet\",IF(B706=\"BOX HORS FROIDS\",\"SEAS - 1079 Rte de Grasse - 06270 Villeneuve Loubet\",IF(B706=\"PILES\",\"Corepile\",IF(B706=\"CUMULUS\",\"SEAS - 1079 Rte de Grasse - 06270 Villeneuve Loubet\",IF(B706=\"PNEUS\",\"TFM Pneus - 117 Ch Clausonnes - 06560 Valbonne\",IF(B706=\"HUILES VEGETALES\",\"Orédui - ZI Bois de Grasse - 06310 Grasse\",IF(B706=\"HUILES DE VIDANGE\",\"SERAHU - 68 Ch de la Campanette - 06800 Cagnes sur Mer\")))))))))))))))))))))","v":false},{"$f":"IF(OR(B706=\"TOUT VENANT\",B706=\"DECHETS VERTS\",B706=\"GRAVATS SALES\",B706=\"GRAVATS PROPRES\",B706=\"BOIS\"),\"SUEZ\",IF(OR(B706=\"PNEUS\"),\"TFM\",IF(OR(B706=\"FROIDS\",B706=\"HORS FROIDS\",B706=\"BOX HORS FROIDS\",B706=\"CUMULUS\",B706=\"PAM\",B706=\"ECRANS\"),\"SEAS\",IF(OR(B706=\"METAUX\",B706=\"BATTERIES\"),\"DERICHEBOURG\",IF(OR(B706=\"NEON\"),\"SOFOVAR\",IF(OR(B706=\"PEINTURES\",B706=\"PRODUITS NON IDENTIFIES\",B706=\"AEROSOLS\",B706=\"HUILES VEGETALES\"),\"OREDUI\",IF(OR(B706=\"HUILES DE VIDANGE\"),\"SERAHU\")))))))","v":false}]
[null,null,null,null,false,false]
[null,null,null,null,false,false]
[null,null,null,null,false,false]
[null,null,null,null,false,false]
[null,null,null,null,false,false]
[null,null,null,null,false,false]
[null,null,null,null,false,false]
[null,null,null,null,false,false]
[null,null,null,null,false,false]
[null,null,null,null,false,false]
[null,null,null,null,false,false]
[null,null,null,null,false,false]
[null,null,null,null,false,false]
[null,null,null,null,false,false]
[null,null,null,null,false,false]
[null,null,null,null,false,false]
[null,null,null,null,false,false]
[null,null,null,null,false,false]
[null,null,null,null,false,false]
[null,null,null,null,false,false]
[null,null,null,null,false,false]
[null,null,null,null,false,false]
[null,null,null,null,false,false]
[null,null,null,null,false,false]
[null,null,null,null,false,false]
[null,null,null,null,false,false]
[null,null,null,null,false,false]
[null,null,null,null,false,false]
[null,null,null,null,false,false]
[null,null,null,null,false,false]
[null,null,null,null,false,false]
[null,null,null,null,false,false]
[null,null,null,null,false,false]
[null,null,null,null,false,false]
[null,null,null,null,false,false]
[null,null,null,null,false,false]
[null,null,null,null,false,false]
[null,null,null,null,false,false]
[null,null,null,null,false,false]
[null,null,null,null,false,false]
[null,null,null,null,false,false]
[null,null,null,null,false,false]
[null,null,null,null,false,false]
[null,null,null,null,false,false]
[null,null,null,null,false,false]
[null,null,null,null,false,false]
[null,null,null,null,false,false]
[null,null,null,null,false,false]
[null,null,null,null,false,false]
[null,null,null,null,false,false]
[null,null,null,null,false,false]
[null,null,null,null,false,false]
[null,null,null,null,false,false]
[null,null,null,null,false,false]
[null,null,null,null,false,false]
[null,null,null,null,false,false]
[null,null,null,null,false,false]
[null,null,null,null,false,false]
[null,null,null,null,false,false]
[null,null,null,null,false,false]
[null,null,null,null,false,false]
[null,null,null,null,false,false]
[null,null,null,null,false,false]
[null,null,null,null,false,false]
[null,null,null,null,false,false]
[null,null,null,null,false,false]
[null,null,null,null,false,false]
[null,null,null,null,false,false]
[null,null,null,null,{"$f":"IF(B775=\"TOUT VENANT\",\"Véolia Nice Tri - Parc d'activité logistique\",IF(B775=\"DECHETS VERTS\",\"Orédui Carros Compostage - ZI de la Grave\",IF(B775=\"GRAVATS PROPRES\",\"La Gaude K3 Sita Sud - 5211 Rte de St Jeannet\",IF(B775=\"GRAVATS SALES\",\"Véolia Nice Tri - 20 Ch du Saquier\",IF(B775=\"BOIS\",\"SEAS La Glacière - 1019 Rte de la Grasse\",IF(B775=\"METAUX\",\"PURFER - ZI Carros 15ème Rue - 06517 Carros\",IF(B775=\"BATTERIES\",\"PURFER - ZI Carros 15ème Rue - 06517 Carros\",IF(B775=\"NEON\",\"Sofovar - 126 Av Louis Lépine - 83600 Fréjus\",IF(B775=\"PEINTURES\",\"Orédui - ZI Bois de Grasse - 06310 Grasse\",IF(B775=\"PRODUITS NON IDENTIFIES\",\"Orédui - ZI Bois de Grasse - 06310 Grasse\",IF(B775=\"AEROSOLS\",\"Orédui - ZI Bois de Grasse - 06310 Grasse\",IF(B775=\"FROIDS\",\"SEAS - 1079 Rte de Grasse - 06270 Villeneuve Loubet\",IF(B775=\"HORS FROIDS\",\"SEAS - 1079 Rte de Grasse - 06270 Villeneuve Loubet\",IF(B775=\"PAM\",\"SEAS - 1079 Rte de Grasse - 06270 Villeneuve Loubet\",IF(B775=\"ECRANS\",\"SEAS - 1079 Rte de Grasse - 06270 Villeneuve Loubet\",IF(B775=\"BOX HORS FROIDS\",\"SEAS - 1079 Rte de Grasse - 06270 Villeneuve Loubet\",IF(B775=\"PILES\",\"Corepile\",IF(B775=\"CUMULUS\",\"SEAS - 1079 Rte de Grasse - 06270 Villeneuve Loubet\",IF(B775=\"PNEUS\",\"TFM Pneus - 117 Ch Clausonnes - 06560 Valbonne\",IF(B775=\"HUILES VEGETALES\",\"Orédui - ZI Bois de Grasse - 06310 Grasse\",IF(B775=\"HUILES DE VIDANGE\",\"SERAHU - 68 Ch de la Campanette - 06800 Cagnes sur Mer\")))))))))))))))))))))","v":false},{"$f":"IF(OR(B775=\"TOUT VENANT\",B775=\"DECHETS VERTS\",B775=\"GRAVATS SALES\",B775=\"GRAVATS PROPRES\",B775=\"BOIS\"),\"SUEZ\",IF(OR(B775=\"PNEUS\"),\"TFM\",IF(OR(B775=\"FROIDS\",B775=\"HORS FROIDS\",B775=\"BOX HORS FROIDS\",B775=\"CUMULUS\",B775=\"PAM\",B775=\"ECRANS\"),\"SEAS\",IF(OR(B775=\"METAUX\",B775=\"BATTERIES\"),\"DERICHEBOURG\",IF(OR(B775=\"NEON\"),\"SOFOVAR\",IF(OR(B775=\"PEINTURES\",B775=\"PRODUITS NON IDENTIFIES\",B775=\"AEROSOLS\",B775=\"HUILES VEGETALES\"),\"OREDUI\",IF(OR(B775=\"HUILES DE VIDANGE\"),\"SERAHU\")))))))","v":false}]
[null,null,null,null,false,false]
[null,null,null,null,false,false]
[null,null,null,null,false,false]
[null,null,null,null,false,false]
[null,null,null,null,false,false]
[null,null,null,null,false,false]
[null,null,null,null,false,false]
[null,null,null,null,false,false]
[null,null,null,null,false,false]
[null,null,null,null,false,false]
[null,null,null,null,false,false]
[null,null,null,null,false,false]
[null,null,null,null,false,false]
[null,null,null,null,false,false]
[null,null,null,null,false,false]
[null,null,null,null,false,false]
[null,null,null,null,false,false]
[null,null,null,null,false,false]
[null,null,null,null,false,false]
[null,null,null,null,false,false]
[null,null,null,null,false,false]
[null,null,null,null,false,false]
[null,null,null,null,false,false]
[null,null,null,null,false,false]
[null,null,null,null,false,false]
[null,null,null,null,false,false]
[null,null,null,null,false,false]
[null,null,null,null,false,false]
[null,null,null,null,false,false]
[null,null,null,null,false,false]
[null,null,null,null,false,false]
[null,null,null,null,false,false]
[null,null,null,null,false,false]
[null,null,null,null,false,false]
[null,null,null,null,false,false]
[null,null,null,null,false,false]
[null,null,null,null,false,false]
[null,null,null,null,false,false]
[null,null,null,null,false,false]
[null,null,null,null,false,false]
[null,null,null,null,false,false]
[null,null,null,null,false,false]
[null,null,null,null,false,false]
[null,null,null,null,false,false]
[null,null,null,null,false,false]
[null,null,null,null,false,false]
[null,null,null,null,false,false]
[null,null,null,null,false,false]
[null,null,null,null,false,false]
[null,null,null,null,false,false]
[null,null,null,null,false,false]
[null,null,null,null,false,false]
[null,null,null,null,false,false]
[null,null,null,null,false,false]
[null,null,null,null,false,false]
[null,null,null,null,false,false]
[null,null,null,null,false,false]
[null,null,null,null,false,false]
[null,null,null,null,false,false]
[null,null,null,null,false,false]
[null,null,null,null,false,false]
[null,null,null,null,false,false]
[null,null,null,null,false,false]
[null,null,null,null,{"$f":"IF(B839=\"TOUT VENANT\",\"Véolia Nice Tri - Parc d'activité logistique\",IF(B839=\"DECHETS VERTS\",\"Orédui Carros Compostage - ZI de la Grave\",IF(B839=\"GRAVATS PROPRES\",\"La Gaude K3 Sita Sud - 5211 Rte de St Jeannet\",IF(B839=\"GRAVATS SALES\",\"Véolia Nice Tri - 20 Ch du Saquier\",IF(B839=\"BOIS\",\"SEAS La Glacière - 1019 Rte de la Grasse\",IF(B839=\"METAUX\",\"PURFER - ZI Carros 15ème Rue - 06517 Carros\",IF(B839=\"BATTERIES\",\"PURFER - ZI Carros 15ème Rue - 06517 Carros\",IF(B839=\"NEON\",\"Sofovar - 126 Av Louis Lépine - 83600 Fréjus\",IF(B839=\"PEINTURES\",\"Orédui - ZI Bois de Grasse - 06310 Grasse\",IF(B839=\"PRODUITS NON IDENTIFIES\",\"Orédui - ZI Bois de Grasse - 06310 Grasse\",IF(B839=\"AEROSOLS\",\"Orédui - ZI Bois de Grasse - 06310 Grasse\",IF(B839=\"FROIDS\",\"SEAS - 1079 Rte de Grasse - 06270 Villeneuve Loubet\",IF(B839=\"HORS FROIDS\",\"SEAS - 1079 Rte de Grasse - 06270 Villeneuve Loubet\",IF(B839=\"PAM\",\"SEAS - 1079 Rte de Grasse - 06270 Villeneuve Loubet\",IF(B839=\"ECRANS\",\"SEAS - 1079 Rte de Grasse - 06270 Villeneuve Loubet\",IF(B839=\"BOX HORS FROIDS\",\"SEAS - 1079 Rte de Grasse - 06270 Villeneuve Loubet\",IF(B839=\"PILES\",\"Corepile\",IF(B839=\"CUMULUS\",\"SEAS - 1079 Rte de Grasse - 06270 Villeneuve Loubet\",IF(B839=\"PNEUS\",\"TFM Pneus - 117 Ch Clausonnes - 06560 Valbonne\",IF(B839=\"HUILES VEGETALES\",\"Orédui - ZI Bois de Grasse - 06310 Grasse\",IF(B839=\"HUILES DE VIDANGE\",\"SERAHU - 68 Ch de la Campanette - 06800 Cagnes sur Mer\")))))))))))))))))))))","v":false},{"$f":"IF(OR(B839=\"TOUT VENANT\",B839=\"DECHETS VERTS\",B839=\"GRAVATS SALES\",B839=\"GRAVATS PROPRES\",B839=\"BOIS\"),\"SUEZ\",IF(OR(B839=\"PNEUS\"),\"TFM\",IF(OR(B839=\"FROIDS\",B839=\"HORS FROIDS\",B839=\"BOX HORS FROIDS\",B839=\"CUMULUS\",B839=\"PAM\",B839=\"ECRANS\"),\"SEAS\",IF(OR(B839=\"METAUX\",B839=\"BATTERIES\"),\"DERICHEBOURG\",IF(OR(B839=\"NEON\"),\"SOFOVAR\",IF(OR(B839=\"PEINTURES\",B839=\"PRODUITS NON IDENTIFIES\",B839=\"AEROSOLS\",B839=\"HUILES VEGETALES\"),\"OREDUI\",IF(OR(B839=\"HUILES DE VIDANGE\"),\"SERAHU\")))))))","v":false}]
[null,null,null,null,false,false]
[null,null,null,null,false,false]
[null,null,null,null,false,false]
[null,null,null,null,false,false]
[null,null,null,null,false,false]
[null,null,null,null,false,false]
[null,null,null,null,false,false]
[null,null,null,null,false,false]
[null,null,null,null,false,false]
[null,null,null,null,false,false]
[null,null,null,null,false,false]
[null,null,null,null,false,false]
[null,null,null,null,false,false]
[null,null,null,null,false,false]
[null,null,null,null,false,false]
[null,null,null,null,false,false]
[null,null,null,null,false,false]
[null,null,null,null,false,false]
[null,null,null,null,false,false]
[null,null,null,null,false,false]
[null,null,null,null,false,false]
[null,null,null,null,false,false]
[null,null,null,null,false,false]
[null,null,null,null,false,false]
[null,null,null,null,false,false]
[null,null,null,null,false,false]
[null,null,null,null,false,false]
[null,null,null,null,false,false]
[null,null,null,null,false,false]
[null,null,null,null,false,false]
[null,null,null,null,false,false]
[null,null,null,null,false,false]
[null,null,null,null,false,false]
[null,null,null,null,false,false]
[null,null,null,null,false,false]
[null,null,null,null,false,false]
[null,null,null,null,false,false]
[null,null,null,null,false,false]
[null,null,null,null,false,false]
[null,null,null,null,false,false]
[null,null,null,null,false,false]
[null,null,null,null,false,false]
[null,null,null,null,false,false]
[null,null,null,null,false,false]
[null,null,null,null,false,false]
[null,null,null,null,false,false]
[null,null,null,null,false,false]
[null,null,null,null,false,false]
[null,null,null,null,false,false]
[null,null,null,null,false,false]
[null,null,null,null,false,false]
[null,null,null,null,false,false]
[null,null,null,null,false,false]
[null,null,null,null,false,false]
[null,null,null,null,false,false]
[null,null,null,null,false,false]
[null,null,null,null,false,false]
[null,null,null,null,false,false]
[null,null,null,null,false,false]
[null,null,null,null,false,false]
[null,null,null,null,false,false]
[null,null,null,null,false,false]
[null,null,null,null,false,false]
[null,null,null,null,{"$f":"IF(B903=\"TOUT VENANT\",\"Véolia Nice Tri - Parc d'activité logistique\",IF(B903=\"DECHETS VERTS\",\"Orédui Carros Compostage - ZI de la Grave\",IF(B903=\"GRAVATS PROPRES\",\"La Gaude K3 Sita Sud - 5211 Rte de St Jeannet\",IF(B903=\"GRAVATS SALES\",\"Véolia Nice Tri - 20 Ch du Saquier\",IF(B903=\"BOIS\",\"SEAS La Glacière - 1019 Rte de la Grasse\",IF(B903=\"METAUX\",\"PURFER - ZI Carros 15ème Rue - 06517 Carros\",IF(B903=\"BATTERIES\",\"PURFER - ZI Carros 15ème Rue - 06517 Carros\",IF(B903=\"NEON\",\"Sofovar - 126 Av Louis Lépine - 83600 Fréjus\",IF(B903=\"PEINTURES\",\"Orédui - ZI Bois de Grasse - 06310 Grasse\",IF(B903=\"PRODUITS NON IDENTIFIES\",\"Orédui - ZI Bois de Grasse - 06310 Grasse\",IF(B903=\"AEROSOLS\",\"Orédui - ZI Bois de Grasse - 06310 Grasse\",IF(B903=\"FROIDS\",\"SEAS - 1079 Rte de Grasse - 06270 Villeneuve Loubet\",IF(B903=\"HORS FROIDS\",\"SEAS - 1079 Rte de Grasse - 06270 Villeneuve Loubet\",IF(B903=\"PAM\",\"SEAS - 1079 Rte de Grasse - 06270 Villeneuve Loubet\",IF(B903=\"ECRANS\",\"SEAS - 1079 Rte de Grasse - 06270 Villeneuve Loubet\",IF(B903=\"BOX HORS FROIDS\",\"SEAS - 1079 Rte de Grasse - 06270 Villeneuve Loubet\",IF(B903=\"PILES\",\"Corepile\",IF(B903=\"CUMULUS\",\"SEAS - 1079 Rte de Grasse - 06270 Villeneuve Loubet\",IF(B903=\"PNEUS\",\"TFM Pneus - 117 Ch Clausonnes - 06560 Valbonne\",IF(B903=\"HUILES VEGETALES\",\"Orédui - ZI Bois de Grasse - 06310 Grasse\",IF(B903=\"HUILES DE VIDANGE\",\"SERAHU - 68 Ch de la Campanette - 06800 Cagnes sur Mer\")))))))))))))))))))))","v":false},{"$f":"IF(OR(B903=\"TOUT VENANT\",B903=\"DECHETS VERTS\",B903=\"GRAVATS SALES\",B903=\"GRAVATS PROPRES\",B903=\"BOIS\"),\"SUEZ\",IF(OR(B903=\"PNEUS\"),\"TFM\",IF(OR(B903=\"FROIDS\",B903=\"HORS FROIDS\",B903=\"BOX HORS FROIDS\",B903=\"CUMULUS\",B903=\"PAM\",B903=\"ECRANS\"),\"SEAS\",IF(OR(B903=\"METAUX\",B903=\"BATTERIES\"),\"DERICHEBOURG\",IF(OR(B903=\"NEON\"),\"SOFOVAR\",IF(OR(B903=\"PEINTURES\",B903=\"PRODUITS NON IDENTIFIES\",B903=\"AEROSOLS\",B903=\"HUILES VEGETALES\"),\"OREDUI\",IF(OR(B903=\"HUILES DE VIDANGE\"),\"SERAHU\")))))))","v":false}]
[null,null,null,null,false,false]
[null,null,null,null,false,false]
[null,null,null,null,false,false]
[null,null,null,null,false,false]
[null,null,null,null,false,false]
[null,null,null,null,false,false]
[null,null,null,null,false,false]
[null,null,null,null,false,false]
[null,null,null,null,false,false]
[null,null,null,null,false,false]
[null,null,null,null,false,false]
[null,null,null,null,false,false]
[null,null,null,null,false,false]
[null,null,null,null,false,false]
[null,null,null,null,false,false]
[null,null,null,null,false,false]
[null,null,null,null,false,false]
[null,null,null,null,false,false]
[null,null,null,null,false,false]
[null,null,null,null,false,false]
[null,null,null,null,false,false]
[null,null,null,null,false,false]
[null,null,null,null,false,false]
[null,null,null,null,false,false]
[null,null,null,null,false,false]
[null,null,null,null,false,false]
[null,null,null,null,false,false]
[null,null,null,null,false,false]
[null,null,null,null,false,false]
[null,null,null,null,false,false]
[null,null,null,null,false,false]
[null,null,null,null,false,false]
[null,null,null,null,false,false]
[null,null,null,null,false,false]
[null,null,null,null,false,false]
[null,null,null,null,false,false]
[null,null,null,null,false,false]
[null,null,null,null,false,false]
[null,null,null,null,false,false]
[null,null,null,null,false,false]
[null,null,null,null,false,false]
[null,null,null,null,false,false]
[null,null,null,null,false,false]
[null,null,null,null,false,false]
[null,null,null,null,false,false]
[null,null,null,null,false,false]
[null,null,null,null,false,false]
[null,null,null,null,false,false]
[null,null,null,null,false,false]
[null,null,null,null,false,false]
[null,null,null,null,false,false]
[null,null,null,null,false,false]
[null,null,null,null,false,false]
[null,null,null,null,false,false]
[null,null,null,null,false,false]
[null,null,null,null,false,false]
[null,null,null,null,false,false]
[null,null,null,null,false,false]
[null,null,null,null,false,false]
[null,null,null,null,false,false]
[null,null,null,null,false,false]
[null,null,null,null,false,false]
[null,null,null,null,false,false]
[null,null,null,null,{"$f":"IF(B967=\"TOUT VENANT\",\"Véolia Nice Tri - Parc d'activité logistique\",IF(B967=\"DECHETS VERTS\",\"Orédui Carros Compostage - ZI de la Grave\",IF(B967=\"GRAVATS PROPRES\",\"La Gaude K3 Sita Sud - 5211 Rte de St Jeannet\",IF(B967=\"GRAVATS SALES\",\"Véolia Nice Tri - 20 Ch du Saquier\",IF(B967=\"BOIS\",\"SEAS La Glacière - 1019 Rte de la Grasse\",IF(B967=\"METAUX\",\"PURFER - ZI Carros 15ème Rue - 06517 Carros\",IF(B967=\"BATTERIES\",\"PURFER - ZI Carros 15ème Rue - 06517 Carros\",IF(B967=\"NEON\",\"Sofovar - 126 Av Louis Lépine - 83600 Fréjus\",IF(B967=\"PEINTURES\",\"Orédui - ZI Bois de Grasse - 06310 Grasse\",IF(B967=\"PRODUITS NON IDENTIFIES\",\"Orédui - ZI Bois de Grasse - 06310 Grasse\",IF(B967=\"AEROSOLS\",\"Orédui - ZI Bois de Grasse - 06310 Grasse\",IF(B967=\"FROIDS\",\"SEAS - 1079 Rte de Grasse - 06270 Villeneuve Loubet\",IF(B967=\"HORS FROIDS\",\"SEAS - 1079 Rte de Grasse - 06270 Villeneuve Loubet\",IF(B967=\"PAM\",\"SEAS - 1079 Rte de Grasse - 06270 Villeneuve Loubet\",IF(B967=\"ECRANS\",\"SEAS - 1079 Rte de Grasse - 06270 Villeneuve Loubet\",IF(B967=\"BOX HORS FROIDS\",\"SEAS - 1079 Rte de Grasse - 06270 Villeneuve Loubet\",IF(B967=\"PILES\",\"Corepile\",IF(B967=\"CUMULUS\",\"SEAS - 1079 Rte de Grasse - 06270 Villeneuve Loubet\",IF(B967=\"PNEUS\",\"TFM Pneus - 117 Ch Clausonnes - 06560 Valbonne\",IF(B967=\"HUILES VEGETALES\",\"Orédui - ZI Bois de Grasse - 06310 Grasse\",IF(B967=\"HUILES DE VIDANGE\",\"SERAHU - 68 Ch de la Campanette - 06800 Cagnes sur Mer\")))))))))))))))))))))","v":false},{"$f":"IF(OR(B967=\"TOUT VENANT\",B967=\"DECHETS VERTS\",B967=\"GRAVATS SALES\",B967=\"GRAVATS PROPRES\",B967=\"BOIS\"),\"SUEZ\",IF(OR(B967=\"PNEUS\"),\"TFM\",IF(OR(B967=\"FROIDS\",B967=\"HORS FROIDS\",B967=\"BOX HORS FROIDS\",B967=\"CUMULUS\",B967=\"PAM\",B967=\"ECRANS\"),\"SEAS\",IF(OR(B967=\"METAUX\",B967=\"BATTERIES\"),\"DERICHEBOURG\",IF(OR(B967=\"NEON\"),\"SOFOVAR\",IF(OR(B967=\"PEINTURES\",B967=\"PRODUITS NON IDENTIFIES\",B967=\"AEROSOLS\",B967=\"HUILES VEGETALES\"),\"OREDUI\",IF(OR(B967=\"HUILES DE VIDANGE\"),\"SERAHU\")))))))","v":false}]
[null,null,null,null,false,false]
[null,null,null,null,false,false]
[null,null,null,null,false,false]
[null,null,null,null,false,false]
[null,null,null,null,false,false]
[null,null,null,null,false,false]
[null,null,null,null,false,false]
[null,null,null,null,false,false]
[null,null,null,null,false,false]
[null,null,null,null,false,false]
[null,null,null,null,false,false]
[null,null,null,null,false,false]
[null,null,null,null,false,false]
[null,null,null,null,false,false]
[null,null,null,null,false,false]
[null,null,null,null,false,false]
[null,null,null,null,false,false]
[null,null,null,null,false,false]
[null,null,null,null,false,false]
[null,null,null,null,false,false]
[null,null,null,null,false,false]
[null,null,null,null,false,false]
[null,null,null,null,false,false]
[null,null,null,null,false,false]
[null,null,null,null,false,false]
[null,null,null,null,false,false]
[null,null,null,null,false,false]
[null,null,null,null,false,false]
[null,null,null,null,false,false]
[null,null,null,null,false,false]
[null,null,null,null,false,false]
[null,null,null,null,false,false]
[null,null,null,null,false,false]

{"sheet":"Registre","index":10,"n_rows":1000,"n_cols":14,"rows_kept":1000,"cut":false,"hidden":false,"merged":[[24,11,24,12],[16,11,16,12]]}
["Date d'enlèvement","Nature du déchets","Quantité de déchets\n (en kg)","Unité","Installation de destination \n(nom et adresse)","Transporteur ","Immatriculation","Fiche d'intervention","Signature"]
[null,null,null,"",{"$f":"IF(B2=\"TOUT VENANT\",\"Véolia Nice Tri - Parc d'activité logistique\",IF(B2=\"DECHETS VERTS\",\"Orédui Carros Compostage - ZI de la Grave\",IF(B2=\"GRAVATS PROPRES\",\"La Gaude K3 Sita Sud - 5211 Rte de St Jeannet\",IF(B2=\"GRAVATS SALES\",\"Véolia Nice Tri - 20 Ch du Saquier\",IF(B2=\"BOIS\",\"SEAS La Glacière - 1019 Rte de la Grasse\",IF(B2=\"METAUX\",\"PURFER - ZI Carros 15ème Rue - 06517 Carros\",IF(B2=\"BATTERIES\",\"PURFER - ZI Carros 15ème Rue - 06517 Carros\",IF(B2=\"NEON\",\"Sofovar - 126 Av Louis Lépine - 83600 Fréjus\",IF(B2=\"PEINTURES\",\"Orédui - ZI Bois de Grasse - 06310 Grasse\",IF(B2=\"PRODUITS NON IDENTIFIES\",\"Orédui - ZI Bois de Grasse - 06310 Grasse\",IF(B2=\"AEROSOLS\",\"Orédui - ZI Bois de Grasse - 06310 Grasse\",IF(B2=\"FROIDS\",\"SEAS - 1079 Rte de Grasse - 06270 Villeneuve Loubet\",IF(B2=\"HORS FROIDS\",\"SEAS - 1079 Rte de Grasse - 06270 Villeneuve Loubet\",IF(B2=\"PAM\",\"SEAS - 1079 Rte de Grasse - 06270 Villeneuve Loubet\",IF(B2=\"ECRANS\",\"SEAS - 1079 Rte de Grasse - 06270 Villeneuve Loubet\",IF(B2=\"BOX HORS FROIDS\",\"SEAS - 1079 Rte de Grasse - 06270 Villeneuve Loubet\",IF(B2=\"PILES\",\"Corepile\",IF(B2=\"CUMULUS\",\"SEAS - 1079 Rte de Grasse - 06270 Villeneuve Loubet\",IF(B2=\"PNEUS\",\"TFM Pneus - 117 Ch Clausonnes - 06560 Valbonne\",IF(B2=\"HUILES VEGETALES\",\"Orédui - ZI Bois de Grasse - 06310 Grasse\",IF(B2=\"HUILES DE VIDANGE\",\"SERAHU - 68 Ch de la Campanette - 06800 Cagnes sur Mer\")))))))))))))))))))))","v":false},{"$f":"IF(OR(B2=\"TOUT VENANT\",B2=\"DECHETS VERTS\",B2=\"GRAVATS SALES\",B2=\"GRAVATS PROPRES\",B2=\"BOIS\"),\"SUEZ\",IF(OR(B2=\"PNEUS\"),\"TFM\",IF(OR(B2=\"FROIDS\",B2=\"HORS FROIDS\",B2=\"BOX HORS FROIDS\",B2=\"CUMULUS\",B2=\"PAM\",B2=\"ECRANS\"),\"SEAS\",IF(OR(B2=\"METAUX\",B2=\"BATTERIES\"),\"DERICHEBOURG\",IF(OR(B2=\"NEON\"),\"SOFOVAR\",IF(OR(B2=\"PEINTURES\",B2=\"PRODUITS NON IDENTIFIES\",B2=\"AEROSOLS\",B2=\"HUILES VEGETALES\"),\"OREDUI\",IF(OR(B2=\"HUILES DE VIDANGE\"),\"SERAHU\")))))))","v":false}]
[null,null,null,"",false,false]
[null,null,null,"",false,false]
[null,null,null,null,false,false]
[null,null,null,null,false,false]
[null,null,null,null,false,false]
[null,null,null,null,false,false]
[null,null,null,null,false,false]
[null,null,null,null,false,false]
[null,null,null,null,false,false]
[null,null,null,null,false,false]
[null,null,null,null,false,false]
[null,null,null,null,false,false]
[null,null,null,null,false,false]
[null,null,null,null,false,false]
[null,null,null,null,false,false,null,null,null,null,null,"PRESTATIONS JOURNALIERES SUEZ"]
[null,null,null,null,false,false,null,null,null,null,null,"6 TV ","6 ROTATIONS DE CAMION AMPIROLES"]
[null,null,null,null,false,false,null,null,null,null,null,"6 TV ","3 ROTATIONS DE CAMION GRAPPIN","LUNDI 4 ROTATIONS DE GRAPPIN"]
[null,null,null,null,false,false,null,null,null,null,null,"2 GRAVATS SALES","1  MATIN ET 1 APRES MIDI"]
[null,null,null,null,false,false,null,null,null,null,null,"3 GRAVATS PROPRES","3 ROTATIONS DE CAMION AMPIROLES"]
[null,null,null,null,false,false,null,null,null,null,null,"2 DECHETS VERTS","2 ROTATIONS DE CAMION AMPIROLES"]
[null,null,null,null,false,false,null,null,null,null,null,"2 BOIS","2 ROTATIONS DE CAMION AMPIROLES"]
[null,null,null,null,false,false,null,null,null,null,null,"1 METAUX","1 ROTATION DE CAMION GRAPPIN"]
[null,null,null,null,false,false,null,null,null,null,null,"Le samedi présence d'un camion minimum jusqu'à 16H"]
[null,null,null,null,false,false]
[null,null,null,null,false,false]
[null,null,null,null,false,false]
[null,null,null,null,false,false]
[null,null,null,null,false,false]
[null,null,null,null,false,false]
[null,null,null,null,false,false]
[null,null,null,null,false,false]
[null,null,null,null,false,false]
[null,null,null,null,false,false]
[null,null,null,null,false,false]
[null,null,null,null,false,false]
[null,null,null,null,false,false]
[null,null,null,null,false,false]
[null,null,null,null,false,false]
[null,null,null,null,false,false]
[null,null,null,null,false,false]
[null,null,null,null,false,false]
[null,null,null,null,false,false]
[null,null,null,null,false,false]
[null,null,null,null,false,false]
[null,null,null,null,false,false]
[null,null,null,null,false,false]
[null,null,null,null,false,false]
[null,null,null,null,false,false]
[null,null,null,null,false,false]
[null,null,null,null,false,false]
[null,null,null,null,false,false]
[null,null,null,null,false,false]
[null,null,null,null,false,false]
[null,null,null,null,false,false]
[null,null,null,null,false,false]
[null,null,null,null,false,false]
[null,null,null,null,false,false]
[null,null,null,null,false,false]
[null,null,null,null,false,false]
[null,null,null,null,false,false]
[null,null,null,null,false,false]
[null,null,null,null,false,false]
[null,null,null,null,false,false]
[null,null,null,null,{"$f":"IF(B66=\"TOUT VENANT\",\"Véolia Nice Tri - Parc d'activité logistique\",IF(B66=\"DECHETS VERTS\",\"Orédui Carros Compostage - ZI de la Grave\",IF(B66=\"GRAVATS PROPRES\",\"La Gaude K3 Sita Sud - 5211 Rte de St Jeannet\",IF(B66=\"GRAVATS SALES\",\"Véolia Nice Tri - 20 Ch du Saquier\",IF(B66=\"BOIS\",\"SEAS La Glacière - 1019 Rte de la Grasse\",IF(B66=\"METAUX\",\"PURFER - ZI Carros 15ème Rue - 06517 Carros\",IF(B66=\"BATTERIES\",\"PURFER - ZI Carros 15ème Rue - 06517 Carros\",IF(B66=\"NEON\",\"Sofovar - 126 Av Louis Lépine - 83600 Fréjus\",IF(B66=\"PEINTURES\",\"Orédui - ZI Bois de Grasse - 06310 Grasse\",IF(B66=\"PRODUITS NON IDENTIFIES\",\"Orédui - ZI Bois de Grasse - 06310 Grasse\",IF(B66=\"AEROSOLS\",\"Orédui - ZI Bois de Grasse - 06310 Grasse\",IF(B66=\"FROIDS\",\"SEAS - 1079 Rte de Grasse - 06270 Villeneuve Loubet\",IF(B66=\"HORS FROIDS\",\"SEAS - 1079 Rte de Grasse - 06270 Villeneuve Loubet\",IF(B66=\"PAM\",\"SEAS - 1079 Rte de Grasse - 06270 Villeneuve Loubet\",IF(B66=\"ECRANS\",\"SEAS - 1079 Rte de Grasse - 06270 Villeneuve Loubet\",IF(B66=\"BOX HORS FROIDS\",\"SEAS - 1079 Rte de Grasse - 06270 Villeneuve Loubet\",IF(B66=\"PILES\",\"Corepile\",IF(B66=\"CUMULUS\",\"SEAS - 1079 Rte de Grasse - 06270 Villeneuve Loubet\",IF(B66=\"PNEUS\",\"TFM Pneus - 117 Ch Clausonnes - 06560 Valbonne\",IF(B66=\"HUILES VEGETALES\",\"Orédui - ZI Bois de Grasse - 06310 Grasse\",IF(B66=\"HUILES DE VIDANGE\",\"SERAHU - 68 Ch de la Campanette - 06800 Cagnes sur Mer\")))))))))))))))))))))","v":false},{"$f":"IF(OR(B66=\"TOUT VENANT\",B66=\"DECHETS VERTS\",B66=\"GRAVATS SALES\",B66=\"GRAVATS PROPRES\",B66=\"BOIS\"),\"SUEZ\",IF(OR(B66=\"PNEUS\"),\"TFM\",IF(OR(B66=\"FROIDS\",B66=\"HORS FROIDS\",B66=\"BOX HORS FROIDS\",B66=\"CUMULUS\",B66=\"PAM\",B66=\"ECRANS\"),\"SEAS\",IF(OR(B66=\"METAUX\",B66=\"BATTERIES\"),\"DERICHEBOURG\",IF(OR(B66=\"NEON\"),\"SOFOVAR\",IF(OR(B66=\"PEINTURES\",B66=\"PRODUITS NON IDENTIFIES\",B66=\"AEROSOLS\",B66=\"HUILES VEGETALES\"),\"OREDUI\",IF(OR(B66=\"HUILES DE VIDANGE\"),\"SERAHU\")))))))","v":false}]
[null,null,null,null,false,false]
[null,null,null,null,false,false]
[null,null,null,null,false,false]
[null,null,null,null,false,false]
[null,null,null,null,false,false]
[null,null,null,null,false,false]
[null,null,null,null,false,false]
[null,null,null,null,false,false]
[null,null,null,null,false,false]
[null,null,null,null,false,false]
[null,null,null,null,false,false]
[null,null,null,null,false,false]
[null,null,null,null,false,false]
[null,null,null,null,false,false]
[null,null,null,null,false,false]
[null,null,null,null,false,false]
[null,null,null,null,false,false]
[null,null,null,null,false,false]
[null,null,null,null,false,false]
[null,null,null,null,false,false]
[null,null,null,null,false,false]
[null,null,null,null,false,false]
[null,null,null,null,false,false]
[null,null,null,null,false,false]
[null,null,null,null,false,false]
[null,null,null,null,false,false]
[null,null,null,null,false,false]
[null,null,null,null,false,false]
[null,null,null,null,false,false]
[null,null,null,null,false,false]
[null,null,null,null,false,false]
[null,null,null,null,false,false]
[null,null,null,null,false,false]
[null,null,null,null,false,false]
[null,null,null,null,false,false]
[null,null,null,null,false,false]
[null,null,null,null,false,false]
[null,null,null,null,false,false]
[null,null,null,null,false,false]
[null,null,null,null,false,false]
[null,null,null,null,false,false]
[null,null,null,null,false,false]
[null,null,null,null,false,false]
[null,null,null,null,false,false]
[null,null,null,null,false,false]
[null,null,null,null,false,false]
[null,null,null,null,false,false]
[null,null,null,null,false,false]
[null,null,null,null,false,false]
[null,null,null,null,false,false]
[null,null,null,null,false,false]
[null,null,null,null,false,false]
[null,null,null,null,false,false]
[null,null,null,null,false,false]
[null,null,null,null,false,false]
[null,null,null,null,false,false]
[null,null,null,null,false,false]
[null,null,null,null,false,false]
[null,null,null,null,false,false]
[null,null,null,null,false,false]
[null,null,null,null,false,false]
[null,null,null,null,false,false]
[null,null,null,null,false,false]
[null,null,null,null,{"$f":"IF(B130=\"TOUT VENANT\",\"Véolia Nice Tri - Parc d'activité logistique\",IF(B130=\"DECHETS VERTS\",\"Orédui Carros Compostage - ZI de la Grave\",IF(B130=\"GRAVATS PROPRES\",\"La Gaude K3 Sita Sud - 5211 Rte de St Jeannet\",IF(B130=\"GRAVATS SALES\",\"Véolia Nice Tri - 20 Ch du Saquier\",IF(B130=\"BOIS\",\"SEAS La Glacière - 1019 Rte de la Grasse\",IF(B130=\"METAUX\",\"PURFER - ZI Carros 15ème Rue - 06517 Carros\",IF(B130=\"BATTERIES\",\"PURFER - ZI Carros 15ème Rue - 06517 Carros\",IF(B130=\"NEON\",\"Sofovar - 126 Av Louis Lépine - 83600 Fréjus\",IF(B130=\"PEINTURES\",\"Orédui - ZI Bois de Grasse - 06310 Grasse\",IF(B130=\"PRODUITS NON IDENTIFIES\",\"Orédui - ZI Bois de Grasse - 06310 Grasse\",IF(B130=\"AEROSOLS\",\"Orédui - ZI Bois de Grasse - 06310 Grasse\",IF(B130=\"FROIDS\",\"SEAS - 1079 Rte de Grasse - 06270 Villeneuve Loubet\",IF(B130=\"HORS FROIDS\",\"SEAS - 1079 Rte de Grasse - 06270 Villeneuve Loubet\",IF(B130=\"PAM\",\"SEAS - 1079 Rte de Grasse - 06270 Villeneuve Loubet\",IF(B130=\"ECRANS\",\"SEAS - 1079 Rte de Grasse - 06270 Villeneuve Loubet\",IF(B130=\"BOX HORS FROIDS\",\"SEAS - 1079 Rte de Grasse - 06270 Villeneuve Loubet\",IF(B130=\"PILES\",\"Corepile\",IF(B130=\"CUMULUS\",\"SEAS - 1079 Rte de Grasse - 06270 Villeneuve Loubet\",IF(B130=\"PNEUS\",\"TFM Pneus - 117 Ch Clausonnes - 06560 Valbonne\",IF(B130=\"HUILES VEGETALES\",\"Orédui - ZI Bois de Grasse - 06310 Grasse\",IF(B130=\"HUILES DE VIDANGE\",\"SERAHU - 68 Ch de la Campanette - 06800 Cagnes sur Mer\")))))))))))))))))))))","v":false},{"$f":"IF(OR(B130=\"TOUT VENANT\",B130=\"DECHETS VERTS\",B130=\"GRAVATS SALES\",B130=\"GRAVATS PROPRES\",B130=\"BOIS\"),\"SUEZ\",IF(OR(B130=\"PNEUS\"),\"TFM\",IF(OR(B130=\"FROIDS\",B130=\"HORS FROIDS\",B130=\"BOX HORS FROIDS\",B130=\"CUMULUS\",B130=\"PAM\",B130=\"ECRANS\"),\"SEAS\",IF(OR(B130=\"METAUX\",B130=\"BATTERIES\"),\"DERICHEBOURG\",IF(OR(B130=\"NEON\"),\"SOFOVAR\",IF(OR(B130=\"PEINTURES\",B130=\"PRODUITS NON IDENTIFIES\",B130=\"AEROSOLS\",B130=\"HUILES VEGETALES\"),\"OREDUI\",IF(OR(B130=\"HUILES DE VIDANGE\"),\"SERAHU\")))))))","v":false}]
[null,null,null,null,false,false]
[null,null,null,null,false,false]
[null,null,null,null,false,false]
[null,null,null,null,false,false]
[null,null,null,null,false,false]
[null,null,null,null,false,false]
[null,null,null,null,false,false]
[null,null,null,null,false,false]
[null,null,null,null,false,false]
[null,null,null,null,false,false]
[null,null,null,null,false,false]
[null,null,null,null,false,false]
[null,null,null,null,false,false]
[null,null,null,null,false,false]
[null,null,null,null,false,false]
[null,null,null,null,false,false]
[null,null,null,null,false,false]
[null,null,null,null,false,false]
[null,null,null,null,false,false]
[null,null,null,null,false,false]
[null,null,null,null,false,false]
[null,null,null,null,false,false]
[null,null,null,null,false,false]
[null,null,null,null,false,false]
[null,null,null,null,false,false]
[null,null,null,null,false,false]
[null,null,null,null,false,false]
[null,null,null,null,false,false]
[null,null,null,null,false,false]
[null,null,null,null,false,false]
[null,null,null,null,false,false]
[null,null,null,null,false,false]
[null,null,null,null,false,false]
[null,null,null,null,false,false]
[null,null,null,null,false,false]
[null,null,null,null,false,false]
[null,null,null,null,false,false]
[null,null,null,null,false,false]
[null,null,null,null,false,false]
[null,null,null,null,false,false]
[null,null,null,null,false,false]
[null,null,null,null,false,false]
[null,null,null,null,false,false]
[null,null,null,null,false,false]
[null,null,null,null,false,false]
[null,null,null,null,false,false]
[null,null,null,null,false,false]
[null,null,null,null,false,false]
[null,null,null,null,false,false]
[null,null,null,null,false,false]
[null,null,null,null,false,false]
[null,null,null,null,false,false]
[null,null,null,null,false,false]
[null,null,null,null,false,false]
[null,null,null,null,false,false]
[null,null,null,null,false,false]
[null,null,null,null,false,false]
[null,null,null,null,false,false]
[null,null,null,null,false,false]
[null,null,null,null,false,false]
[null,null,null,null,false,false]
[null,null,null,null,false,false]
[null,null,null,null,false,false]
[null,null,null,null,{"$f":"IF(B194=\"TOUT VENANT\",\"Véolia Nice Tri - Parc d'activité logistique\",IF(B194=\"DECHETS VERTS\",\"Orédui Carros Compostage - ZI de la Grave\",IF(B194=\"GRAVATS PROPRES\",\"La Gaude K3 Sita Sud - 5211 Rte de St Jeannet\",IF(B194=\"GRAVATS SALES\",\"Véolia Nice Tri - 20 Ch du Saquier\",IF(B194=\"BOIS\",\"SEAS La Glacière - 1019 Rte de la Grasse\",IF(B194=\"METAUX\",\"PURFER - ZI Carros 15ème Rue - 06517 Carros\",IF(B194=\"BATTERIES\",\"PURFER - ZI Carros 15ème Rue - 06517 Carros\",IF(B194=\"NEON\",\"Sofovar - 126 Av Louis Lépine - 83600 Fréjus\",IF(B194=\"PEINTURES\",\"Orédui - ZI Bois de Grasse - 06310 Grasse\",IF(B194=\"PRODUITS NON IDENTIFIES\",\"Orédui - ZI Bois de Grasse - 06310 Grasse\",IF(B194=\"AEROSOLS\",\"Orédui - ZI Bois de Grasse - 06310 Grasse\",IF(B194=\"FROIDS\",\"SEAS - 1079 Rte de Grasse - 06270 Villeneuve Loubet\",IF(B194=\"HORS FROIDS\",\"SEAS - 1079 Rte de Grasse - 06270 Villeneuve Loubet\",IF(B194=\"PAM\",\"SEAS - 1079 Rte de Grasse - 06270 Villeneuve Loubet\",IF(B194=\"ECRANS\",\"SEAS - 1079 Rte de Grasse - 06270 Villeneuve Loubet\",IF(B194=\"BOX HORS FROIDS\",\"SEAS - 1079 Rte de Grasse - 06270 Villeneuve Loubet\",IF(B194=\"PILES\",\"Corepile\",IF(B194=\"CUMULUS\",\"SEAS - 1079 Rte de Grasse - 06270 Villeneuve Loubet\",IF(B194=\"PNEUS\",\"TFM Pneus - 117 Ch Clausonnes - 06560 Valbonne\",IF(B194=\"HUILES VEGETALES\",\"Orédui - ZI Bois de Grasse - 06310 Grasse\",IF(B194=\"HUILES DE VIDANGE\",\"SERAHU - 68 Ch de la Campanette - 06800 Cagnes sur Mer\")))))))))))))))))))))","v":false},{"$f":"IF(OR(B194=\"TOUT VENANT\",B194=\"DECHETS VERTS\",B194=\"GRAVATS SALES\",B194=\"GRAVATS PROPRES\",B194=\"BOIS\"),\"SUEZ\",IF(OR(B194=\"PNEUS\"),\"TFM\",IF(OR(B194=\"FROIDS\",B194=\"HORS FROIDS\",B194=\"BOX HORS FROIDS\",B194=\"CUMULUS\",B194=\"PAM\",B194=\"ECRANS\"),\"SEAS\",IF(OR(B194=\"METAUX\",B194=\"BATTERIES\"),\"DERICHEBOURG\",IF(OR(B194=\"NEON\"),\"SOFOVAR\",IF(OR(B194=\"PEINTURES\",B194=\"PRODUITS NON IDENTIFIES\",B194=\"AEROSOLS\",B194=\"HUILES VEGETALES\"),\"OREDUI\",IF(OR(B194=\"HUILES DE VIDANGE\"),\"SERAHU\")))))))","v":false}]
[null,null,null,null,false,false]
[null,null,null,null,false,false]
[null,null,null,null,false,false]
[null,null,null,null,false,false]
[null,null,null,null,false,false]
[null,null,null,null,false,false]
[null,null,null,null,false,false]
[null,null,null,null,false,false]
[null,null,null,null,false,false]
[null,null,null,null,false,false]
[null,null,null,null,false,false]
[null,null,null,null,false,false]
[null,null,null,null,false,false]
[null,null,null,null,false,false]
[null,null,null,null,false,false]
[null,null,null,null,false,false]
[null,null,null,null,false,false]
[null,null,null,null,false,false]
[null,null,null,null,false,false]
[null,null,null,null,false,false]
[null,null,null,null,false,false]
[null,null,null,null,false,false]
[null,null,null,null,false,false]
[null,null,null,null,false,false]
[null,null,null,null,false,false]
[null,null,null,null,false,false]
[null,null,null,null,false,false]
[null,null,null,null,false,false]
[null,null,null,null,false,false]
[null,null,null,null,false,false]
[null,null,null,null,false,false]
[null,null,null,null,false,false]
[null,null,null,null,false,false]
[null,null,null,null,false,false]
[null,null,null,null,false,false]
[null,null,null,null,false,false]
[null,null,null,null,false,false]
[null,null,null,null,false,false]
[null,null,null,null,false,false]
[null,null,null,null,false,false]
[null,null,null,null,false,false]
[null,null,null,null,false,false]
[null,null,null,null,false,false]
[null,null,null,null,false,false]
[null,null,null,null,false,false]
[null,null,null,null,false,false]
[null,null,null,null,false,false]
[null,null,null,null,false,false]
[null,null,null,null,false,false]
[null,null,null,null,false,false]
[null,null,null,null,false,false]
[null,null,null,null,false,false]
[null,null,null,null,false,false]
[null,null,null,null,false,false]
[null,null,null,null,false,false]
[null,null,null,null,false,false]
[null,null,null,null,false,false]
[null,null,null,null,false,false]
[null,null,null,null,false,false]
[null,null,null,null,false,false]
[null,null,null,null,false,false]
[null,null,null,null,false,false]
[null,null,null,null,false,false]
[null,null,null,null,{"$f":"IF(B258=\"TOUT VENANT\",\"Véolia Nice Tri - Parc d'activité logistique\",IF(B258=\"DECHETS VERTS\",\"Orédui Carros Compostage - ZI de la Grave\",IF(B258=\"GRAVATS PROPRES\",\"La Gaude K3 Sita Sud - 5211 Rte de St Jeannet\",IF(B258=\"GRAVATS SALES\",\"Véolia Nice Tri - 20 Ch du Saquier\",IF(B258=\"BOIS\",\"SEAS La Glacière - 1019 Rte de la Grasse\",IF(B258=\"METAUX\",\"PURFER - ZI Carros 15ème Rue - 06517 Carros\",IF(B258=\"BATTERIES\",\"PURFER - ZI Carros 15ème Rue - 06517 Carros\",IF(B258=\"NEON\",\"Sofovar - 126 Av Louis Lépine - 83600 Fréjus\",IF(B258=\"PEINTURES\",\"Orédui - ZI Bois de Grasse - 06310 Grasse\",IF(B258=\"PRODUITS NON IDENTIFIES\",\"Orédui - ZI Bois de Grasse - 06310 Grasse\",IF(B258=\"AEROSOLS\",\"Orédui - ZI Bois de Grasse - 06310 Grasse\",IF(B258=\"FROIDS\",\"SEAS - 1079 Rte de Grasse - 06270 Villeneuve Loubet\",IF(B258=\"HORS FROIDS\",\"SEAS - 1079 Rte de Grasse - 06270 Villeneuve Loubet\",IF(B258=\"PAM\",\"SEAS - 1079 Rte de Grasse - 06270 Villeneuve Loubet\",IF(B258=\"ECRANS\",\"SEAS - 1079 Rte de Grasse - 06270 Villeneuve Loubet\",IF(B258=\"BOX HORS FROIDS\",\"SEAS - 1079 Rte de Grasse - 06270 Villeneuve Loubet\",IF(B258=\"PILES\",\"Corepile\",IF(B258=\"CUMULUS\",\"SEAS - 1079 Rte de Grasse - 06270 Villeneuve Loubet\",IF(B258=\"PNEUS\",\"TFM Pneus - 117 Ch Clausonnes - 06560 Valbonne\",IF(B258=\"HUILES VEGETALES\",\"Orédui - ZI Bois de Grasse - 06310 Grasse\",IF(B258=\"HUILES DE VIDANGE\",\"SERAHU - 68 Ch de la Campanette - 06800 Cagnes sur Mer\")))))))))))))))))))))","v":false},{"$f":"IF(OR(B258=\"TOUT VENANT\",B258=\"DECHETS VERTS\",B258=\"GRAVATS SALES\",B258=\"GRAVATS PROPRES\",B258=\"BOIS\"),\"SUEZ\",IF(OR(B258=\"PNEUS\"),\"TFM\",IF(OR(B258=\"FROIDS\",B258=\"HORS FROIDS\",B258=\"BOX HORS FROIDS\",B258=\"CUMULUS\",B258=\"PAM\",B258=\"ECRANS\"),\"SEAS\",IF(OR(B258=\"METAUX\",B258=\"BATTERIES\"),\"DERICHEBOURG\",IF(OR(B258=\"NEON\"),\"SOFOVAR\",IF(OR(B258=\"PEINTURES\",B258=\"PRODUITS NON IDENTIFIES\",B258=\"AEROSOLS\",B258=\"HUILES VEGETALES\"),\"OREDUI\",IF(OR(B258=\"HUILES DE VIDANGE\"),\"SERAHU\")))))))","v":false}]
[null,null,null,null,false,false]
[null,null,null,null,false,false]
[null,null,null,null,false,false]
[null,null,null,null,false,false]
[null,null,null,null,false,false]
[null,null,null,null,false,false]
[null,null,null,null,false,false]
[null,null,null,null,false,false]
[null,null,null,null,false,false]
[null,null,null,null,false,false]
[null,null,null,null,false,false]
[null,null,null,null,false,false]
[null,null,null,null,false,false]
[null,null,null,null,false,false]
[null,null,null,null,false,false]
[null,null,null,null,false,false]
[null,null,null,null,false,false]
[null,null,null,null,false,false]
[null,null,null,null,false,false]
[null,null,null,null,false,false]
[null,null,null,null,false,false]
[null,null,null,null,false,false]
[null,null,null,null,false,false]
[null,null,null,null,false,false]
[null,null,null,null,false,false]
[null,null,null,null,false,false]
[null,null,null,null,false,false]
[null,null,null,null,false,false]
[null,null,null,null,false,false]
[null,null,null,null,false,false]
[null,null,null,null,false,false]
[null,null,null,null,false,false]
[null,null,null,null,false,false]
[null,null,null,null,false,false]
[null,null,null,null,false,false]
[null,null,null,null,false,false]
[null,null,null,null,false,false]
[null,null,null,null,false,false]
[null,null,null,null,false,false]
[null,null,null,null,false,false]
[null,null,null,null,false,false]
[null,null,null,null,false,false]
[null,null,null,null,false,false]
[null,null,null,null,false,false]
[null,null,null,null,false,false]
[null,null,null,null,false,false]
[null,null,null,null,false,false]
[null,null,null,null,false,false]
[null,null,null,null,false,false]
[null,null,null,null,false,false]
[null,null,null,null,false,false]
[null,null,null,null,false,false]
[null,null,null,null,false,false]
[null,null,null,null,false,false]
[null,null,null,null,false,false]
[null,null,null,null,false,false]
[null,null,null,null,false,false]
[null,null,null,null,false,false]
[null,null,null,null,false,false]
[null,null,null,null,false,false]
[null,null,null,null,false,false]
[null,null,null,null,false,false]
[null,null,null,null,false,false]
[null,null,null,null,{"$f":"IF(B322=\"TOUT VENANT\",\"Véolia Nice Tri - Parc d'activité logistique\",IF(B322=\"DECHETS VERTS\",\"Orédui Carros Compostage - ZI de la Grave\",IF(B322=\"GRAVATS PROPRES\",\"La Gaude K3 Sita Sud - 5211 Rte de St Jeannet\",IF(B322=\"GRAVATS SALES\",\"Véolia Nice Tri - 20 Ch du Saquier\",IF(B322=\"BOIS\",\"SEAS La Glacière - 1019 Rte de la Grasse\",IF(B322=\"METAUX\",\"PURFER - ZI Carros 15ème Rue - 06517 Carros\",IF(B322=\"BATTERIES\",\"PURFER - ZI Carros 15ème Rue - 06517 Carros\",IF(B322=\"NEON\",\"Sofovar - 126 Av Louis Lépine - 83600 Fréjus\",IF(B322=\"PEINTURES\",\"Orédui - ZI Bois de Grasse - 06310 Grasse\",IF(B322=\"PRODUITS NON IDENTIFIES\",\"Orédui - ZI Bois de Grasse - 06310 Grasse\",IF(B322=\"AEROSOLS\",\"Orédui - ZI Bois de Grasse - 06310 Grasse\",IF(B322=\"FROIDS\",\"SEAS - 1079 Rte de Grasse - 06270 Villeneuve Loubet\",IF(B322=\"HORS FROIDS\",\"SEAS - 1079 Rte de Grasse - 06270 Villeneuve Loubet\",IF(B322=\"PAM\",\"SEAS - 1079 Rte de Grasse - 06270 Villeneuve Loubet\",IF(B322=\"ECRANS\",\"SEAS - 1079 Rte de Grasse - 06270 Villeneuve Loubet\",IF(B322=\"BOX HORS FROIDS\",\"SEAS - 1079 Rte de Grasse - 06270 Villeneuve Loubet\",IF(B322=\"PILES\",\"Corepile\",IF(B322=\"CUMULUS\",\"SEAS - 1079 Rte de Grasse - 06270 Villeneuve Loubet\",IF(B322=\"PNEUS\",\"TFM Pneus - 117 Ch Clausonnes - 06560 Valbonne\",IF(B322=\"HUILES VEGETALES\",\"Orédui - ZI Bois de Grasse - 06310 Grasse\",IF(B322=\"HUILES DE VIDANGE\",\"SERAHU - 68 Ch de la Campanette - 06800 Cagnes sur Mer\")))))))))))))))))))))","v":false},{"$f":"IF(OR(B322=\"TOUT VENANT\",B322=\"DECHETS VERTS\",B322=\"GRAVATS SALES\",B322=\"GRAVATS PROPRES\",B322=\"BOIS\"),\"SUEZ\",IF(OR(B322=\"PNEUS\"),\"TFM\",IF(OR(B322=\"FROIDS\",B322=\"HORS FROIDS\",B322=\"BOX HORS FROIDS\",B322=\"CUMULUS\",B322=\"PAM\",B322=\"ECRANS\"),\"SEAS\",IF(OR(B322=\"METAUX\",B322=\"BATTERIES\"),\"DERICHEBOURG\",IF(OR(B322=\"NEON\"),\"SOFOVAR\",IF(OR(B322=\"PEINTURES\",B322=\"PRODUITS NON IDENTIFIES\",B322=\"AEROSOLS\",B322=\"HUILES VEGETALES\"),\"OREDUI\",IF(OR(B322=\"HUILES DE VIDANGE\"),\"SERAHU\")))))))","v":false}]
[null,null,null,null,false,false]
[null,null,null,null,false,false]
[null,null,null,null,false,false]
[null,null,null,null,false,false]
[null,null,null,null,false,false]
[null,null,null,null,false,false]
[null,null,null,null,false,false]
[null,null,null,null,false,false]
[null,null,null,null,false,false]
[null,null,null,null,false,false]
[null,null,null,null,false,false]
[null,null,null,null,false,false]
[null,null,null,null,false,false]
[null,null,null,null,false,false]
[null,null,null,null,false,false]
[null,null,null,null,false,false]
[null,null,null,null,false,false]
[null,null,null,null,false,false]
[null,null,null,null,false,false]
[null,null,null,null,false,false]
[null,null,null,null,false,false]
[null,null,null,null,false,false]
[null,null,null,null,false,false]
[null,null,null,null,false,false]
[null,null,null,null,false,false]
[null,null,null,null,false,false]
[null,null,null,null,false,false]
[null,null,null,null,false,false]
[null,null,null,null,false,false]
[null,null,null,null,false,false]
[null,null,null,null,false,false]
[null,null,null,null,false,false]
[null,null,null,null,false,false]
[null,null,null,null,false,false]
[null,null,null,null,false,false]
[null,null,null,null,false,false]
[null,null,null,null,false,false]
[null,null,null,null,false,false]
[null,null,null,null,false,false]
[null,null,null,null,false,false]
[null,null,null,null,false,false]
[null,null,null,null,false,false]
[null,null,null,null,false,false]
[null,null,null,null,false,false]
[null,null,null,null,false,false]
[null,null,null,null,false,false]
[null,null,null,null,false,false]
[null,null,null,null,false,false]
[null,null,null,null,false,false]
[null,null,null,null,false,false]
[null,null,null,null,false,false]
[null,null,null,null,false,false]
[null,null,null,null,false,false]
[null,null,null,null,false,false]
[null,null,null,null,false,false]
[null,null,null,null,false,false]
[null,null,null,null,false,false]
[null,null,null,null,false,false]
[null,null,null,null,false,false]
[null,null,null,null,false,false]
[null,null,null,null,false,false]
[null,null,null,null,false,false]
[null,null,null,null,false,false]
[null,null,null,null,{"$f":"IF(B386=\"TOUT VENANT\",\"Véolia Nice Tri - Parc d'activité logistique\",IF(B386=\"DECHETS VERTS\",\"Orédui Carros Compostage - ZI de la Grave\",IF(B386=\"GRAVATS PROPRES\",\"La Gaude K3 Sita Sud - 5211 Rte de St Jeannet\",IF(B386=\"GRAVATS SALES\",\"Véolia Nice Tri - 20 Ch du Saquier\",IF(B386=\"BOIS\",\"SEAS La Glacière - 1019 Rte de la Grasse\",IF(B386=\"METAUX\",\"PURFER - ZI Carros 15ème Rue - 06517 Carros\",IF(B386=\"BATTERIES\",\"PURFER - ZI Carros 15ème Rue - 06517 Carros\",IF(B386=\"NEON\",\"Sofovar - 126 Av Louis Lépine - 83600 Fréjus\",IF(B386=\"PEINTURES\",\"Orédui - ZI Bois de Grasse - 06310 Grasse\",IF(B386=\"PRODUITS NON IDENTIFIES\",\"Orédui - ZI Bois de Grasse - 06310 Grasse\",IF(B386=\"AEROSOLS\",\"Orédui - ZI Bois de Grasse - 06310 Grasse\",IF(B386=\"FROIDS\",\"SEAS - 1079 Rte de Grasse - 06270 Villeneuve Loubet\",IF(B386=\"HORS FROIDS\",\"SEAS - 1079 Rte de Grasse - 06270 Villeneuve Loubet\",IF(B386=\"PAM\",\"SEAS - 1079 Rte de Grasse - 06270 Villeneuve Loubet\",IF(B386=\"ECRANS\",\"SEAS - 1079 Rte de Grasse - 06270 Villeneuve Loubet\",IF(B386=\"BOX HORS FROIDS\",\"SEAS - 1079 Rte de Grasse - 06270 Villeneuve Loubet\",IF(B386=\"PILES\",\"Corepile\",IF(B386=\"CUMULUS\",\"SEAS - 1079 Rte de Grasse - 06270 Villeneuve Loubet\",IF(B386=\"PNEUS\",\"TFM Pneus - 117 Ch Clausonnes - 06560 Valbonne\",IF(B386=\"HUILES VEGETALES\",\"Orédui - ZI Bois de Grasse - 06310 Grasse\",IF(B386=\"HUILES DE VIDANGE\",\"SERAHU - 68 Ch de la Campanette - 06800 Cagnes sur Mer\")))))))))))))))))))))","v":false},{"$f":"IF(OR(B386=\"TOUT VENANT\",B386=\"DECHETS VERTS\",B386=\"GRAVATS SALES\",B386=\"GRAVATS PROPRES\",B386=\"BOIS\"),\"SUEZ\",IF(OR(B386=\"PNEUS\"),\"TFM\",IF(OR(B386=\"FROIDS\",B386=\"HORS FROIDS\",B386=\"BOX HORS FROIDS\",B386=\"CUMULUS\",B386=\"PAM\",B386=\"ECRANS\"),\"SEAS\",IF(OR(B386=\"METAUX\",B386=\"BATTERIES\"),\"DERICHEBOURG\",IF(OR(B386=\"NEON\"),\"SOFOVAR\",IF(OR(B386=\"PEINTURES\",B386=\"PRODUITS NON IDENTIFIES\",B386=\"AEROSOLS\",B386=\"HUILES VEGETALES\"),\"OREDUI\",IF(OR(B386=\"HUILES DE VIDANGE\"),\"SERAHU\")))))))","v":false}]
[null,null,null,null,false,false]
[null,null,null,null,false,false]
[null,null,null,null,false,false]
[null,null,null,null,false,false]
[null,null,null,null,false,false]
[null,null,null,null,false,false]
[null,null,null,null,false,false]
[null,null,null,null,false,false]
[null,null,null,null,false,false]
[null,null,null,null,false,false]
[null,null,null,null,false,false]
[null,null,null,null,false,false]
[null,null,null,null,false,false]
[null,null,null,null,false,false]
[null,null,null,null,false,false]
[null,null,null,null,false,false]
[null,null,null,null,false,false]
[null,null,null,null,false,false]
[null,null,null,null,false,false]
[null,null,null,null,false,false]
[null,null,null,null,false,false]
[null,null,null,null,false,false]
[null,null,null,null,false,false]
[null,null,null,null,false,false]
[null,null,null,null,false,false]
[null,null,null,null,false,false]
[null,null,null,null,false,false]
[null,null,null,null,false,false]
[null,null,null,null,false,false]
[null,null,null,null,false,false]
[null,null,null,null,false,false]
[null,null,null,null,false,false]
[null,null,null,null,false,false]
[null,null,null,null,false,false]
[null,null,null,null,false,false]
[null,null,null,null,false,false]
[null,null,null,null,false,false]
[null,null,null,null,false,false]
[null,null,null,null,false,false]
[null,null,null,null,false,false]
[null,null,null,null,false,false]
[null,null,null,null,false,false]
[null,null,null,null,false,false]
[null,null,null,null,false,false]
[null,null,null,null,false,false]
[null,null,null,null,false,false]
[null,null,null,null,false,false]
[null,null,null,null,false,false]
[null,null,null,null,false,false]
[null,null,null,null,false,false]
[null,null,null,null,false,false]
[null,null,null,null,false,false]
[null,null,null,null,false,false]
[null,null,null,null,false,false]
[null,null,null,null,false,false]
[null,null,null,null,false,false]
[null,null,null,null,false,false]
[null,null,null,null,false,false]
[null,null,null,null,false,false]
[null,null,null,null,false,false]
[null,null,null,null,false,false]
[null,null,null,null,false,false]
[null,null,null,null,false,false]
[null,null,null,null,{"$f":"IF(B450=\"TOUT VENANT\",\"Véolia Nice Tri - Parc d'activité logistique\",IF(B450=\"DECHETS VERTS\",\"Orédui Carros Compostage - ZI de la Grave\",IF(B450=\"GRAVATS PROPRES\",\"La Gaude K3 Sita Sud - 5211 Rte de St Jeannet\",IF(B450=\"GRAVATS SALES\",\"Véolia Nice Tri - 20 Ch du Saquier\",IF(B450=\"BOIS\",\"SEAS La Glacière - 1019 Rte de la Grasse\",IF(B450=\"METAUX\",\"PURFER - ZI Carros 15ème Rue - 06517 Carros\",IF(B450=\"BATTERIES\",\"PURFER - ZI Carros 15ème Rue - 06517 Carros\",IF(B450=\"NEON\",\"Sofovar - 126 Av Louis Lépine - 83600 Fréjus\",IF(B450=\"PEINTURES\",\"Orédui - ZI Bois de Grasse - 06310 Grasse\",IF(B450=\"PRODUITS NON IDENTIFIES\",\"Orédui - ZI Bois de Grasse - 06310 Grasse\",IF(B450=\"AEROSOLS\",\"Orédui - ZI Bois de Grasse - 06310 Grasse\",IF(B450=\"FROIDS\",\"SEAS - 1079 Rte de Grasse - 06270 Villeneuve Loubet\",IF(B450=\"HORS FROIDS\",\"SEAS - 1079 Rte de Grasse - 06270 Villeneuve Loubet\",IF(B450=\"PAM\",\"SEAS - 1079 Rte de Grasse - 06270 Villeneuve Loubet\",IF(B450=\"ECRANS\",\"SEAS - 1079 Rte de Grasse - 06270 Villeneuve Loubet\",IF(B450=\"BOX HORS FROIDS\",\"SEAS - 1079 Rte de Grasse - 06270 Villeneuve Loubet\",IF(B450=\"PILES\",\"Corepile\",IF(B450=\"CUMULUS\",\"SEAS - 1079 Rte de Grasse - 06270 Villeneuve Loubet\",IF(B450=\"PNEUS\",\"TFM Pneus - 117 Ch Clausonnes - 06560 Valbonne\",IF(B450=\"HUILES VEGETALES\",\"Orédui - ZI Bois de Grasse - 06310 Grasse\",IF(B450=\"HUILES DE VIDANGE\",\"SERAHU - 68 Ch de la Campanette - 06800 Cagnes sur Mer\")))))))))))))))))))))","v":false},{"$f":"IF(OR(B450=\"TOUT VENANT\",B450=\"DECHETS VERTS\",B450=\"GRAVATS SALES\",B450=\"GRAVATS PROPRES\",B450=\"BOIS\"),\"SUEZ\",IF(OR(B450=\"PNEUS\"),\"TFM\",IF(OR(B450=\"FROIDS\",B450=\"HORS FROIDS\",B450=\"BOX HORS FROIDS\",B450=\"CUMULUS\",B450=\"PAM\",B450=\"ECRANS\"),\"SEAS\",IF(OR(B450=\"METAUX\",B450=\"BATTERIES\"),\"DERICHEBOURG\",IF(OR(B450=\"NEON\"),\"SOFOVAR\",IF(OR(B450=\"PEINTURES\",B450=\"PRODUITS NON IDENTIFIES\",B450=\"AEROSOLS\",B450=\"HUILES VEGETALES\"),\"OREDUI\",IF(OR(B450=\"HUILES DE VIDANGE\"),\"SERAHU\")))))))","v":false}]
[null,null,null,null,false,false]
[null,null,null,null,false,false]
[null,null,null,null,false,false]
[null,null,null,null,false,false]
[null,null,null,null,false,false]
[null,null,null,null,false,false]
[null,null,null,null,false,false]
[null,null,null,null,false,false]
[null,null,null,null,false,false]
[null,null,null,null,false,false]
[null,null,null,null,false,false]
[null,null,null,null,false,false]
[null,null,null,null,false,false]
[null,null,null,null,false,false]
[null,null,null,null,false,false]
[null,null,null,null,false,false]
[null,null,null,null,false,false]
[null,null,null,null,false,false]
[null,null,null,null,false,false]
[null,null,null,null,false,false]
[null,null,null,null,false,false]
[null,null,null,null,false,false]
[null,null,null,null,false,false]
[null,null,null,null,false,false]
[null,null,null,null,false,false]
[null,null,null,null,false,false]
[null,null,null,null,false,false]
[null,null,null,null,false,false]
[null,null,null,null,false,false]
[null,null,null,null,false,false]
[null,null,null,null,false,false]
[null,null,null,null,false,false]
[null,null,null,null,false,false]
[null,null,null,null,false,false]
[null,null,null,null,false,false]
[null,null,null,null,false,false]
[null,null,null,null,false,false]
[null,null,null,null,false,false]
[null,null,null,null,false,false]
[null,null,null,null,false,false]
[null,null,null,null,false,false]
[null,null,null,null,false,false]
[null,null,null,null,false,false]
[null,null,null,null,false,false]
[null,null,null,null,false,false]
[null,null,null,null,false,false]
[null,null,null,null,false,false]
[null,null,null,null,false,false]
[null,null,null,null,false,false]
[null,null,null,null,false,false]
[null,null,null,null,false,false]
[null,null,null,null,false,false]
[null,null,null,null,false,false]
[null,null,null,null,false,false]
[null,null,null,null,false,false]
[null,null,null,null,false,false]
[null,null,null,null,false,false]
[null,null,null,null,false,false]
[null,null,null,null,false,false]
[null,null,null,null,false,false]
[null,null,null,null,false,false]
[null,null,null,null,false,false]
[null,null,null,null,false,false]
[null,null,null,null,{"$f":"IF(B514=\"TOUT VENANT\",\"Véolia Nice Tri - Parc d'activité logistique\",IF(B514=\"DECHETS VERTS\",\"Orédui Carros Compostage - ZI de la Grave\",IF(B514=\"GRAVATS PROPRES\",\"La Gaude K3 Sita Sud - 5211 Rte de St Jeannet\",IF(B514=\"GRAVATS SALES\",\"Véolia Nice Tri - 20 Ch du Saquier\",IF(B514=\"BOIS\",\"SEAS La Glacière - 1019 Rte de la Grasse\",IF(B514=\"METAUX\",\"PURFER - ZI Carros 15ème Rue - 06517 Carros\",IF(B514=\"BATTERIES\",\"PURFER - ZI Carros 15ème Rue - 06517 Carros\",IF(B514=\"NEON\",\"Sofovar - 126 Av Louis Lépine - 83600 Fréjus\",IF(B514=\"PEINTURES\",\"Orédui - ZI Bois de Grasse - 06310 Grasse\",IF(B514=\"PRODUITS NON IDENTIFIES\",\"Orédui - ZI Bois de Grasse - 06310 Grasse\",IF(B514=\"AEROSOLS\",\"Orédui - ZI Bois de Grasse - 06310 Grasse\",IF(B514=\"FROIDS\",\"SEAS - 1079 Rte de Grasse - 06270 Villeneuve Loubet\",IF(B514=\"HORS FROIDS\",\"SEAS - 1079 Rte de Grasse - 06270 Villeneuve Loubet\",IF(B514=\"PAM\",\"SEAS - 1079 Rte de Grasse - 06270 Villeneuve Loubet\",IF(B514=\"ECRANS\",\"SEAS - 1079 Rte de Grasse - 06270 Villeneuve Loubet\",IF(B514=\"BOX HORS FROIDS\",\"SEAS - 1079 Rte de Grasse - 06270 Villeneuve Loubet\",IF(B514=\"PILES\",\"Corepile\",IF(B514=\"CUMULUS\",\"SEAS - 1079 Rte de Grasse - 06270 Villeneuve Loubet\",IF(B514=\"PNEUS\",\"TFM Pneus - 117 Ch Clausonnes - 06560 Valbonne\",IF(B514=\"HUILES VEGETALES\",\"Orédui - ZI Bois de Grasse - 06310 Grasse\",IF(B514=\"HUILES DE VIDANGE\",\"SERAHU - 68 Ch de la Campanette - 06800 Cagnes sur Mer\")))))))))))))))))))))","v":false},{"$f":"IF(OR(B514=\"TOUT VENANT\",B514=\"DECHETS VERTS\",B514=\"GRAVATS SALES\",B514=\"GRAVATS PROPRES\",B514=\"BOIS\"),\"SUEZ\",IF(OR(B514=\"PNEUS\"),\"TFM\",IF(OR(B514=\"FROIDS\",B514=\"HORS FROIDS\",B514=\"BOX HORS FROIDS\",B514=\"CUMULUS\",B514=\"PAM\",B514=\"ECRANS\"),\"SEAS\",IF(OR(B514=\"METAUX\",B514=\"BATTERIES\"),\"DERICHEBOURG\",IF(OR(B514=\"NEON\"),\"SOFOVAR\",IF(OR(B514=\"PEINTURES\",B514=\"PRODUITS NON IDENTIFIES\",B514=\"AEROSOLS\",B514=\"HUILES VEGETALES\"),\"OREDUI\",IF(OR(B514=\"HUILES DE VIDANGE\"),\"SERAHU\")))))))","v":false}]
[null,null,null,null,false,false]
[null,null,null,null,false,false]
[null,null,null,null,false,false]
[null,null,null,null,false,false]
[null,null,null,null,false,false]
[null,null,null,null,false,false]
[null,null,null,null,false,false]
[null,null,null,null,false,false]
[null,null,null,null,false,false]
[null,null,null,null,false,false]
[null,null,null,null,false,false]
[null,null,null,null,false,false]
[null,null,null,null,false,false]
[null,null,null,null,false,false]
[null,null,null,null,false,false]
[null,null,null,null,false,false]
[null,null,null,null,false,false]
[null,null,null,null,false,false]
[null,null,null,null,false,false]
[null,null,null,null,false,false]
[null,null,null,null,false,false]
[null,null,null,null,false,false]
[null,null,null,null,false,false]
[null,null,null,null,false,false]
[null,null,null,null,false,false]
[null,null,null,null,false,false]
[null,null,null,null,false,false]
[null,null,null,null,false,false]
[null,null,null,null,false,false]
[null,null,null,null,false,false]
[null,null,null,null,false,false]
[null,null,null,null,false,false]
[null,null,null,null,false,false]
[null,null,null,null,false,false]
[null,null,null,null,false,false]
[null,null,null,null,false,false]
[null,null,null,null,false,false]
[null,null,null,null,false,false]
[null,null,null,null,false,false]
[null,null,null,null,false,false]
[null,null,null,null,false,false]
[null,null,null,null,false,false]
[null,null,null,null,false,false]
[null,null,null,null,false,false]
[null,null,null,null,false,false]
[null,null,null,null,false,false]
[null,null,null,null,false,false]
[null,null,null,null,false,false]
[null,null,null,null,false,false]
[null,null,null,null,false,false]
[null,null,null,null,false,false]
[null,null,null,null,false,false]
[null,null,null,null,false,false]
[null,null,null,null,false,false]
[null,null,null,null,false,false]
[null,null,null,null,false,false]
[null,null,null,null,false,false]
[null,null,null,null,false,false]
[null,null,null,null,false,false]
[null,null,null,null,false,false]
[null,null,null,null,false,false]
[null,null,null,null,false,false]
[null,null,null,null,false,false]
[null,null,null,null,{"$f":"IF(B578=\"TOUT VENANT\",\"Véolia Nice Tri - Parc d'activité logistique\",IF(B578=\"DECHETS VERTS\",\"Orédui Carros Compostage - ZI de la Grave\",IF(B578=\"GRAVATS PROPRES\",\"La Gaude K3 Sita Sud - 5211 Rte de St Jeannet\",IF(B578=\"GRAVATS SALES\",\"Véolia Nice Tri - 20 Ch du Saquier\",IF(B578=\"BOIS\",\"SEAS La Glacière - 1019 Rte de la Grasse\",IF(B578=\"METAUX\",\"PURFER - ZI Carros 15ème Rue - 06517 Carros\",IF(B578=\"BATTERIES\",\"PURFER - ZI Carros 15ème Rue - 06517 Carros\",IF(B578=\"NEON\",\"Sofovar - 126 Av Louis Lépine - 83600 Fréjus\",IF(B578=\"PEINTURES\",\"Orédui - ZI Bois de Grasse - 06310 Grasse\",IF(B578=\"PRODUITS NON IDENTIFIES\",\"Orédui - ZI Bois de Grasse - 06310 Grasse\",IF(B578=\"AEROSOLS\",\"Orédui - ZI Bois de Grasse - 06310 Grasse\",IF(B578=\"FROIDS\",\"SEAS - 1079 Rte de Grasse - 06270 Villeneuve Loubet\",IF(B578=\"HORS FROIDS\",\"SEAS - 1079 Rte de Grasse - 06270 Villeneuve Loubet\",IF(B578=\"PAM\",\"SEAS - 1079 Rte de Grasse - 06270 Villeneuve Loubet\",IF(B578=\"ECRANS\",\"SEAS - 1079 Rte de Grasse - 06270 Villeneuve Loubet\",IF(B578=\"BOX HORS FROIDS\",\"SEAS - 1079 Rte de Grasse - 06270 Villeneuve Loubet\",IF(B578=\"PILES\",\"Corepile\",IF(B578=\"CUMULUS\",\"SEAS - 1079 Rte de Grasse - 06270 Villeneuve Loubet\",IF(B578=\"PNEUS\",\"TFM Pneus - 117 Ch Clausonnes - 06560 Valbonne\",IF(B578=\"HUILES VEGETALES\",\"Orédui - ZI Bois de Grasse - 06310 Grasse\",IF(B578=\"HUILES DE VIDANGE\",\"SERAHU - 68 Ch de la Campanette - 06800 Cagnes sur Mer\")))))))))))))))))))))","v":false},{"$f":"IF(OR(B578=\"TOUT VENANT\",B578=\"DECHETS VERTS\",B578=\"GRAVATS SALES\",B578=\"GRAVATS PROPRES\",B578=\"BOIS\"),\"SUEZ\",IF(OR(B578=\"PNEUS\"),\"TFM\",IF(OR(B578=\"FROIDS\",B578=\"HORS FROIDS\",B578=\"BOX HORS FROIDS\",B578=\"CUMULUS\",B578=\"PAM\",B578=\"ECRANS\"),\"SEAS\",IF(OR(B578=\"METAUX\",B578=\"BATTERIES\"),\"DERICHEBOURG\",IF(OR(B578=\"NEON\"),\"SOFOVAR\",IF(OR(B578=\"PEINTURES\",B578=\"PRODUITS NON IDENTIFIES\",B578=\"AEROSOLS\",B578=\"HUILES VEGETALES\"),\"OREDUI\",IF(OR(B578=\"HUILES DE VIDANGE\"),\"SERAHU\")))))))","v":false}]
[null,null,null,null,false,false]
[null,null,null,null,false,false]
[null,null,null,null,false,false]
[null,null,null,null,false,false]
[null,null,null,null,false,false]
[null,null,null,null,false,false]
[null,null,null,null,false,false]
[null,null,null,null,false,false]
[null,null,null,null,false,false]
[null,null,null,null,false,false]
[null,null,null,null,false,false]
[null,null,null,null,false,false]
[null,null,null,null,false,false]
[null,null,null,null,false,false]
[null,null,null,null,false,false]
[null,null,null,null,false,false]
[null,null,null,null,false,false]
[null,null,null,null,false,false]
[null,null,null,null,false,false]
[null,null,null,null,false,false]
[null,null,null,null,false,false]
[null,null,null,null,false,false]
[null,null,null,null,false,false]
[null,null,null,null,false,false]
[null,null,null,null,false,false]
[null,null,null,null,false,false]
[null,null,null,null,false,false]
[null,null,null,null,false,false]
[null,null,null,null,false,false]
[null,null,null,null,false,false]
[null,null,null,null,false,false]
[null,null,null,null,false,false]
[null,null,null,null,false,false]
[null,null,null,null,false,false]
[null,null,null,null,false,false]
[null,null,null,null,false,false]
[null,null,null,null,false,false]
[null,null,null,null,false,false]
[null,null,null,null,false,false]
[null,null,null,null,false,false]
[null,null,null,null,false,false]
[null,null,null,null,false,false]
[null,null,null,null,false,false]
[null,null,null,null,false,false]
[null,null,null,null,false,false]
[null,null,null,null,false,false]
[null,null,null,null,false,false]
[null,null,null,null,false,false]
[null,null,null,null,false,false]
[null,null,null,null,false,false]
[null,null,null,null,false,false]
[null,null,null,null,false,false]
[null,null,null,null,false,false]
[null,null,null,null,false,false]
[null,null,null,null,false,false]
[null,null,null,null,false,false]
[null,null,null,null,false,false]
[null,null,null,null,false,false]
[null,null,null,null,false,false]
[null,null,null,null,false,false]
[null,null,null,null,false,false]
[null,null,null,null,false,false]
[null,null,null,null,false,false]
[null,null,null,null,{"$f":"IF(B642=\"TOUT VENANT\",\"Véolia Nice Tri - Parc d'activité logistique\",IF(B642=\"DECHETS VERTS\",\"Orédui Carros Compostage - ZI de la Grave\",IF(B642=\"GRAVATS PROPRES\",\"La Gaude K3 Sita Sud - 5211 Rte de St Jeannet\",IF(B642=\"GRAVATS SALES\",\"Véolia Nice Tri - 20 Ch du Saquier\",IF(B642=\"BOIS\",\"SEAS La Glacière - 1019 Rte de la Grasse\",IF(B642=\"METAUX\",\"PURFER - ZI Carros 15ème Rue - 06517 Carros\",IF(B642=\"BATTERIES\",\"PURFER - ZI Carros 15ème Rue - 06517 Carros\",IF(B642=\"NEON\",\"Sofovar - 126 Av Louis Lépine - 83600 Fréjus\",IF(B642=\"PEINTURES\",\"Orédui - ZI Bois de Grasse - 06310 Grasse\",IF(B642=\"PRODUITS NON IDENTIFIES\",\"Orédui - ZI Bois de Grasse - 06310 Grasse\",IF(B642=\"AEROSOLS\",\"Orédui - ZI Bois de Grasse - 06310 Grasse\",IF(B642=\"FROIDS\",\"SEAS - 1079 Rte de Grasse - 06270 Villeneuve Loubet\",IF(B642=\"HORS FROIDS\",\"SEAS - 1079 Rte de Grasse - 06270 Villeneuve Loubet\",IF(B642=\"PAM\",\"SEAS - 1079 Rte de Grasse - 06270 Villeneuve Loubet\",IF(B642=\"ECRANS\",\"SEAS - 1079 Rte de Grasse - 06270 Villeneuve Loubet\",IF(B642=\"BOX HORS FROIDS\",\"SEAS - 1079 Rte de Grasse - 06270 Villeneuve Loubet\",IF(B642=\"PILES\",\"Corepile\",IF(B642=\"CUMULUS\",\"SEAS - 1079 Rte de Grasse - 06270 Villeneuve Loubet\",IF(B642=\"PNEUS\",\"TFM Pneus - 117 Ch Clausonnes - 06560 Valbonne\",IF(B642=\"HUILES VEGETALES\",\"Orédui - ZI Bois de Grasse - 06310 Grasse\",IF(B642=\"HUILES DE VIDANGE\",\"SERAHU - 68 Ch de la Campanette - 06800 Cagnes sur Mer\")))))))))))))))))))))","v":false},{"$f":"IF(OR(B642=\"TOUT VENANT\",B642=\"DECHETS VERTS\",B642=\"GRAVATS SALES\",B642=\"GRAVATS PROPRES\",B642=\"BOIS\"),\"SUEZ\",IF(OR(B642=\"PNEUS\"),\"TFM\",IF(OR(B642=\"FROIDS\",B642=\"HORS FROIDS\",B642=\"BOX HORS FROIDS\",B642=\"CUMULUS\",B642=\"PAM\",B642=\"ECRANS\"),\"SEAS\",IF(OR(B642=\"METAUX\",B642=\"BATTERIES\"),\"DERICHEBOURG\",IF(OR(B642=\"NEON\"),\"SOFOVAR\",IF(OR(B642=\"PEINTURES\",B642=\"PRODUITS NON IDENTIFIES\",B642=\"AEROSOLS\",B642=\"HUILES VEGETALES\"),\"OREDUI\",IF(OR(B642=\"HUILES DE VIDANGE\"),\"SERAHU\")))))))","v":false}]
[null,null,null,null,false,false]
[null,null,null,null,false,false]
[null,null,null,null,false,false]
[null,null,null,null,false,false]
[null,null,null,null,false,false]
[null,null,null,null,false,false]
[null,null,null,null,false,false]
[null,null,null,null,false,false]
[null,null,null,null,false,false]
[null,null,null,null,false,false]
[null,null,null,null,false,false]
[null,null,null,null,false,false]
[null,null,null,null,false,false]
[null,null,null,null,false,false]
[null,null,null,null,false,false]
[null,null,null,null,false,false]
[null,null,null,null,false,false]
[null,null,null,null,false,false]
[null,null,null,null,false,false]
[null,null,null,null,false,false]
[null,null,null,null,false,false]
[null,null,null,null,false,false]
[null,null,null,null,false,false]
[null,null,null,null,false,false]
[null,null,null,null,false,false]
[null,null,null,null,false,false]
[null,null,null,null,false,false]
[null,null,null,null,false,false]
[null,null,null,null,false,false]
[null,null,null,null,false,false]
[null,null,null,null,false,false]
[null,null,null,null,false,false]
[null,null,null,null,false,false]
[null,null,null,null,false,false]
[null,null,null,null,false,false]
[null,null,null,null,false,false]
[null,null,null,null,false,false]
[null,null,null,null,false,false]
[null,null,null,null,false,false]
[null,null,null,null,false,false]
[null,null,null,null,false,false]
[null,null,null,null,false,false]
[null,null,null,null,false,false]
[null,null,null,null,false,false]
[null,null,null,null,false,false]
[null,null,null,null,false,false]
[null,null,null,null,false,false]
[null,null,null,null,false,false]
[null,null,null,null,false,false]
[null,null,null,null,false,false]
[null,null,null,null,false,false]
[null,null,null,null,false,false]
[null,null,null,null,false,false]
[null,null,null,null,false,false]
[null,null,null,null,false,false]
[null,null,null,null,false,false]
[null,null,null,null,false,false]
[null,null,null,null,false,false]
[null,null,null,null,false,false]
[null,null,null,null,false,false]
[null,null,null,null,false,false]
[null,null,null,null,false,false]
[null,null,null,null,false,false]
[null,null,null,null,{"$f":"IF(B706=\"TOUT VENANT\",\"Véolia Nice Tri - Parc d'activité logistique\",IF(B706=\"DECHETS VERTS\",\"Orédui Carros Compostage - ZI de la Grave\",IF(B706=\"GRAVATS PROPRES\",\"La Gaude K3 Sita Sud - 5211 Rte de St Jeannet\",IF(B706=\"GRAVATS SALES\",\"Véolia Nice Tri - 20 Ch du Saquier\",IF(B706=\"BOIS\",\"SEAS La Glacière - 1019 Rte de la Grasse\",IF(B706=\"METAUX\",\"PURFER - ZI Carros 15ème Rue - 06517 Carros\",IF(B706=\"BATTERIES\",\"PURFER - ZI Carros 15ème Rue - 06517 Carros\",IF(B706=\"NEON\",\"Sofovar - 126 Av Louis Lépine - 83600 Fréjus\",IF(B706=\"PEINTURES\",\"Orédui - ZI Bois de Grasse - 06310 Grasse\",IF(B706=\"PRODUITS NON IDENTIFIES\",\"Orédui - ZI Bois de Grasse - 06310 Grasse\",IF(B706=\"AEROSOLS\",\"Orédui - ZI Bois de Grasse - 06310 Grasse\",IF(B706=\"FROIDS\",\"SEAS - 1079 Rte de Grasse - 06270 Villeneuve Loubet\",IF(B706=\"HORS FROIDS\",\"SEAS - 1079 Rte de Grasse - 06270 Villeneuve Loubet\",IF(B706=\"PAM\",\"SEAS - 1079 Rte de Grasse - 06270 Villeneuve Loubet\",IF(B706=\"ECRANS\",\"SEAS - 1079 Rte de Grasse - 06270 Villeneuve Loubet\",IF(B706=\"BOX HORS FROIDS\",\"SEAS - 1079 Rte de Grasse - 06270 Villeneuve Loubet\",IF(B706=\"PILES\",\"Corepile\",IF(B706=\"CUMULUS\",\"SEAS - 1079 Rte de Grasse - 06270 Villeneuve Loubet\",IF(B706=\"PNEUS\",\"TFM Pneus - 117 Ch Clausonnes - 06560 Valbonne\",IF(B706=\"HUILES VEGETALES\",\"Orédui - ZI Bois de Grasse - 06310 Grasse\",IF(B706=\"HUILES DE VIDANGE\",\"SERAHU - 68 Ch de la Campanette - 06800 Cagnes sur Mer\")))))))))))))))))))))","v":false},{"$f":"IF(OR(B706=\"TOUT VENANT\",B706=\"DECHETS VERTS\",B706=\"GRAVATS SALES\",B706=\"GRAVATS PROPRES\",B706=\"BOIS\"),\"SUEZ\",IF(OR(B706=\"PNEUS\"),\"TFM\",IF(OR(B706=\"FROIDS\",B706=\"HORS FROIDS\",B706=\"BOX HORS FROIDS\",B706=\"CUMULUS\",B706=\"PAM\",B706=\"ECRANS\"),\"SEAS\",IF(OR(B706=\"METAUX\",B706=\"BATTERIES\"),\"DERICHEBOURG\",IF(OR(B706=\"NEON\"),\"SOFOVAR\",IF(OR(B706=\"PEINTURES\",B706=\"PRODUITS NON IDENTIFIES\",B706=\"AEROSOLS\",B706=\"HUILES VEGETALES\"),\"OREDUI\",IF(OR(B706=\"HUILES DE VIDANGE\"),\"SERAHU\")))))))","v":false}]
[null,null,null,null,false,false]
[null,null,null,null,false,false]
[null,null,null,null,false,false]
[null,null,null,null,false,false]
[null,null,null,null,false,false]
[null,null,null,null,false,false]
[null,null,null,null,false,false]
[null,null,null,null,false,false]
[null,null,null,null,false,false]
[null,null,null,null,false,false]
[null,null,null,null,false,false]
[null,null,null,null,false,false]
[null,null,null,null,false,false]
[null,null,null,null,false,false]
[null,null,null,null,false,false]
[null,null,null,null,false,false]
[null,null,null,null,false,false]
[null,null,null,null,false,false]
[null,null,null,null,false,false]
[null,null,null,null,false,false]
[null,null,null,null,false,false]
[null,null,null,null,false,false]
[null,null,null,null,false,false]
[null,null,null,null,false,false]
[null,null,null,null,false,false]
[null,null,null,null,false,false]
[null,null,null,null,false,false]
[null,null,null,null,false,false]
[null,null,null,null,false,false]
[null,null,null,null,false,false]
[null,null,null,null,false,false]
[null,null,null,null,false,false]
[null,null,null,null,false,false]
[null,null,null,null,false,false]
[null,null,null,null,false,false]
[null,null,null,null,false,false]
[null,null,null,null,false,false]
[null,null,null,null,false,false]
[null,null,null,null,false,false]
[null,null,null,null,false,false]
[null,null,null,null,false,false]
[null,null,null,null,false,false]
[null,null,null,null,false,false]
[null,null,null,null,false,false]
[null,null,null,null,false,false]
[null,null,null,null,false,false]
[null,null,null,null,false,false]
[null,null,null,null,false,false]
[null,null,null,null,false,false]
[null,null,null,null,false,false]
[null,null,null,null,false,false]
[null,null,null,null,false,false]
[null,null,null,null,false,false]
[null,null,null,null,false,false]
[null,null,null,null,false,false]
[null,null,null,null,false,false]
[null,null,null,null,false,false]
[null,null,null,null,false,false]
[null,null,null,null,false,false]
[null,null,null,null,false,false]
[null,null,null,null,false,false]
[null,null,null,null,false,false]
[null,null,null,null,false,false]
[null,null,null,null,false,false]
[null,null,null,null,false,false]
[null,null,null,null,false,false]
[null,null,null,null,false,false]
[null,null,null,null,false,false]
[null,null,null,null,{"$f":"IF(B775=\"TOUT VENANT\",\"Véolia Nice Tri - Parc d'activité logistique\",IF(B775=\"DECHETS VERTS\",\"Orédui Carros Compostage - ZI de la Grave\",IF(B775=\"GRAVATS PROPRES\",\"La Gaude K3 Sita Sud - 5211 Rte de St Jeannet\",IF(B775=\"GRAVATS SALES\",\"Véolia Nice Tri - 20 Ch du Saquier\",IF(B775=\"BOIS\",\"SEAS La Glacière - 1019 Rte de la Grasse\",IF(B775=\"METAUX\",\"PURFER - ZI Carros 15ème Rue - 06517 Carros\",IF(B775=\"BATTERIES\",\"PURFER - ZI Carros 15ème Rue - 06517 Carros\",IF(B775=\"NEON\",\"Sofovar - 126 Av Louis Lépine - 83600 Fréjus\",IF(B775=\"PEINTURES\",\"Orédui - ZI Bois de Grasse - 06310 Grasse\",IF(B775=\"PRODUITS NON IDENTIFIES\",\"Orédui - ZI Bois de Grasse - 06310 Grasse\",IF(B775=\"AEROSOLS\",\"Orédui - ZI Bois de Grasse - 06310 Grasse\",IF(B775=\"FROIDS\",\"SEAS - 1079 Rte de Grasse - 06270 Villeneuve Loubet\",IF(B775=\"HORS FROIDS\",\"SEAS - 1079 Rte de Grasse - 06270 Villeneuve Loubet\",IF(B775=\"PAM\",\"SEAS - 1079 Rte de Grasse - 06270 Villeneuve Loubet\",IF(B775=\"ECRANS\",\"SEAS - 1079 Rte de Grasse - 06270 Villeneuve Loubet\",IF(B775=\"BOX HORS FROIDS\",\"SEAS - 1079 Rte de Grasse - 06270 Villeneuve Loubet\",IF(B775=\"PILES\",\"Corepile\",IF(B775=\"CUMULUS\",\"SEAS - 1079 Rte de Grasse - 06270 Villeneuve Loubet\",IF(B775=\"PNEUS\",\"TFM Pneus - 117 Ch Clausonnes - 06560 Valbonne\",IF(B775=\"HUILES VEGETALES\",\"Orédui - ZI Bois de Grasse - 06310 Grasse\",IF(B775=\"HUILES DE VIDANGE\",\"SERAHU - 68 Ch de la Campanette - 06800 Cagnes sur Mer\")))))))))))))))))))))","v":false},{"$f":"IF(OR(B775=\"TOUT VENANT\",B775=\"DECHETS VERTS\",B775=\"GRAVATS SALES\",B775=\"GRAVATS PROPRES\",B775=\"BOIS\"),\"SUEZ\",IF(OR(B775=\"PNEUS\"),\"TFM\",IF(OR(B775=\"FROIDS\",B775=\"HORS FROIDS\",B775=\"BOX HORS FROIDS\",B775=\"CUMULUS\",B775=\"PAM\",B775=\"ECRANS\"),\"SEAS\",IF(OR(B775=\"METAUX\",B775=\"BATTERIES\"),\"DERICHEBOURG\",IF(OR(B775=\"NEON\"),\"SOFOVAR\",IF(OR(B775=\"PEINTURES\",B775=\"PRODUITS NON IDENTIFIES\",B775=\"AEROSOLS\",B775=\"HUILES VEGETALES\"),\"OREDUI\",IF(OR(B775=\"HUILES DE VIDANGE\"),\"SERAHU\")))))))","v":false}]
[null,null,null,null,false,false]
[null,null,null,null,false,false]
[null,null,null,null,false,false]
[null,null,null,null,false,false]
[null,null,null,null,false,false]
[null,null,null,null,false,false]
[null,null,null,null,false,false]
[null,null,null,null,false,false]
[null,null,null,null,false,false]
[null,null,null,null,false,false]
[null,null,null,null,false,false]
[null,null,null,null,false,false]
[null,null,null,null,false,false]
[null,null,null,null,false,false]
[null,null,null,null,false,false]
[null,null,null,null,false,false]
[null,null,null,null,false,false]
[null,null,null,null,false,false]
[null,null,null,null,false,false]
[null,null,null,null,false,false]
[null,null,null,null,false,false]
[null,null,null,null,false,false]
[null,null,null,null,false,false]
[null,null,null,null,false,false]
[null,null,null,null,false,false]
[null,null,null,null,false,false]
[null,null,null,null,false,false]
[null,null,null,null,false,false]
[null,null,null,null,false,false]
[null,null,null,null,false,false]
[null,null,null,null,false,false]
[null,null,null,null,false,false]
[null,null,null,null,false,false]
[null,null,null,null,false,false]
[null,null,null,null,false,false]
[null,null,null,null,false,false]
[null,null,null,null,false,false]
[null,null,null,null,false,false]
[null,null,null,null,false,false]
[null,null,null,null,false,false]
[null,null,null,null,false,false]
[null,null,null,null,false,false]
[null,null,null,null,false,false]
[null,null,null,null,false,false]
[null,null,null,null,false,false]
[null,null,null,null,false,false]
[null,null,null,null,false,false]
[null,null,null,null,false,false]
[null,null,null,null,false,false]
[null,null,null,null,false,false]
[null,null,null,null,false,false]
[null,null,null,null,false,false]
[null,null,null,null,false,false]
[null,null,null,null,false,false]
[null,null,null,null,false,false]
[null,null,null,null,false,false]
[null,null,null,null,false,false]
[null,null,null,null,false,false]
[null,null,null,null,false,false]
[null,null,null,null,false,false]
[null,null,null,null,false,false]
[null,null,null,null,false,false]
[null,null,null,null,false,false]
[null,null,null,null,{"$f":"IF(B839=\"TOUT VENANT\",\"Véolia Nice Tri - Parc d'activité logistique\",IF(B839=\"DECHETS VERTS\",\"Orédui Carros Compostage - ZI de la Grave\",IF(B839=\"GRAVATS PROPRES\",\"La Gaude K3 Sita Sud - 5211 Rte de St Jeannet\",IF(B839=\"GRAVATS SALES\",\"Véolia Nice Tri - 20 Ch du Saquier\",IF(B839=\"BOIS\",\"SEAS La Glacière - 1019 Rte de la Grasse\",IF(B839=\"METAUX\",\"PURFER - ZI Carros 15ème Rue - 06517 Carros\",IF(B839=\"BATTERIES\",\"PURFER - ZI Carros 15ème Rue - 06517 Carros\",IF(B839=\"NEON\",\"Sofovar - 126 Av Louis Lépine - 83600 Fréjus\",IF(B839=\"PEINTURES\",\"Orédui - ZI Bois de Grasse - 06310 Grasse\",IF(B839=\"PRODUITS NON IDENTIFIES\",\"Orédui - ZI Bois de Grasse - 06310 Grasse\",IF(B839=\"AEROSOLS\",\"Orédui - ZI Bois de Grasse - 06310 Grasse\",IF(B839=\"FROIDS\",\"SEAS - 1079 Rte de Grasse - 06270 Villeneuve Loubet\",IF(B839=\"HORS FROIDS\",\"SEAS - 1079 Rte de Grasse - 06270 Villeneuve Loubet\",IF(B839=\"PAM\",\"SEAS - 1079 Rte de Grasse - 06270 Villeneuve Loubet\",IF(B839=\"ECRANS\",\"SEAS - 1079 Rte de Grasse - 06270 Villeneuve Loubet\",IF(B839=\"BOX HORS FROIDS\",\"SEAS - 1079 Rte de Grasse - 06270 Villeneuve Loubet\",IF(B839=\"PILES\",\"Corepile\",IF(B839=\"CUMULUS\",\"SEAS - 1079 Rte de Grasse - 06270 Villeneuve Loubet\",IF(B839=\"PNEUS\",\"TFM Pneus - 117 Ch Clausonnes - 06560 Valbonne\",IF(B839=\"HUILES VEGETALES\",\"Orédui - ZI Bois de Grasse - 06310 Grasse\",IF(B839=\"HUILES DE VIDANGE\",\"SERAHU - 68 Ch de la Campanette - 06800 Cagnes sur Mer\")))))))))))))))))))))","v":false},{"$f":"IF(OR(B839=\"TOUT VENANT\",B839=\"DECHETS VERTS\",B839=\"GRAVATS SALES\",B839=\"GRAVATS PROPRES\",B839=\"BOIS\"),\"SUEZ\",IF(OR(B839=\"PNEUS\"),\"TFM\",IF(OR(B839=\"FROIDS\",B839=\"HORS FROIDS\",B839=\"BOX HORS FROIDS\",B839=\"CUMULUS\",B839=\"PAM\",B839=\"ECRANS\"),\"SEAS\",IF(OR(B839=\"METAUX\",B839=\"BATTERIES\"),\"DERICHEBOURG\",IF(OR(B839=\"NEON\"),\"SOFOVAR\",IF(OR(B839=\"PEINTURES\",B839=\"PRODUITS NON IDENTIFIES\",B839=\"AEROSOLS\",B839=\"HUILES VEGETALES\"),\"OREDUI\",IF(OR(B839=\"HUILES DE VIDANGE\"),\"SERAHU\")))))))","v":false}]
[null,null,null,null,false,false]
[null,null,null,null,false,false]
[null,null,null,null,false,false]
[null,null,null,null,false,false]
[null,null,null,null,false,false]
[null,null,null,null,false,false]
[null,null,null,null,false,false]
[null,null,null,null,false,false]
[null,null,null,null,false,false]
[null,null,null,null,false,false]
[null,null,null,null,false,false]
[null,null,null,null,false,false]
[null,null,null,null,false,false]
[null,null,null,null,false,false]
[null,null,null,null,false,false]
[null,null,null,null,false,false]
[null,null,null,null,false,false]
[null,null,null,null,false,false]
[null,null,null,null,false,false]
[null,null,null,null,false,false]
[null,null,null,null,false,false]
[null,null,null,null,false,false]
[null,null,null,null,false,false]
[null,null,null,null,false,false]
[null,null,null,null,false,false]
[null,null,null,null,false,false]
[null,null,null,null,false,false]
[null,null,null,null,false,false]
[null,null,null,null,false,false]
[null,null,null,null,false,false]
[null,null,null,null,false,false]
[null,null,null,null,false,false]
[null,null,null,null,false,false]
[null,null,null,null,false,false]
[null,null,null,null,false,false]
[null,null,null,null,false,false]
[null,null,null,null,false,false]
[null,null,null,null,false,false]
[null,null,null,null,false,false]
[null,null,null,null,false,false]
[null,null,null,null,false,false]
[null,null,null,null,false,false]
[null,null,null,null,false,false]
[null,null,null,null,false,false]
[null,null,null,null,false,false]
[null,null,null,null,false,false]
[null,null,null,null,false,false]
[null,null,null,null,false,false]
[null,null,null,null,false,false]
[null,null,null,null,false,false]
[null,null,null,null,false,false]
[null,null,null,null,false,false]
[null,null,null,null,false,false]
[null,null,null,null,false,false]
[null,null,null,null,false,false]
[null,null,null,null,false,false]
[null,null,null,null,false,false]
[null,null,null,null,false,false]
[null,null,null,null,false,false]
[null,null,null,null,false,false]
[null,null,null,null,false,false]
[null,null,null,null,false,false]
[null,null,null,null,false,false]
[null,null,null,null,{"$f":"IF(B903=\"TOUT VENANT\",\"Véolia Nice Tri - Parc d'activité logistique\",IF(B903=\"DECHETS VERTS\",\"Orédui Carros Compostage - ZI de la Grave\",IF(B903=\"GRAVATS PROPRES\",\"La Gaude K3 Sita Sud - 5211 Rte de St Jeannet\",IF(B903=\"GRAVATS SALES\",\"Véolia Nice Tri - 20 Ch du Saquier\",IF(B903=\"BOIS\",\"SEAS La Glacière - 1019 Rte de la Grasse\",IF(B903=\"METAUX\",\"PURFER - ZI Carros 15ème Rue - 06517 Carros\",IF(B903=\"BATTERIES\",\"PURFER - ZI Carros 15ème Rue - 06517 Carros\",IF(B903=\"NEON\",\"Sofovar - 126 Av Louis Lépine - 83600 Fréjus\",IF(B903=\"PEINTURES\",\"Orédui - ZI Bois de Grasse - 06310 Grasse\",IF(B903=\"PRODUITS NON IDENTIFIES\",\"Orédui - ZI Bois de Grasse - 06310 Grasse\",IF(B903=\"AEROSOLS\",\"Orédui - ZI Bois de Grasse - 06310 Grasse\",IF(B903=\"FROIDS\",\"SEAS - 1079 Rte de Grasse - 06270 Villeneuve Loubet\",IF(B903=\"HORS FROIDS\",\"SEAS - 1079 Rte de Grasse - 06270 Villeneuve Loubet\",IF(B903=\"PAM\",\"SEAS - 1079 Rte de Grasse - 06270 Villeneuve Loubet\",IF(B903=\"ECRANS\",\"SEAS - 1079 Rte de Grasse - 06270 Villeneuve Loubet\",IF(B903=\"BOX HORS FROIDS\",\"SEAS - 1079 Rte de Grasse - 06270 Villeneuve Loubet\",IF(B903=\"PILES\",\"Corepile\",IF(B903=\"CUMULUS\",\"SEAS - 1079 Rte de Grasse - 06270 Villeneuve Loubet\",IF(B903=\"PNEUS\",\"TFM Pneus - 117 Ch Clausonnes - 06560 Valbonne\",IF(B903=\"HUILES VEGETALES\",\"Orédui - ZI Bois de Grasse - 06310 Grasse\",IF(B903=\"HUILES DE VIDANGE\",\"SERAHU - 68 Ch de la Campanette - 06800 Cagnes sur Mer\")))))))))))))))))))))","v":false},{"$f":"IF(OR(B903=\"TOUT VENANT\",B903=\"DECHETS VERTS\",B903=\"GRAVATS SALES\",B903=\"GRAVATS PROPRES\",B903=\"BOIS\"),\"SUEZ\",IF(OR(B903=\"PNEUS\"),\"TFM\",IF(OR(B903=\"FROIDS\",B903=\"HORS FROIDS\",B903=\"BOX HORS FROIDS\",B903=\"CUMULUS\",B903=\"PAM\",B903=\"ECRANS\"),\"SEAS\",IF(OR(B903=\"METAUX\",B903=\"BATTERIES\"),\"DERICHEBOURG\",IF(OR(B903=\"NEON\"),\"SOFOVAR\",IF(OR(B903=\"PEINTURES\",B903=\"PRODUITS NON IDENTIFIES\",B903=\"AEROSOLS\",B903=\"HUILES VEGETALES\"),\"OREDUI\",IF(OR(B903=\"HUILES DE VIDANGE\"),\"SERAHU\")))))))","v":false}]
[null,null,null,null,false,false]
[null,null,null,null,false,false]
[null,null,null,null,false,false]
[null,null,null,null,false,false]
[null,null,null,null,false,false]
[null,null,null,null,false,false]
[null,null,null,null,false,false]
[null,null,null,null,false,false]
[null,null,null,null,false,false]
[null,null,null,null,false,false]
[null,null,null,null,false,false]
[null,null,null,null,false,false]
[null,null,null,null,false,false]
[null,null,null,null,false,false]
[null,null,null,null,false,false]
[null,null,null,null,false,false]
[null,null,null,null,false,false]
[null,null,null,null,false,false]
[null,null,null,null,false,false]
[null,null,null,null,false,false]
[null,null,null,null,false,false]
[null,null,null,null,false,false]
[null,null,null,null,false,false]
[null,null,null,null,false,false]
[null,null,null,null,false,false]
[null,null,null,null,false,false]
[null,null,null,null,false,false]
[null,null,null,null,false,false]
[null,null,null,null,false,false]
[null,null,null,null,false,false]
[null,null,null,null,false,false]
[null,null,null,null,false,false]
[null,null,null,null,false,false]
[null,null,null,null,false,false]
[null,null,null,null,false,false]
[null,null,null,null,false,false]
[null,null,null,null,false,false]
[null,null,null,null,false,false]
[null,null,null,null,false,false]
[null,null,null,null,false,false]
[null,null,null,null,false,false]
[null,null,null,null,false,false]
[null,null,null,null,false,false]
[null,null,null,null,false,false]
[null,null,null,null,false,false]
[null,null,null,null,false,false]
[null,null,null,null,false,false]
[null,null,null,null,false,false]
[null,null,null,null,false,false]
[null,null,null,null,false,false]
[null,null,null,null,false,false]
[null,null,null,null,false,false]
[null,null,null,null,false,false]
[null,null,null,null,false,false]
[null,null,null,null,false,false]
[null,null,null,null,false,false]
[null,null,null,null,false,false]
[null,null,null,null,false,false]
[null,null,null,null,false,false]
[null,null,null,null,false,false]
[null,null,null,null,false,false]
[null,null,null,null,false,false]
[null,null,null,null,false,false]
[null,null,null,null,{"$f":"IF(B967=\"TOUT VENANT\",\"Véolia Nice Tri - Parc d'activité logistique\",IF(B967=\"DECHETS VERTS\",\"Orédui Carros Compostage - ZI de la Grave\",IF(B967=\"GRAVATS PROPRES\",\"La Gaude K3 Sita Sud - 5211 Rte de St Jeannet\",IF(B967=\"GRAVATS SALES\",\"Véolia Nice Tri - 20 Ch du Saquier\",IF(B967=\"BOIS\",\"SEAS La Glacière - 1019 Rte de la Grasse\",IF(B967=\"METAUX\",\"PURFER - ZI Carros 15ème Rue - 06517 Carros\",IF(B967=\"BATTERIES\",\"PURFER - ZI Carros 15ème Rue - 06517 Carros\",IF(B967=\"NEON\",\"Sofovar - 126 Av Louis Lépine - 83600 Fréjus\",IF(B967=\"PEINTURES\",\"Orédui - ZI Bois de Grasse - 06310 Grasse\",IF(B967=\"PRODUITS NON IDENTIFIES\",\"Orédui - ZI Bois de Grasse - 06310 Grasse\",IF(B967=\"AEROSOLS\",\"Orédui - ZI Bois de Grasse - 06310 Grasse\",IF(B967=\"FROIDS\",\"SEAS - 1079 Rte de Grasse - 06270 Villeneuve Loubet\",IF(B967=\"HORS FROIDS\",\"SEAS - 1079 Rte de Grasse - 06270 Villeneuve Loubet\",IF(B967=\"PAM\",\"SEAS - 1079 Rte de Grasse - 06270 Villeneuve Loubet\",IF(B967=\"ECRANS\",\"SEAS - 1079 Rte de Grasse - 06270 Villeneuve Loubet\",IF(B967=\"BOX HORS FROIDS\",\"SEAS - 1079 Rte de Grasse - 06270 Villeneuve Loubet\",IF(B967=\"PILES\",\"Corepile\",IF(B967=\"CUMULUS\",\"SEAS - 1079 Rte de Grasse - 06270 Villeneuve Loubet\",IF(B967=\"PNEUS\",\"TFM Pneus - 117 Ch Clausonnes - 06560 Valbonne\",IF(B967=\"HUILES VEGETALES\",\"Orédui - ZI Bois de Grasse - 06310 Grasse\",IF(B967=\"HUILES DE VIDANGE\",\"SERAHU - 68 Ch de la Campanette - 06800 Cagnes sur Mer\")))))))))))))))))))))","v":false},{"$f":"IF(OR(B967=\"TOUT VENANT\",B967=\"DECHETS VERTS\",B967=\"GRAVATS SALES\",B967=\"GRAVATS PROPRES\",B967=\"BOIS\"),\"SUEZ\",IF(OR(B967=\"PNEUS\"),\"TFM\",IF(OR(B967=\"FROIDS\",B967=\"HORS FROIDS\",B967=\"BOX HORS FROIDS\",B967=\"CUMULUS\",B967=\"PAM\",B967=\"ECRANS\"),\"SEAS\",IF(OR(B967=\"METAUX\",B967=\"BATTERIES\"),\"DERICHEBOURG\",IF(OR(B967=\"NEON\"),\"SOFOVAR\",IF(OR(B967=\"PEINTURES\",B967=\"PRODUITS NON IDENTIFIES\",B967=\"AEROSOLS\",B967=\"HUILES VEGETALES\"),\"OREDUI\",IF(OR(B967=\"HUILES DE VIDANGE\"),\"SERAHU\")))))))","v":false}]
[null,null,null,null,false,false]
[null,null,null,null,false,false]
[null,null,null,null,false,false]
[null,null,null,null,false,false]
[null,null,null,null,false,false]
[null,null,null,null,false,false]
[null,null,null,null,false,false]
[null,null,null,null,false,false]
[null,null,null,null,false,false]
[null,null,null,null,false,false]
[null,null,null,null,false,false]
[null,null,null,null,false,false]
[null,null,null,null,false,false]
[null,null,null,null,false,false]
[null,null,null,null,false,false]
[null,null,null,null,false,false]
[null,null,null,null,false,false]
[null,null,null,null,false,false]
[null,null,null,null,false,false]
[null,null,null,null,false,false]
[null,null,null,null,false,false]
[null,null,null,null,false,false]
[null,null,null,null,false,false]
[null,null,null,null,false,false]
[null,null,null,null,false,false]
[null,null,null,null,false,false]
[null,null,null,null,false,false]
[null,null,null,null,false,false]
[null,null,null,null,false,false]
[null,null,null,null,false,false]
[null,null,null,null,false,false]
[null,null,null,null,false,false]
[null,null,null,null,false,false]